Workbook

Sheet Instructions
B2: =CONCATENATE(dms_Sector," ",dms_Segment," ", "Network Service Provider") -> Electricity Distribution Network Service Provider
B3: =IF(dms_Model="Reset","Regulatory Proposal RIN Template","Annual Reporting RIN") -> Regulatory Proposal RIN Template
B4: =CONCATENATE("This template is to be used by ",INDEX(dms_TradingNameFull_List,MATCH(dms_TradingName,dms_TradingName_List))," to fulfil its reporting obligations to the AER.") -> This template is to be used by Jemena Electricity to fulfil its reporting obligations to the AER.
B5: INSTRUCTIONS
B6: GENERAL | C6: Complete the Business & other details worksheet before entering data or values in any other worksheets. The Business & other details worksheet is linked to other worksheets within the workbook and automatically generates certain column headings and conditional formatting.
B8: CONFIDENTIAL INFORMATION | C8: Businesses must use the macro at the top of each worksheet to identify confidential information in the workbook.
C9: -Do this by selecting the cell or cells that contain confidential information and then run the CONFIDENTIAL macro. This will format the cells a specific colour that is identified by the AER's database which in turn marks that information as confidential. -To reverse this, select the cell or cells and run the NON-CONFIDENTIAL macro.
B11: PROTECTED (SOCI) INFORMATION | C11: Please use the macro at the top of each worksheet to identify information in the confidential workbook that is protected information under the SOCI Act. All information marked Protected (SOCI) is also deemed to be confidential information.
C12: -Do this by selecting the cell or cells that contain protected information and then run the PROTECTED (SOCI) macro. This will format the cells a specific colour that is identified by the AER's database which in turn marks that information as protected.. -To reverse this, select the cell or cells and run the NON-PROTECTED macro.
B14: RESPONSES | C14: Please return locked template files as provided by AER,with confidential/protected information marked using the appropriate macro.
B17: ORDER OF MAGNITUDE | C17: All amounts are to be unrounded and reported on a one for one basis: that is 1000 is to be entered as '1000'.
B19: INPUT / NON-INPUT CELLS
D20: Yellow = Input cell (mandatory)
D21: Darker yellow = input cell (mandatory)
D22: Orange = input cell (if data available)
D23: Grey = Not applicable/No inputs required
D24: PLEASE DO NOT ENTER TEXT into cells that are to contain numbers (including 'numbers stored as text')

Sheet CONTENTS
C1: =IF(dms_MultiYear_ResponseFlag="Yes","REGULATORY REPORTING STATEMENT - HISTORICAL INFORMATION",INDEX(dms_Worksheet_List,MATCH(dms_Model,dms_Model_List))) -> REGULATORY REPORTING STATEMENT
C2: =INDEX(dms_TradingNameFull_List,MATCH(dms_TradingName,dms_TradingName_List)) -> Jemena Electricity
C3: =CONCATENATE("REGULATORY PERIOD FROM ", FRCP_y1," TO ",dms_MultiYear_FinalYear_Result) -> REGULATORY PERIOD FROM 2026-27 TO 2030-31
D7: CONTENTS
D9: DRAFT RIN ONLY - DO NOT USE FOR SUBMISSION
D11: TEMPLATE | E11: MARCH 2024 - PRELIMINARY RIN
D13: SUBMISSION | E13: Business & other details
D15: EXPENDITURE | E15: 2.1 Expenditure summary
E16: 2.2 Repex
E17: 2.3 Augex (b)
E18: 2.5 Connections
E19: 2.6 Non-network
E20: 2.10 Overheads
E21: 2.11 Labour
E22: 2.14 FORECAST price changes
E23: 2.16 Opex Summary
E24: 2.17 Step Changes
D26: ECONOMIC BENCHMARKING | E26: 3.1 Revenue
E27: 3.2 Operating expenditure
E28: 3.3 Assets (RAB)
E29: 3.4 Operational data
E30: 3.5 Physical assets
E31: 3.6 Quality of service
E32: 3.7 Operating Environment
D34: ALTERNATIVE CONTROL | E34: 4.1 Public lighting
D36: NETWORK | E36: 5.4 MD & utilisation-Spatial
D38: SERVICE | E38: 6.2 Reliability & Cust serv
D40: OTHER | E40: 7.1 Policies and Procedures
E41: 7.2 Contingent projects
E42: 7.3 Obligations
E43: 7.4 Shared Assets
E44: 7.7 TSS-LRMC
E45: 7.8 Export Services

Sheet Business & other details
V1: =INDEX(dms_Worksheet_List,MATCH(dms_Model,dms_Model_List)) -> REGULATORY REPORTING STATEMENT
V2: =INDEX(dms_TradingNameFull_List,MATCH(dms_TradingName,dms_TradingName_List)) -> Jemena Electricity
V3: =CONCATENATE("REGULATORY PERIOD FROM ", FRCP_y1," TO ",dms_MultiYear_FinalYear_Result) -> REGULATORY PERIOD FROM 2026-27 TO 2030-31
V4: BUSINESS & OTHER DETAILS
V6: INSTRUCTIONS
V7: Complete the following business details regulatory template before entering data or values in any other regulatory template. This regulatory template is linked to other cells within the spreadsheet and automatically generates column headings and conditional formatting to distinguish business specific input and non-input cells.
Q9: SUBMISSION PARTICULARS INPUT SHEET
Q11: DRAFT TEMPLATE ONLY
Q12: DO NOT USE FOR SUBMISSIONS
V15: ENTITY DETAILS
V17: Business Name
V19: Short name | AL19: Jemena Electricity
V20: ACN/ABN | AL20: =INDEX(dms_ABN_List,MATCH(dms_TradingName,dms_TradingName_List)) -> 82064651083
V24: Business Address | BQ24: Postal Address
V26: Address 1 | BI26: Address 1
V27: Address 2 | BI27: Address 2
V28: Suburb | BI28: Suburb
V29: State | AL29: =INDEX(dms_State_List,MATCH(dms_TradingName,dms_TradingName_List)) -> Vic | AV29: Post code | BI29: State | BQ29: =INDEX(dms_PState_List,MATCH(dms_TradingName,dms_TradingName_List)) -> Vic | CA29: Post code
BA31: `
V33: Contact Names
V35: Name | BI35: Name
V36: Phone | BI36: Phone
V37: Email | BI37: Email
Q42: REGULATORY CONTROL PERIODS
X45: RESETS | Z45: Forthcoming period | AL45: 2026-27 | AU45: =FRCP_y2 -> 2027-28 | BD45: =FRCP_y3 -> 2028-29 | BM45: =FRCP_y4 -> 2029-30 | BV45: =FRCP_y5 -> 2030-31
AL46: =FRCP_y6 -> 2031-32 | AU46: =FRCP_y7 -> 2032-33 | BD46: =FRCP_y8 -> 2033-34 | BM46: =FRCP_y9 -> 2034-35 | BV46: =FRCP_y10 -> 2035-36
AL47: =FRCP_y11 -> 2036-37 | AU47: =FRCP_y12 -> 2037-38 | BD47: =FRCP_y13 -> 2038-39 | BM47: =FRCP_y14 -> 2039-40 | BV47: =FRCP_y15 -> 2040-41
X49: RESETS | Z49: Current period | AL49: =CRCP_y1 -> 2021-22 | AU49: =CRCP_y2 -> 2022-23 | BD49: =CRCP_y3 -> 2023-24 | BM49: =CRCP_y4 -> 2024-25 | BV49: =CRCP_y5 -> 2025-26
AL50: =CRCP_y6 -> 2026-27 | AU50: =CRCP_y7 -> 2027-28 | BD50: =CRCP_y8 -> 2028-29 | BM50: =CRCP_y9 -> 2029-30 | BV50: =CRCP_y10 -> 2030-31
AL51: =CRCP_y11 -> 2031-32 | AU51: =CRCP_y12 -> 2032-33 | BD51: =CRCP_y13 -> 2033-34 | BM51: =CRCP_y14 -> 2034-35 | BV51: =CRCP_y15 -> 2035-36
Z53: Previous period | AL53: =PRCP_y1 -> 2016-17 | AU53: =PRCP_y2 -> 2017-18 | BD53: =PRCP_y3 -> 2018-19 | BM53: =PRCP_y4 -> 2019-20 | BV53: =PRCP_y5 -> 2020-21
AL54: =PRCP_y6 -> 2021-22 | AU54: =PRCP_y7 -> 2022-23 | BD54: =PRCP_y8 -> 2023-24 | BM54: =PRCP_y9 -> 2024-25 | BV54: =PRCP_y10 -> 2025-26
AL55: =PRCP_y11 -> 2026-27 | AU55: =PRCP_y12 -> 2027-28 | BD55: =PRCP_y13 -> 2028-29 | BM55: =PRCP_y14 -> 2029-30 | BV55: =PRCP_y15 -> 2030-31
Z57: Commencing year | AL57: 2022-23
X58: ANNUAL RINS
Z59: Final year | AL59: 2028-29
Q63: SUBMISSION DETAILS
Z65: RIN type | AL65: =INDIRECT(dms_Model) -> Regulatory Reporting (Reset)
Z67: Source | AL67: Regulatory proposal
X69: THIS FILE | Z69: Data Quality | AL69: Consolidated
Z71: Confidentiality Status | AL71: Confidential
Z73: Amended RIN Amendment Reason
Z77: Submission Date | AL77: 2025-01-31 | BD77: Please enter date this file submitted to AER

Sheet 2.1 Expenditure summary
B1: =INDEX(dms_Worksheet_List,MATCH(dms_Model,dms_Model_List)) -> REGULATORY REPORTING STATEMENT
B2: =INDEX(dms_TradingNameFull_List,MATCH(dms_TradingName,dms_TradingName_List)) -> Jemena Electricity
B3: =CONCATENATE("REGULATORY PERIOD FROM ", FRCP_y1," TO ",dms_MultiYear_FinalYear_Result) -> REGULATORY PERIOD FROM 2026-27 TO 2030-31
B4: 2.1 EXPENDITURE SUMMARY & RECONCILIATION
B5: TEMPLATE DATE - SEPTEMBER 2024 - FINAL RIN
B8: 2.1.1 - STANDARD CONTROL SERVICES CAPEX (excluding dual function assets)
C9: =CONCATENATE("EXPENDITURE ($, real ", dms_DollarReal, ")") -> EXPENDITURE ($, real June 2026)
C10: =CRCP_y4 -> 2024-25 | D10: =CRCP_y5 -> 2025-26 | E10: =FRCP_y1 -> 2026-27 | F10: =FRCP_y2 -> 2027-28 | G10: =FRCP_y3 -> 2028-29 | H10: =FRCP_y4 -> 2029-30 | I10: =FRCP_y5 -> 2030-31
B11: Replacement expenditure | C11: 52040788.96 | D11: 46455245.9 | E11: 69362663.5 | F11: 103044922 | G11: 90860907.35 | H11: 88342689.66 | I11: 75712216.36
B12: Connections | C12: 140849983.7 | D12: 228823684.2 | E12: 220251586.6 | F12: 195274583.6 | G12: 251462629.6 | H12: 235940263.7 | I12: 199703284.5
B13: Augmentation Expenditure | C13: 29392260.63 | D13: 41745760.66 | E13: 81922825.4 | F13: 69226567.79 | G13: 30828589.75 | H13: 32511915.64 | I13: 22152542.2
B14: Export services | C14: 953240.5225 | D14: 1325877.696 | E14: 7776584.936 | F14: 11548553.57 | G14: 16414427.5 | H14: 13398553.56 | I14: 7971893.656
B15: ICT | C15: 22770988.86 | D15: 32546840.57 | E15: 33197981.99 | F15: 25292413.27 | G15: 20230465.36 | H15: 22888368.32 | I15: 27704515.21
B16: Property | C16: 1178111.235 | D16: 308532.3814 | E16: 11317558.38 | F16: 4300146.16 | G16: 1557730.581 | H16: 325854.2803 | I16: 339898.8579
B17: Fleet | C17: 2160579.916 | D17: 601032.596 | E17: 13056731.61 | F17: 6632535.174 | G17: 6961152.147 | H17: 3136050.343 | I17: 1887457.405
B18: Other non-network | C18: 0 | D18: 0 | E18: 2318876.249 | F18: 998255.9667 | G18: 439442.0861 | H18: 219816.1365 | I18: 173296.2416
B19: Network overheads | C19: 36745681.3 | D19: 41356571.13 | E19: 44308030.02 | F19: 44589501.51 | G19: 45302461.84 | H19: 45054864.56 | I19: 42904492.28
B20: Corporate overheads
B21: Metering
B22: capital contributions (included in the above) | C22: 162802628.7 | D22: 180576574.6 | E22: 176622653.4 | F22: 146298851.9 | G22: 197366663 | H22: 184426691 | I22: 155032376.2
B23: Total | C23: =SUM(C11:C21) -> 286091635.2 | D23: 393163545.1 | E23: 483512838.7 | F23: 460907479 | G23: 464057806.2 | H23: 441818376.2 | I23: 378549596.7
B26: 2.1.2 - STANDARD CONTROL SERVICES OPEX BY CATEGORY (excluding dual function assets)
C27: =CONCATENATE("EXPENDITURE ($, real ", dms_DollarReal, ")") -> EXPENDITURE ($, real June 2026)
C28: =CRCP_y4 -> 2024-25 | D28: =CRCP_y5 -> 2025-26
B29: Vegetation management | C29: 5415233.731 | D29: 5561717.528
B30: Maintenance | C30: 9150930.931 | D30: 9398466.527
B31: Emergency response | C31: 5960834.639 | D31: 6122077.114
B32: Non-network | C32: 21789932.73 | D32: 24706085.73
B33: Export services | C33: 3245419.034 | D33: 3722799.563
B34: Metering | C34: 0 | D34: 0
B35: Network overheads | C35: 29411533 | D35: 29433669.56
B36: Corporate overheads | C36: 20799304.53 | D36: 21361932.34
B37: Total | C37: =SUM(C29:C36) -> 95773188.59 | D37: =SUM(D29:D36) -> 100306748.4
B40: 2.1.3 - ALTERNATIVE CONTROL SERVICES CAPEX
C41: =CONCATENATE("EXPENDITURE ($, real ", dms_DollarReal, ")") -> EXPENDITURE ($, real June 2026)
C42: =CRCP_y4 -> 2024-25 | D42: =CRCP_y5 -> 2025-26 | E42: =FRCP_y1 -> 2026-27 | F42: =FRCP_y2 -> 2027-28 | G42: =FRCP_y3 -> 2028-29 | H42: =FRCP_y4 -> 2029-30 | I42: =FRCP_y5 -> 2030-31
B43: Connections
B44: Metering | C44: 6958375.166 | D44: 11100716.38 | E44: 14315696.85 | F44: 18632841.45 | G44: 20305232.35 | H44: 25295802.89 | I44: 26106207.84
B45: Public lighting | C45: =SUM('4.1 Public lighting'!D16,'4.1 Public lighting'!D21,'4.1 Public lighting'!D26) -> 5923043.925 | D45: =SUM('4.1 Public lighting'!E16,'4.1 Public lighting'!E21,'4.1 Public lighting'!E26) -> 7141445.132 | E45: =SUM('4.1 Public lighting'!F16,'4.1 Public lighting'!F21,'4.1 Public lighting'!F26) -> 12204701.63 | F45: =SUM('4.1 Public lighting'!G16,'4.1 Public lighting'!G21,'4.1 Public lighting'!G26) -> 11772057.17 | G45: =SUM('4.1 Public lighting'!H16,'4.1 Public lighting'!H21,'4.1 Public lighting'!H26) -> 11125922.41 | H45: =SUM('4.1 Public lighting'!I16,'4.1 Public lighting'!I21,'4.1 Public lighting'!I26) -> 9265669.5 | I45: =SUM('4.1 Public lighting'!J16,'4.1 Public lighting'!J21,'4.1 Public lighting'!J26) -> 8170579.751
B46: Fee and quoted | C46: 1117708.642 | D46: 1141292.748 | E46: 1515186.547 | F46: 1555411.648 | G46: 1599102.582 | H46: 1646718.456 | I46: 1694006.416
B47: Network overheads | C47: ='2.10 Overheads'!D17 -> 551801.0608 | D47: ='2.10 Overheads'!E17 -> 794977.5785 | E47: ='2.10 Overheads'!F17 -> 1935926.981 | F47: ='2.10 Overheads'!G17 -> 1880702.988 | G47: ='2.10 Overheads'!H17 -> 1828303.845 | H47: ='2.10 Overheads'!I17 -> 1558435.182 | I47: ='2.10 Overheads'!J17 -> 1399936.685
B48: Corporate overheads | C48: ='2.10 Overheads'!D32 ->  | D48: ='2.10 Overheads'!E32 ->  | E48: ='2.10 Overheads'!F32 ->  | F48: ='2.10 Overheads'!G32 ->  | G48: ='2.10 Overheads'!H32 ->  | H48: ='2.10 Overheads'!I32 ->  | I48: ='2.10 Overheads'!J32 -> 
B49: capital contributions (included in the above)
B50: Total | C50: =SUM(C43:C48) -> 14550928.79 | D50: 20178431.83 | E50: 29971512.01 | F50: 33841013.26 | G50: 34858561.19 | H50: 37766626.03 | I50: 37370730.69
B53: 2.1.4 - ALTERNATIVE CONTROL SERVICES OPEX
C54: =CONCATENATE("EXPENDITURE ($, real ", dms_DollarReal, ")") -> EXPENDITURE ($, real June 2026)
C55: =CRCP_y4 -> 2024-25 | D55: =CRCP_y5 -> 2025-26 | E55: =FRCP_y1 -> 2026-27 | F55: =FRCP_y2 -> 2027-28 | G55: =FRCP_y3 -> 2028-29 | H55: =FRCP_y4 -> 2029-30 | I55: =FRCP_y5 -> 2030-31
B56: Connections | C56: 0 | D56: 0 | E56: 0 | F56: 0 | G56: 0 | H56: 0 | I56: 0
B57: Metering | C57: ='3.2 Operating expenditure'!K72 -> 9585336.095 | D57: ='3.2 Operating expenditure'!L72 -> 9792421.602 | E57: ='3.2 Operating expenditure'!M72 -> 14010359.01 | F57: ='3.2 Operating expenditure'!N72 -> 14351632.79 | G57: ='3.2 Operating expenditure'!O72 -> 16252931.17 | H57: ='3.2 Operating expenditure'!P72 -> 16646195.58 | I57: ='3.2 Operating expenditure'!Q72 -> 15919644.89
B58: Public lighting | C58: ='3.2 Operating expenditure'!K74 -> 4208245.715 | D58: ='3.2 Operating expenditure'!L74 -> 4385348.028 | E58: ='3.2 Operating expenditure'!M74 -> 4723282.573 | F58: ='3.2 Operating expenditure'!N74 -> 4554868.15 | G58: ='3.2 Operating expenditure'!O74 -> 4162810.944 | H58: ='3.2 Operating expenditure'!P74 -> 3503089.027 | I58: ='3.2 Operating expenditure'!Q74 -> 3124858.296
B59: Fee and quoted | C59: 5600899.937 | D59: 5719081.196 | E59: 7146451.395 | F59: 7336175.052 | G59: 7542245.478 | H59: 7766828.074 | I59: 7989864.047
B60: Network overheads | C60: ='2.10 Overheads'!D14 -> 3506886.508 | D60: ='2.10 Overheads'!E14 -> 3601924.625 | E60: ='2.10 Overheads'!F14 -> 4005126.17 | F60: ='2.10 Overheads'!G14 -> 4038738.792 | G60: ='2.10 Overheads'!H14 -> 4058001.466 | H60: ='2.10 Overheads'!I14 -> 3989642.77 | I60: ='2.10 Overheads'!J14 -> 3985577.465
B61: Corporate overheads | C61: ='2.10 Overheads'!D29 -> 6111251.624 | D61: ='2.10 Overheads'!E29 -> 6263557.406 | E61: ='2.10 Overheads'!F29 -> 7075207.791 | F61: ='2.10 Overheads'!G29 -> 7184129.003 | G61: ='2.10 Overheads'!H29 -> 7249202.518 | H61: ='2.10 Overheads'!I29 -> 7259767.265 | I61: ='2.10 Overheads'!J29 -> 7341399.42
B62: Total | C62: =SUM(C56:C61) -> 29012619.88 | D62: 29762332.86 | E62: 36960426.94 | F62: 37465543.78 | G62: 39265191.57 | H62: 39165522.72 | I62: 38361344.12
B65: 2.1.5 - DUAL FUNCTION ASSETS CAPEX
C66: =CONCATENATE("EXPENDITURE ($, real ", dms_DollarReal, ")") -> EXPENDITURE ($, real June 2026)
C67: =CRCP_y4 -> 2024-25 | D67: =CRCP_y5 -> 2025-26 | E67: =FRCP_y1 -> 2026-27 | F67: =FRCP_y2 -> 2027-28 | G67: =FRCP_y3 -> 2028-29 | H67: =FRCP_y4 -> 2029-30 | I67: =FRCP_y5 -> 2030-31
B68: Replacement expenditure | C68: N/A | D68: N/A | E68: N/A | F68: N/A | G68: N/A | H68: N/A | I68: N/A
B69: Connections | C69: N/A | D69: N/A | E69: N/A | F69: N/A | G69: N/A | H69: N/A | I69: N/A
B70: Augmentation Expenditure | C70: N/A | D70: N/A | E70: N/A | F70: N/A | G70: N/A | H70: N/A | I70: N/A
B71: Export services | C71: N/A | D71: N/A | E71: N/A | F71: N/A | G71: N/A | H71: N/A | I71: N/A
B72: ICT | C72: N/A | D72: N/A | E72: N/A | F72: N/A | G72: N/A | H72: N/A | I72: N/A
B73: Property | C73: N/A | D73: N/A | E73: N/A | F73: N/A | G73: N/A | H73: N/A | I73: N/A
B74: Fleet | C74: N/A | D74: N/A | E74: N/A | F74: N/A | G74: N/A | H74: N/A | I74: N/A
B75: Other non-network | C75: N/A | D75: N/A | E75: N/A | F75: N/A | G75: N/A | H75: N/A | I75: N/A
B76: Network overheads | C76: N/A | D76: N/A | E76: N/A | F76: N/A | G76: N/A | H76: N/A | I76: N/A
B77: Corporate overheads | C77: N/A | D77: N/A | E77: N/A | F77: N/A | G77: N/A | H77: N/A | I77: N/A
B78: Metering | C78: N/A | D78: N/A | E78: N/A | F78: N/A | G78: N/A | H78: N/A | I78: N/A
B79: capital contributions (included in the above) | C79: N/A | D79: N/A | E79: N/A | F79: N/A | G79: N/A | H79: N/A | I79: N/A
B80: Total | C80: =SUM(C68:C78) -> 0 | D80: 0 | E80: 0 | F80: 0 | G80: 0 | H80: 0 | I80: 0
B83: 2.1.6 - DUAL FUNCTION ASSETS OPEX BY CATEGORY
C84: =CONCATENATE("EXPENDITURE ($, real ", dms_DollarReal, ")") -> EXPENDITURE ($, real June 2026)
C85: =CRCP_y4 -> 2024-25 | D85: =CRCP_y5 -> 2025-26
B86: Vegetation management | C86: N/A | D86: N/A
B87: Maintenance | C87: N/A | D87: N/A
B88: Emergency response | C88: N/A | D88: N/A
B89: Non-network | C89: N/A | D89: N/A
B90: Export services | C90: N/A | D90: N/A
B91: Metering | C91: N/A | D91: N/A
B92: Network overheads | C92: N/A | D92: N/A
B93: Corporate overheads | C93: N/A | D93: N/A
B94: Total | C94: =SUM(C86:C93) -> 0 | D94: =SUM(D86:D93) -> 0
B97: 2.1.7 - STANDARD CONTROL SERVICES (TOTAL) CAPITAL CONTRIBUTIONS
C98: =CONCATENATE("EXPENDITURE ($, real ", dms_DollarReal, ")") -> EXPENDITURE ($, real June 2026)
C99: =CRCP_y4 -> 2024-25 | D99: =CRCP_y5 -> 2025-26 | E99: =FRCP_y1 -> 2026-27 | F99: =FRCP_y2 -> 2027-28 | G99: =FRCP_y3 -> 2028-29 | H99: =FRCP_y4 -> 2029-30 | I99: =FRCP_y5 -> 2030-31
B100: Replacement expenditure | C100: 6936768.048 | D100: 7658989.619 | E100: 6046689.028 | F100: 5863200.788 | G100: 7529359.493 | H100: 7309261.853 | I100: 5616735.57
B101: Connections | C101: 110330916.2 | D101: 172917585 | E101: 170575964.4 | F101: 140435651.1 | G101: 189837303.5 | H101: 177117429.1 | I101: 149415640.6
B102: Augmentation Expenditure | C102: 45534944.46 | D102: 0 | E102: 0 | F102: 0 | G102: 0 | H102: 0 | I102: 0
B103: Export services | C103: 0 | D103: 0 | E103: 0 | F103: 0 | G103: 0 | H103: 0 | I103: 0
B104: ICT | C104: 0 | D104: 0 | E104: 0 | F104: 0 | G104: 0 | H104: 0 | I104: 0
B105: Property | C105: 0 | D105: 0 | E105: 0 | F105: 0 | G105: 0 | H105: 0 | I105: 0
B106: Fleet | C106: 0 | D106: 0 | E106: 0 | F106: 0 | G106: 0 | H106: 0 | I106: 0
B107: Other non-network | C107: 0 | D107: 0 | E107: 0 | F107: 0 | G107: 0 | H107: 0 | I107: 0
B108: Network overheads
B109: Corporate overheads
B110: Metering
B111: Total | C111: =SUM(C100:C110) -> 162802628.7 | D111: 180576574.6 | E111: 176622653.4 | F111: 146298851.9 | G111: 197366663 | H111: 184426691 | I111: 155032376.2
B114: 2.1.8 - STANDARD CONTROL SERVICES (TOTAL) CAPITALISED OVERHEADS
C115: =CONCATENATE("EXPENDITURE ($, real ", dms_DollarReal, ")") -> EXPENDITURE ($, real June 2026)
C116: =CRCP_y4 -> 2024-25 | D116: =CRCP_y5 -> 2025-26 | E116: =FRCP_y1 -> 2026-27 | F116: =FRCP_y2 -> 2027-28 | G116: =FRCP_y3 -> 2028-29 | H116: =FRCP_y4 -> 2029-30 | I116: =FRCP_y5 -> 2030-31
B117: Replacement expenditure | C117: 8578501.461 | D117: 6041097.149 | E117: 8160956.365 | F117: 12266415.25 | G117: 10823472.72 | H117: 10978397.95 | I117: 10678892.15
B118: Connections | C118: 23164970.39 | D118: 29714385.31 | E118: 25884308.83 | F118: 23215151.88 | G118: 29924057.9 | H118: 29288294.98 | I118: 28130496.66
B119: Augmentation Expenditure | C119: 4845075.484 | D119: 5428669.912 | E119: 9638738.907 | F119: 8240695.515 | G119: 3672342.814 | H119: 4040274.86 | I119: 3124523.628
B120: Export services | C120: 157133.9593 | D120: 172418.7616 | E120: 624025.9172 | F120: 867238.8678 | G120: 882588.406 | H120: 747896.7695 | I120: 970579.8423
B121: ICT | C121: 0 | D121: 0 | E121: 0 | F121: 0 | G121: 0 | H121: 0 | I121: 0
B122: Property | C122: 0 | D122: 0 | E122: 0 | F122: 0 | G122: 0 | H122: 0 | I122: 0
B123: Fleet | C123: 0 | D123: 0 | E123: 0 | F123: 0 | G123: 0 | H123: 0 | I123: 0
B124: Other non-network | C124: 0 | D124: 0 | E124: 0 | F124: 0 | G124: 0 | H124: 0 | I124: 0
B125: Metering | C125: 0 | D125: 0 | E125: 0 | F125: 0 | G125: 0 | H125: 0 | I125: 0
B126: capital contributions (included in the above) | C126: 16092000.39 | D126: 20778099.84 | E126: 18592061.27 | F126: 15561637.53 | G126: 21006948.06 | H126: 20384327.34 | I126: 19162399.73
B127: Total | C127: =SUM(C117:C125) -> 36745681.3 | D127: 41356571.13 | E127: 44308030.02 | F127: 44589501.51 | G127: 45302461.84 | H127: 45054864.56 | I127: 42904492.28

Sheet 2.2 Repex
B1: =INDEX(dms_Worksheet_List,MATCH(dms_Model,dms_Model_List)) -> REGULATORY REPORTING STATEMENT
B2: =INDEX(dms_TradingNameFull_List,MATCH(dms_TradingName,dms_TradingName_List)) -> Jemena Electricity
B3: =CONCATENATE("REGULATORY PERIOD FROM ", FRCP_y1," TO ",dms_MultiYear_FinalYear_Result) -> REGULATORY PERIOD FROM 2026-27 TO 2030-31
B4: 2.2 REPEX
B5: TEMPLATE DATE - SEPTEMBER 2024 - FINAL RIN
B8: 2.2.1 - REPLACEMENT EXPENDITURE, VOLUMES AND ASSET FAILURES BY ASSET CATEGORY
B9: EXPENDITURE
D10: =CONCATENATE("EXPENDITURE ($, real ", dms_DollarReal, ")") -> EXPENDITURE ($, real June 2026)
B11: ASSET GROUP | C11: ASSET CATEGORY | D11: =CRCP_y4 -> 2024-25 | E11: =CRCP_y5 -> 2025-26 | F11: =FRCP_y1 -> 2026-27 | G11: =FRCP_y2 -> 2027-28 | H11: =FRCP_y3 -> 2028-29 | I11: =FRCP_y4 -> 2029-30 | J11: =FRCP_y5 -> 2030-31
B12: POLES BY: HIGHEST OPERATING VOLTAGE; MATERIAL TYPE | C12: ˂ = 1 kV; wood | D12: 1767585.537 | E12: 1806451.065 | F12: 2207875.787 | G12: 2566078.471 | H12: 2588200.06 | I12: 2614874.798 | J12: 2638668.305
C13: > 1 kV & < = 11 kV; wood | D13: 384538.3198 | E13: 388909.7979 | F13: 595162.8988 | G13: 825340.7698 | H13: 832235.8956 | I13: 840550.202 | J13: 847588.7242
C14: ˃ 11 kV & < = 22 kV; wood | D14: 2870544.826 | E14: 2903177.527 | F14: 4442838.832 | G14: 6161096.448 | H14: 6212567.957 | I14: 6274633.525 | J14: 6327175.476
C15: > 22 kV & < = 66 kV; wood | D15: 220493.7203 | E15: 217096.7486 | F15: 742270.8243 | G15: 1221792.975 | H15: 1231443.667 | I15: 1243080.701 | J15: 1252275.118
C16: > 66 kV & < = 132 kV; wood | D16: 0 | E16: 0 | F16: 0 | G16: 0 | H16: 0 | I16: 0 | J16: 0
C17: > 132 kV; wood | D17: 0 | E17: 0 | F17: 0 | G17: 0 | H17: 0 | I17: 0 | J17: 0
C18: ˂ = 1 kV; concrete | D18: 45851.7649 | E18: 46859.94982 | F18: 57273.04246 | G18: 66564.94088 | H18: 67138.78237 | I18: 67830.73407 | J18: 68447.94565
C19: > 1 kV & < = 11 kV; concrete | D19: 0 | E19: 0 | F19: 0 | G19: 0 | H19: 0 | I19: 0 | J19: 0
C20: ˃ 11 kV & < = 22 kV; concrete | D20: 50597.14734 | E20: 51172.34183 | F20: 78310.90774 | G20: 108597.4697 | H20: 109504.7231 | I20: 110598.7108 | J20: 111524.8321
C21: > 22 kV & < = 66 kV; concrete | D21: 0 | E21: 0 | F21: 0 | G21: 16076.22336 | H21: 16203.20615 | I21: 16356.32501 | J21: 16477.30419
C22: > 66 kV & < = 132 kV; concrete | D22: 0 | E22: 0 | F22: 0 | G22: 0 | H22: 0 | I22: 0 | J22: 0
C23: > 132 kV; concrete | D23: 0 | E23: 0 | F23: 0 | G23: 0 | H23: 0 | I23: 0 | J23: 0
C24: ˂ = 1 kV; steel | D24: 6877.764735 | E24: 7028.992472 | F24: 8590.956368 | G24: 9984.741131 | H24: 10070.81736 | I24: 10174.61011 | J24: 10267.19185
C25: > 1 kV & < = 11 kV; steel | D25: 0 | E25: 0 | F25: 0 | G25: 0 | H25: 0 | I25: 0 | J25: 0
C26: ˃ 11 kV & < = 22 kV; steel | D26: 0 | E26: 0 | F26: 0 | G26: 0 | H26: 0 | I26: 0 | J26: 0
C27: > 22 kV & < = 66 kV; steel | D27: 0 | E27: 0 | F27: 0 | G27: 0 | H27: 0 | I27: 0 | J27: 0
C28: > 66 kV & < = 132 kV; steel | D28: 0 | E28: 0 | F28: 0 | G28: 0 | H28: 0 | I28: 0 | J28: 0
C29: > 132 kV; steel | D29: 0 | E29: 0 | F29: 0 | G29: 0 | H29: 0 | I29: 0 | J29: 0
C30: ˂ = 1 kV; composite pole | D30: 0 | E30: 0 | F30: 0 | G30: 0 | H30: 0 | I30: 0 | J30: 0
C31: > 1 kV & < = 11 kV; composite pole | D31: 0 | E31: 0 | F31: 0 | G31: 0 | H31: 0 | I31: 0 | J31: 0
C32: ˃ 11 kV & < = 22 kV; composite pole | D32: 0 | E32: 0 | F32: 0 | G32: 0 | H32: 0 | I32: 0 | J32: 0
C33: > 22 kV & < = 66 kV; composite pole | D33: 0 | E33: 0 | F33: 0 | G33: 0 | H33: 0 | I33: 0 | J33: 0
C34: > 66 kV & < = 132 kV; composite pole | D34: 0 | E34: 0 | F34: 0 | G34: 0 | H34: 0 | I34: 0 | J34: 0
C35: > 132 kV; composite pole | D35: 0 | E35: 0 | F35: 0 | G35: 0 | H35: 0 | I35: 0 | J35: 0
C36: ˂ = 1 kV; pole - other technology | D36: 0 | E36: 0 | F36: 0 | G36: 0 | H36: 0 | I36: 0 | J36: 0
C37: > 1 kV & < = 11 kV; pole - other technology | D37: 0 | E37: 0 | F37: 0 | G37: 0 | H37: 0 | I37: 0 | J37: 0
C38: ˃ 11 kV & < = 22 kV; pole - other technology | D38: 0 | E38: 0 | F38: 0 | G38: 0 | H38: 0 | I38: 0 | J38: 0
C39: > 22 kV & < = 66 kV; pole - other technology | D39: 0 | E39: 0 | F39: 0 | G39: 0 | H39: 0 | I39: 0 | J39: 0
C40: > 66 kV & < = 132 kV; pole - other technology | D40: 0 | E40: 0 | F40: 0 | G40: 0 | H40: 0 | I40: 0 | J40: 0
C41: > 132 kV; pole - other technology | D41: 0 | E41: 0 | F41: 0 | G41: 0 | H41: 0 | I41: 0 | J41: 0
C42: Other | D42: 0 | E42: 0 | F42: 0 | G42: 0 | H42: 0 | I42: 0 | J42: 0
B43: POLE TOP STRUCTURES BY: HIGHEST OPERATING VOLTAGE | C43: ˂ = 1 kV | D43: 3278177.975 | E43: 3487467.322 | F43: 5000970.83 | G43: 7064879.06 | H43: 7127844.48 | I43: 7203769.679 | J43: 7275865.87
C44: > 1 kV & < = 11 kV | D44: 549313.629 | E44: 576681.342 | F44: 646000.8866 | G44: 650326.54 | H44: 655746.7667 | I44: 662476.7454 | J44: 668802.4418
C45: ˃ 11 kV & < = 22 kV | D45: 1110834.228 | E45: 1166177.825 | F45: 1306357.348 | G45: 1315104.781 | H45: 1326065.684 | I45: 1339675.196 | J45: 1352467.16
C46: > 22 kV & < = 66 kV | D46: 64239.41638 | E46: 90457.19642 | F46: 151076.2195 | G46: 220502.8226 | H46: 221921.001 | I46: 223631.0741 | J46: 225254.906
C47: > 66 kV & < = 132 kV | D47: 0 | E47: 0 | F47: 0 | G47: 0 | H47: 0 | I47: 0 | J47: 0
C48: > 132 kV | D48: 0 | E48: 0 | F48: 0 | G48: 0 | H48: 0 | I48: 0 | J48: 0
C49: Other | D49: 0 | E49: 0 | F49: 0 | G49: 0 | H49: 0 | I49: 0 | J49: 0
B50: STAKING OF/ STAKED WOODEN POLES BY: HIGHEST OPERATING VOLTAGE | C50: ˂ = 1 Kv | D50: 517289.4926 | E50: 521477.6606 | F50: 524494.1534 | G50: 527226.4961 | H50: 530606.8682 | I50: 534683.001 | J50: 538553.5691
C51: > 1 kV & < = 11 kV | D51: 53602.5429 | E51: 61480.86014 | F51: 66890.18076 | G51: 85762.14084 | H51: 86433.10472 | I51: 87242.1689 | J51: 88010.43091
C52: ˃ 11 kV & < = 22 kV | D52: 231448.1227 | E52: 265465.5711 | F52: 288822.2448 | G52: 370308.6724 | H52: 373205.7986 | I52: 376699.2221 | J52: 380016.4677
C53: > 22 kV & < = 66 kV | D53: 68793.56823 | E53: 56589.48307 | F53: 46035.58095 | G53: 46330.12449 | H53: 46694.52486 | I53: 47133.92749 | J53: 47551.17046
C54: > 66 kV & < = 132 kV | D54: 0 | E54: 0 | F54: 0 | G54: 0 | H54: 0 | I54: 0 | J54: 0
C55: > 132 kV | D55: 0 | E55: 0 | F55: 0 | G55: 0 | H55: 0 | I55: 0 | J55: 0
B56: OVERHEAD CONDUCTORS BY: Highest operating voltage; Number of phases (at HV) | C56: ˂ = 1 kV | D56: 2973835.311 | E56: 2511389.153 | F56: 3682058.913 | G56: 742918.7043 | H56: 2405901.809 | I56: 3163900.784 | J56: 763197.0998
C57: > 1 kV & < = 11 kV | D57: 15590.1965 | E57: 12928.2794 | F57: 13081.16283 | G57: 13163.50858 | H57: 27839.54116 | I57: 42347.39414 | J57: 41016.36202
C58: ˃ 11 kV & < = 22 kV ; SWER | D58: 0 | E58: 0 | F58: 0 | G58: 0 | H58: 0 | I58: 0 | J58: 0
C59: ˃ 11 kV & < = 22 kV ; Single-Phase | D59: 0 | E59: 0 | F59: 0 | G59: 0 | H59: 0 | I59: 0 | J59: 0
C60: ˃ 11 kV & < = 22 kV ; Multiple-Phase | D60: 179864.5864 | E60: 149153.9653 | F60: 150917.7863 | G60: 151867.8118 | H60: 321185.6603 | I60: 488563.2157 | J60: 473207.0563
C61: > 22 kV & < = 66 kV | D61: 0 | E61: 0 | F61: 0 | G61: 0 | H61: 0 | I61: 0 | J61: 0
C62: > 66 kV & < = 132 kV | D62: 0 | E62: 0 | F62: 0 | G62: 0 | H62: 0 | I62: 0 | J62: 0
C63: > 132 kV | D63: 0 | E63: 0 | F63: 0 | G63: 0 | H63: 0 | I63: 0 | J63: 0
C64: Other | D64: 0 | E64: 0 | F64: 0 | G64: 0 | H64: 0 | I64: 0 | J64: 0
B65: UNDERGROUND CABLES BY: Highest operating voltage | C65: ˂ = 1 kV | D65: 660515.9923 | E65: 731301.2495 | F65: 716747.9061 | G65: 719575.2298 | H65: 724181.8149 | I65: 734618.342 | J65: 743748.4304
C66: > 1 kV & < = 11 kV | D66: 475239.2625 | E66: 162916.4749 | F66: 193669.1718 | G66: 665517.0765 | H66: 530531.3526 | I66: 546250.6644 | J66: 357878.5175
C67: > 11 kV & < = 22 kV | D67: 932408.7386 | E67: 319638.4575 | F67: 379974.5569 | G67: 1305729.528 | H67: 1040890.575 | I67: 1071731.511 | J67: 702149.5979
C68: > 22 kV & < = 33 kV | D68: 0 | E68: 0 | F68: 0 | G68: 0 | H68: 0 | I68: 0 | J68: 0
C69: > 33 kV & < = 66 kV | D69: 0 | E69: 0 | F69: 0 | G69: 8910021.28 | H69: 4228198.14 | I69: 5393541.144 | J69: 2785349.114
C70: > 66 kV & < = 132 kV | D70: 0 | E70: 0 | F70: 0 | G70: 0 | H70: 0 | I70: 0 | J70: 0
C71: > 132 kV | D71: 0 | E71: 0 | F71: 0 | G71: 0 | H71: 0 | I71: 0 | J71: 0
C72: Other | D72: 0 | E72: 0 | F72: 0 | G72: 0 | H72: 0 | I72: 0 | J72: 0
B73: SERVICE LINES BY: Connection voltage; Customer type; Connection complexity | C73: ˂ = 11 kV ; Residential ; Simple Type | D73: 3721297.993 | E73: 1782704.777 | F73: 7111804.301 | G73: 6628181.824 | H73: 5765467.341 | I73: 5793872.135 | J73: 5811999.343
C74: ˂ = 11 kV ; Commercial & Industrial ; Simple Type | D74: 155969.2323 | E74: 74717.77212 | F74: 298074.1287 | G74: 277804.2587 | H74: 241645.6614 | I74: 242836.1799 | J74: 243595.9381
C75: ˂ = 11 kV ; Residential ; Complex Type | D75: 0 | E75: 0 | F75: 0 | G75: 0 | H75: 0 | I75: 0 | J75: 0
C76: ˂ = 11 kV ; Commercial & Industrial ; Complex Type | D76: 0 | E76: 0 | F76: 0 | G76: 0 | H76: 0 | I76: 0 | J76: 0
C77: ˂ = 11 kV ; Subdivision ; Complex Type | D77: 0 | E77: 0 | F77: 0 | G77: 0 | H77: 0 | I77: 0 | J77: 0
C78: > 11 kV & < = 22 kV ; Commercial & Industrial | D78: 0 | E78: 0 | F78: 0 | G78: 0 | H78: 0 | I78: 0 | J78: 0
C79: > 11 kV & < = 22 kV ; Subdivision | D79: 0 | E79: 0 | F79: 0 | G79: 0 | H79: 0 | I79: 0 | J79: 0
C80: > 22 kV & < = 33 kV ; Commercial & Industrial | D80: 0 | E80: 0 | F80: 0 | G80: 0 | H80: 0 | I80: 0 | J80: 0
C81: > 22 kV & < = 33 kV ; Subdivision | D81: 0 | E81: 0 | F81: 0 | G81: 0 | H81: 0 | I81: 0 | J81: 0
C82: > 33 kV & < = 66 kV ; Commercial & Industrial | D82: 0 | E82: 0 | F82: 0 | G82: 0 | H82: 0 | I82: 0 | J82: 0
C83: > 33 kV & < = 66 kV ; Subdivision | D83: 0 | E83: 0 | F83: 0 | G83: 0 | H83: 0 | I83: 0 | J83: 0
C84: > 66 kV & < = 132 kV ; Commercial & Industrial | D84: 0 | E84: 0 | F84: 0 | G84: 0 | H84: 0 | I84: 0 | J84: 0
C85: > 66 kV & < = 132 kV ; Subdivision | D85: 0 | E85: 0 | F85: 0 | G85: 0 | H85: 0 | I85: 0 | J85: 0
C86: > 132 kV ; Commercial & Industrial | D86: 0 | E86: 0 | F86: 0 | G86: 0 | H86: 0 | I86: 0 | J86: 0
C87: > 132 kV ; Subdivision | D87: 0 | E87: 0 | F87: 0 | G87: 0 | H87: 0 | I87: 0 | J87: 0
C88: Other | D88: 0 | E88: 0 | F88: 0 | G88: 0 | H88: 0 | I88: 0 | J88: 0
B89: TRANSFORMERS BY: Mounting type; Highest operating voltage; Ampere rating; Number of phases (at LV) | C89: Pole Mounted ; < = 22kV ; < = 60 kVA ; Single Phase | D89: 250947.2127 | E89: 289516.3216 | F89: 287318.6119 | G89: 2939955.904 | H89: 2588633.002 | I89: 1143614.69 | J89: 293570.0213
C90: Pole Mounted ; < = 22kV ; > 60 kVA and < = 600 kVA ; Single Phase | D90: 0 | E90: 0 | F90: 0 | G90: 0 | H90: 0 | I90: 0 | J90: 0
C91: Pole Mounted ; < = 22kV ; > 600 kVA ; Single Phase | D91: 0 | E91: 0 | F91: 0 | G91: 0 | H91: 0 | I91: 0 | J91: 0
C92: Pole Mounted ; < = 22kV ; < = 60 kVA ; Multiple Phase | D92: 60713.03533 | E92: 70044.27136 | F92: 69512.56739 | G92: 711279.6542 | H92: 626282.178 | I92: 276680.9733 | J92: 71025.00515
C93: Pole Mounted ; < = 22kV ; > 60 kVA and < = 600 kVA ; Multiple Phase | D93: 485704.2827 | E93: 560354.1709 | F93: 556100.5391 | G93: 5690237.234 | H93: 5010257.424 | I93: 2213447.786 | J93: 568200.0412
C94: Pole Mounted ; < = 22kV ; > 600 kVA ; Multiple Phase | D94: 0 | E94: 0 | F94: 0 | G94: 0 | H94: 0 | I94: 0 | J94: 0
C95: Kiosk Mounted ; < = 22kV ; < = 60 kVA ; Single Phase | D95: 0 | E95: 0 | F95: 0 | G95: 0 | H95: 0 | I95: 0 | J95: 0
C96: Kiosk Mounted ; < = 22kV ; > 60 kVA and < = 600 kVA ; Single Phase | D96: 0 | E96: 0 | F96: 0 | G96: 0 | H96: 0 | I96: 0 | J96: 0
C97: Kiosk Mounted ; < = 22kV ; > 600 kVA ; Single Phase | D97: 0 | E97: 0 | F97: 0 | G97: 0 | H97: 0 | I97: 0 | J97: 0
C98: Kiosk Mounted ; < = 22kV ; < = 60 kVA ; Multiple Phase | D98: 0 | E98: 0 | F98: 0 | G98: 0 | H98: 0 | I98: 0 | J98: 0
C99: Kiosk Mounted ; < = 22kV ; > 60 kVA and < = 600 kVA ; Multiple Phase | D99: 250823.2025 | E99: 251441.92 | F99: 585669.7631 | G99: 628318.9064 | H99: 526036.2467 | I99: 576480.0544 | J99: 630335.4231
C100: Kiosk Mounted ; < = 22kV ; > 600 kVA ; Multiple Phase | D100: 91208.43726 | E100: 91433.42545 | F100: 161487.3368 | G100: 161957.7916 | H100: 162539.824 | I100: 163241.6526 | J100: 163908.087
C101: Ground Outdoor / Indoor Chamber Mounted; ˂ 22 kV ; < = 60 kVA ; Single Phase | D101: 0 | E101: 0 | F101: 0 | G101: 0 | H101: 0 | I101: 0 | J101: 0
C102: Ground Outdoor / Indoor Chamber Mounted; ˂ 22 kV ; > 60 kVA and < = 600 kVA ; Single Phase | D102: 0 | E102: 0 | F102: 0 | G102: 0 | H102: 0 | I102: 0 | J102: 0
C103: Ground Outdoor / Indoor Chamber Mounted; ˂ 22 kV ; > 600 kVA ; Single Phase | D103: 0 | E103: 0 | F103: 0 | G103: 0 | H103: 0 | I103: 0 | J103: 0
C104: Ground Outdoor / Indoor Chamber Mounted; ˂ 22 kV ; < = 60 kVA ; Multiple Phase | D104: 0 | E104: 0 | F104: 0 | G104: 0 | H104: 0 | I104: 0 | J104: 0
C105: Ground Outdoor / Indoor Chamber Mounted; ˂ 22 kV ; > 60 kVA and < = 600 kVA ; Multiple Phase | D105: 0 | E105: 0 | F105: 0 | G105: 0 | H105: 0 | I105: 0 | J105: 0
C106: Ground Outdoor / Indoor Chamber Mounted; ˂ 22 kV ; > 600 kVA ; Multiple Phase | D106: 127281.9516 | E106: 110471.6187 | F106: 120154.4259 | G106: 120512.0193 | H106: 120954.4232 | I106: 121487.8842 | J106: 121994.4421
C107: Ground Outdoor / Indoor Chamber Mounted; > = 22 kV & < = 33 kV ; < = 15 MVA | D107: 350025.367 | E107: 303796.9514 | F107: 330424.6711 | G107: 331408.0532 | H107: 332624.6637 | I107: 334091.6816 | J107: 335484.7159
C108: Ground Outdoor / Indoor Chamber Mounted; > = 22 kV & < = 33 kV ; > 15 MVA and < = 40 MVA | D108: 2987692.371 | E108: 3425319.305 | F108: 0 | G108: 0 | H108: 0 | I108: 0 | J108: 0
C109: Ground Outdoor / Indoor Chamber Mounted; > = 22 kV & < = 33 kV ; > 40 MVA | D109: 0 | E109: 0 | F109: 0 | G109: 0 | H109: 0 | I109: 0 | J109: 0
C110: Ground Outdoor / Indoor Chamber Mounted; > 33 kV & < = 66 kV ; < = 15 MVA | D110: 0 | E110: 0 | F110: 0 | G110: 0 | H110: 0 | I110: 0 | J110: 0
C111: Ground Outdoor / Indoor Chamber Mounted; > 33 kV & < = 66 kV ; > 15 MVA and < = 40 MVA | D111: 0 | E111: 0 | F111: 4524468.305 | G111: 7435094.817 | H111: 6524235.361 | I111: 7387548.093 | J111: 7469843.449
C112: Ground Outdoor / Indoor Chamber Mounted; > 33 kV & < = 66 kV ; > 40 MVA | D112: 0 | E112: 0 | F112: 0 | G112: 0 | H112: 0 | I112: 0 | J112: 0
C113: Ground Outdoor / Indoor Chamber Mounted; > 66 kV & < = 132 kV ; < = 100 MVA | D113: 0 | E113: 0 | F113: 0 | G113: 0 | H113: 0 | I113: 0 | J113: 0
C114: Ground Outdoor / Indoor Chamber Mounted; > 66 kV & < = 132 kV ; > 100 MVA | D114: 0 | E114: 0 | F114: 0 | G114: 0 | H114: 0 | I114: 0 | J114: 0
C115: Ground Outdoor / Indoor Chamber Mounted; > 132 kV ; < = 100 MVA | D115: 0 | E115: 0 | F115: 0 | G115: 0 | H115: 0 | I115: 0 | J115: 0
C116: Ground Outdoor / Indoor Chamber Mounted; > 132 kV ; > 100 MVA | D116: 0 | E116: 0 | F116: 0 | G116: 0 | H116: 0 | I116: 0 | J116: 0
C117: Other | D117: 0 | E117: 0 | F117: 0 | G117: 0 | H117: 0 | I117: 0 | J117: 0
B118: SWITCHGEAR BY: Highest operating voltage; Switch function | C118: ˂ = 11 kV ; FUSE | D118: 77363.74764 | E118: 76833.53966 | F118: 78808.11045 | G118: 79091.68161 | H118: 79544.36202 | I118: 80377.70483 | J118: 81072.85755
C119: ˂ = 11 kV ; Switch | D119: 343266.5061 | E119: 417702.5295 | F119: 1012979.549 | G119: 1834298.986 | H119: 1783291.253 | I119: 1752048.343 | J119: 1745868.683
C120: ˂ = 11 kV ; Circuit Breaker | D120: 48554.14395 | E120: 59082.92358 | F120: 143283.2915 | G120: 259456.7645 | H120: 252241.8548 | I120: 247822.6275 | J120: 246948.5308
C121: > 11 kV & < = 22 kV ; Switch | D121: 9954656.097 | E121: 7389444.51 | F121: 3288460.999 | G121: 5132643.177 | H121: 5811781.887 | I121: 4632522.661 | J121: 4831768.078
C122: > 11 kV & < = 22 kV ; Circuit Breaker | D122: 15806.33836 | E122: 10596.70322 | F122: 1545832.226 | G122: 2927436.599 | H122: 2209756.113 | I122: 1681365.685 | J122: 1976872.017
C123: > 22 kV & < = 33 kV ; Switch | D123: 0 | E123: 0 | F123: 0 | G123: 0 | H123: 0 | I123: 0 | J123: 0
C124: > 22 kV & < = 33 kV ; Circuit Breaker | D124: 0 | E124: 0 | F124: 0 | G124: 0 | H124: 0 | I124: 0 | J124: 0
C125: > 33 kV & < = 66 kV ; Switch | D125: 56351.25238 | E125: 0 | F125: 1911324.425 | G125: 2640957.973 | H125: 1581034.613 | I125: 2579799.263 | J125: 3312571.566
C126: > 33 kV & < = 66 kV ; Circuit Breaker | D126: 0 | E126: 0 | F126: 424738.7611 | G126: 548804.9389 | H126: 237155.192 | I126: 275142.2416 | J126: 269382.2756
C127: > 66 kV & < = 132 kV ; Switch | D127: 0 | E127: 0 | F127: 0 | G127: 0 | H127: 0 | I127: 0 | J127: 0
C128: > 66 kV & < = 132 kV ; Circuit Breaker | D128: 0 | E128: 0 | F128: 0 | G128: 0 | H128: 0 | I128: 0 | J128: 0
C129: > 132 kV ; Switch | D129: 0 | E129: 0 | F129: 0 | G129: 0 | H129: 0 | I129: 0 | J129: 0
C130: > 132 kV ; Circuit Breaker | D130: 0 | E130: 0 | F130: 0 | G130: 0 | H130: 0 | I130: 0 | J130: 0
C131: Other | D131: 0 | E131: 0 | F131: 0 | G131: 0 | H131: 0 | I131: 0 | J131: 0
B132: PUBLIC LIGHTING BY: Asset type ; Lighting obligation | C132: Luminaires ; Major Road
C133: Luminaires ; Minor Road
C134: Brackets ; Major Road
C135: Brackets ; Minor Road
C136: Lamps ; Major Road
C137: Lamps ; Minor Road
C138: Poles / Columns ; Major Road
C139: Poles / Columns ; Minor Road
C140: Other
B141: SCADA, NETWORK CONTROL AND PROTECTION SYSTEMS BY: Function | C141: Field Devices | D141: 3041921.513 | E141: 1276333.195 | F141: 12529793.45 | G141: 16666072.57 | H141: 8645668.859 | I141: 6172273.549 | J141: 0
C142: Local Network Wiring Assets | D142: - | E142: - | F142: - | G142: - | H142: - | I142: - | J142: -
C143: Communications Network Assets | D143: 118611.8486 | E143: 0 | F143: 0 | G143: 359374.5134 | H143: 857101.3298 | I143: 2095819.159 | J143: 4125059.653
C144: Master Station Assets | D144: - | E144: - | F144: - | G144: - | H144: - | I144: - | J144: -
C145: Communications Site Infrastructure | D145: - | E145: - | F145: - | G145: - | H145: - | I145: - | J145: -
C146: Communications Linear Assets | D146: - | E146: - | F146: - | G146: - | H146: - | I146: - | J146: -
C147: AFLC | D147: - | E147: - | F147: - | G147: - | H147: - | I147: - | J147: -
C148: Other | D148: - | E148: - | F148: - | G148: - | H148: - | I148: - | J148: -
B149: OTHER: | C149: CAPACITOR BANK (ST) | D149: - | E149: - | F149: - | G149: - | H149: - | I149: - | J149: -
C150: EARTHS (ST) | D150: 0 | E150: 0 | F150: 0 | G150: 0 | H150: 0 | I150: 111785.655 | J150: 235776.2179
C151: ZSS PROPERTY (ST) | D151: 679321.2622 | E151: 185140.4622 | F151: 1295236.377 | G151: 2474348.982 | H151: 2492328.184 | I151: 2924820.215 | J151: 3202067.848
C152: INDIRECT CAPITAL (EN) | D152: - | E152: - | F152: - | G152: - | H152: - | I152: - | J152: -
C153: SURGE DIVERTER | D153: 97694.52819 | E153: 127906.153 | F153: 165441.8759 | G153: 166598.208 | H153: 168043.9413 | I153: 169830.3152 | J153: 171512.2421
C154: CT/VT | D154: - | E154: - | F154: - | G154: - | H154: - | I154: - | J154: -
C155: NER | D155: - | E155: - | F155: - | G155: - | H155: - | I155: - | J155: -
C156: DC BATTERIES | D156: 715510.229 | E156: 134129.2379 | F156: 0 | G156: 0 | H156: 185075.1923 | I156: 656857.6684 | J156: 1466947.847
C157: DC BATTERY CHARGERS | D157: 0 | E157: 181307.0629 | F157: 0 | G157: 0 | H157: 203226.9684 | I157: 294419.7934 | J157: 0
C158: PQ METERS | D158: - | E158: - | F158: - | G158: - | H158: - | I158: - | J158: -
C159: Kiosk Transformer REFURBISHED | D159: - | E159: - | F159: - | G159: - | H159: - | I159: - | J159: -
C160: Rectification of Damaged Assets – Recoverable | D160: 3223036.265 | E160: 4054407.724 | F160: 3977377.386 | G160: 3862148.182 | H160: 3762960.254 | I160: 3694661.971 | J160: 3661842.909
C161: Customer initiated asset relocation – Subtransmission Asset | D161: 1072600.185 | E161: 1789972.685 | F161: 1748220.201 | G161: 1689934.83 | H161: 1637941.766 | I161: 1599098.011 | J161: 1576968.591
C162: Customer initiated asset relocation – In Line Poles/Stays | D162: 2308041.11 | E162: 3162027.694 | F162: 3095409.236 | G162: 2998411.441 | H162: 2913538.987 | I162: 2853044.571 | J162: 2821531.953
C163: Customer initiated asset relocation – Intersection Realignment | D163: 105077.035 | E163: 0 | F163: 0 | G163: 0 | H163: 0 | I163: 0 | J163: 0
C164: Customer initiated asset relocation – Substation Modification | D164: 379556.4555 | E164: 533243.03 | F164: 521541.4211 | G164: 504793.4503 | H164: 490024.2121 | I164: 479290.8583 | J164: 473480.6102
C165: Customer initiated asset relocation – Undergrounding of Assets | D165: 4284786.41 | E165: 4230351.856 | F165: 2207732.164 | G165: 2139501.108 | H165: 4866048.437 | I165: 4623701.645 | J165: 2016891.516
C166: Customer initiated asset relocation – Major Vic Roads | D166: 579328.8045 | E166: 333144.7999 | F166: 72049.18539 | G166: 71532.34031 | H166: 70855.58495 | I166: 70342.91452 | J166: 70203.41053
C167: Customer initiated asset relocation – Major New Road Projects | D167: - | E167: - | F167: - | G167: - | H167: - | I167: - | J167: -
B193: ASSET REPLACEMENTS
D194: VOLUMES (0's)
B195: ASSET GROUP | C195: ASSET CATEGORY | D195: =CRCP_y4 -> 2024-25 | E195: =CRCP_y5 -> 2025-26 | F195: =FRCP_y1 -> 2026-27 | G195: =FRCP_y2 -> 2027-28 | H195: =FRCP_y3 -> 2028-29 | I195: =FRCP_y4 -> 2029-30 | J195: =FRCP_y5 -> 2030-31
B196: POLES BY: HIGHEST OPERATING VOLTAGE; MATERIAL TYPE | C196: ˂ = 1 kV; wood | D196: 151 | E196: 154 | F196: 187 | G196: 216 | H196: 216 | I196: 216 | J196: 216
C197: > 1 kV & < = 11 kV; wood | D197: 26 | E197: 24 | F197: 33 | G197: 46 | H197: 46 | I197: 46 | J197: 46
C198: ˃ 11 kV & < = 22 kV; wood | D198: 195 | E198: 183 | F198: 247 | G198: 340 | H198: 340 | I198: 340 | J198: 340
C199: > 22 kV & < = 66 kV; wood | D199: 8 | E199: 8 | F199: 28 | G199: 46 | H199: 46 | I199: 46 | J199: 46
C200: > 66 kV & < = 132 kV; wood | D200: - | E200: - | F200: - | G200: - | H200: - | I200: - | J200: -
C201: > 132 kV; wood | D201: - | E201: - | F201: - | G201: - | H201: - | I201: - | J201: -
C202: ˂ = 1 kV; concrete | D202: 4 | E202: 4 | F202: 5 | G202: 6 | H202: 6 | I202: 6 | J202: 6
C203: > 1 kV & < = 11 kV; concrete | D203: - | E203: - | F203: - | G203: - | H203: - | I203: - | J203: -
C204: ˃ 11 kV & < = 22 kV; concrete | D204: 3 | E204: 3 | F204: 4 | G204: 6 | H204: 6 | I204: 6 | J204: 6
C205: > 22 kV & < = 66 kV; concrete | D205: 0 | E205: 0 | F205: 0 | G205: 1 | H205: 1 | I205: 1 | J205: 1
C206: > 66 kV & < = 132 kV; concrete | D206: - | E206: - | F206: - | G206: - | H206: - | I206: - | J206: -
C207: > 132 kV; concrete | D207: - | E207: - | F207: - | G207: - | H207: - | I207: - | J207: -
C208: ˂ = 1 kV; steel | D208: 1 | E208: 1 | F208: 1 | G208: 1 | H208: 1 | I208: 1 | J208: 1
C209: > 1 kV & < = 11 kV; steel | D209: - | E209: - | F209: - | G209: - | H209: - | I209: - | J209: -
C210: ˃ 11 kV & < = 22 kV; steel | D210: - | E210: - | F210: - | G210: - | H210: - | I210: - | J210: -
C211: > 22 kV & < = 66 kV; steel | D211: - | E211: - | F211: - | G211: - | H211: - | I211: - | J211: -
C212: > 66 kV & < = 132 kV; steel | D212: - | E212: - | F212: - | G212: - | H212: - | I212: - | J212: -
C213: > 132 kV; steel | D213: - | E213: - | F213: - | G213: - | H213: - | I213: - | J213: -
C214: ˂ = 1 kV; composite pole | D214: - | E214: - | F214: - | G214: - | H214: - | I214: - | J214: -
C215: > 1 kV & < = 11 kV; composite pole | D215: - | E215: - | F215: - | G215: - | H215: - | I215: - | J215: -
C216: ˃ 11 kV & < = 22 kV; composite pole | D216: - | E216: - | F216: - | G216: - | H216: - | I216: - | J216: -
C217: > 22 kV & < = 66 kV; composite pole | D217: - | E217: - | F217: - | G217: - | H217: - | I217: - | J217: -
C218: > 66 kV & < = 132 kV; composite pole | D218: - | E218: - | F218: - | G218: - | H218: - | I218: - | J218: -
C219: > 132 kV; composite pole | D219: - | E219: - | F219: - | G219: - | H219: - | I219: - | J219: -
C220: ˂ = 1 kV; pole - other technology | D220: - | E220: - | F220: - | G220: - | H220: - | I220: - | J220: -
C221: > 1 kV & < = 11 kV; pole - other technology | D221: - | E221: - | F221: - | G221: - | H221: - | I221: - | J221: -
C222: ˃ 11 kV & < = 22 kV; pole - other technology | D222: - | E222: - | F222: - | G222: - | H222: - | I222: - | J222: -
C223: > 22 kV & < = 66 kV; pole - other technology | D223: - | E223: - | F223: - | G223: - | H223: - | I223: - | J223: -
C224: > 66 kV & < = 132 kV; pole - other technology | D224: - | E224: - | F224: - | G224: - | H224: - | I224: - | J224: -
C225: > 132 kV; pole - other technology | D225: - | E225: - | F225: - | G225: - | H225: - | I225: - | J225: -
C226: Other | D226: - | E226: - | F226: - | G226: - | H226: - | I226: - | J226: -
B227: POLE TOP STRUCTURES BY: HIGHEST OPERATING VOLTAGE | C227: ˂ = 1 kV | D227: 939 | E227: 994 | F227: 1426 | G227: 2000 | H227: 2000 | I227: 2000 | J227: 2000
... 287 more rows

Sheet 2.3 Augex (b)
B1: =INDEX(dms_Worksheet_List,MATCH(dms_Model,dms_Model_List)) -> REGULATORY REPORTING STATEMENT
B2: =INDEX(dms_TradingNameFull_List,MATCH(dms_TradingName,dms_TradingName_List)) -> Jemena Electricity
B3: =CONCATENATE("REGULATORY PERIOD FROM ", FRCP_y1," TO ",dms_MultiYear_FinalYear_Result) -> REGULATORY PERIOD FROM 2026-27 TO 2030-31
B4: 2.3 AUGEX PROJECT DATA
B5: TEMPLATE DATE - SEPTEMBER 2024 - FINAL RIN
B7: There are FOUR tables on this worksheet. These tables have been 'grouped' (and sub-grouped) for easy navigation. See the Instructions sheet on how to group or ungroup tables.
B9: NOTE: DNSP must provide expenditure information on an 'as incurred' basis.
B10: 2.3.3 - AUGEX DATA - HV/LV FEEDERS AND DISTRIBUTION SUBSTATIONS
D11: VOLUMES
B12: PROJECT TYPE | C12: UNITS | D12: =CRCP_y4 -> 2024-25 | E12: =CRCP_y5 -> 2025-26 | F12: =FRCP_y1 -> 2026-27 | G12: =FRCP_y2 -> 2027-28 | H12: =FRCP_y3 -> 2028-29 | I12: =FRCP_y4 -> 2029-30 | J12: =FRCP_y5 -> 2030-31
B13: DESCRIPTOR METRICS - UNITS ADDED
B14: HV feeder augmentations - overhead conductor | C14: Circuit Line Length in KM | D14: 1 | E14: 1 | F14: 7 | G14: 1 | H14: 3 | I14: 2 | J14: 1
B15: HV feeder augmentations - underground asset (cable) | C15: Circuit Line Length in KM | D15: - | E15: 11 | F15: 17 | G15: 3 | H15: - | I15: 1 | J15: 1
B16: LV feeder augmentations - overhead conductor | C16: Circuit Line Length in KM | D16: 4 | E16: 4 | F16: 4 | G16: 4 | H16: 4 | I16: 4 | J16: 4
B17: LV feeder augmentations - underground asset (cable) | C17: Circuit Line Length in KM | D17: - | E17: - | F17: - | G17: - | H17: - | I17: - | J17: -
B18: Distribution Substation Augmentations - Pole Mounted | C18: Number | D18: 10 | E18: 11 | F18: 12 | G18: 13 | H18: 13 | I18: 13 | J18: 13
B19: Distribution Substation Augmentations - Ground Mounted | C19: Number | D19: 1 | E19: 1 | F19: 1 | G19: 1 | H19: 1 | I19: 1 | J19: 1
B20: Distribution Substation Augmentations - Indoor | C20: Number | D20: - | E20: - | F20: - | G20: - | H20: - | I20: - | J20: -
B21: DESCRIPTOR METRICS - UNITS UPGRADED
B22: HV feeder augmentations - overhead conductor | C22: Circuit Line Length in KM | D22: 6 | E22: - | F22: - | G22: - | H22: 14 | I22: - | J22: -
B23: HV feeder augmentations - underground asset (cable) | C23: Circuit Line Length in KM | D23: - | E23: - | F23: - | G23: - | H23: - | I23: - | J23: -
B24: LV feeder augmentations - overhead conductor | C24: Circuit Line Length in KM | D24: 4 | E24: 4 | F24: 4 | G24: 4 | H24: 4 | I24: 4 | J24: 4
B25: LV feeder augmentations - underground asset (cable) | C25: Circuit Line Length in KM | D25: - | E25: - | F25: - | G25: - | H25: - | I25: - | J25: -
B26: Distribution Substation Augmentations - Pole Mounted | C26: Number | D26: 10 | E26: 19 | F26: 20 | G26: 22 | H26: 13 | I26: 13 | J26: 13
B27: Distribution Substation Augmentations - Ground Mounted | C27: Number | D27: 1 | E27: 6 | F27: 6 | G27: 7 | H27: 1 | I27: 1 | J27: 1
B28: Distribution Substation Augmentations - Indoor | C28: Number | D28: - | E28: 7 | F28: 7 | G28: 9 | H28: - | I28: - | J28: -
B30: COST METRICS
D31: =CONCATENATE("TOTAL DIRECT EXPENDITURE ($, real ", dms_DollarReal,")") -> TOTAL DIRECT EXPENDITURE ($, real June 2026)
B32: PROJECT TYPE | D32: =CRCP_y4 -> 2024-25 | E32: =CRCP_y5 -> 2025-26 | F32: =FRCP_y1 -> 2026-27 | G32: =FRCP_y2 -> 2027-28 | H32: =FRCP_y3 -> 2028-29 | I32: =FRCP_y4 -> 2029-30 | J32: =FRCP_y5 -> 2030-31
B33: HV feeder augmentations - overhead conductor | D33: 298233.2517 | E33: 1173158.823 | F33: 3212840.088 | G33: 3292029.804 | H33: 1019068.201 | I33: 1608485.674 | J33: 950379.2681
B34: HV feeder augmentations - underground asset (cable) | D34: 2398076.498 | E34: 9433302.91 | F34: 25834263.15 | G34: 26471023.13 | H34: 8194269.046 | I34: 12933741.18 | J34: 7641945.268
B35: HV feeder non-material projects | D35: 527.1680475 | E35: 2073.718616 | F35: 5679.134122 | G35: 5819.112772 | H35: 1801.342375 | I35: 2843.218343 | J35: 1679.925294
B36: LV feeder augmentations - overhead conductor | D36: 1002405.684 | E36: 1412322.008 | F36: 2569747.046 | G36: 2583535.298 | H36: 2600593.708 | I36: 2621163.144 | J36: 2640695.236
B37: LV feeder augmentations - underground asset (cable) | D37: 92928.83949 | E37: 130930.4678 | F37: 238230.5034 | G37: 239508.7546 | H37: 241090.1685 | I37: 242997.0748 | J37: 244807.8134
B38: LV feeder non-material projects | D38: 95294.13352 | E38: 134263.0076 | F38: 244294.1236 | G38: 245604.9098 | H38: 247226.575 | I38: 249182.0173 | J38: 251038.8441
B39: Distribution substation augmentations - pole mounted | D39: 1750001.718 | E39: 3532384.235 | F39: 3674207.135 | G39: 3815230.608 | H39: 3843094.855 | I39: 3876694.225 | J39: 3908599.135
B40: Distribution substation augmentations - ground mounted | D40: 401078.7772 | E40: 809578.8334 | F40: 842082.8903 | G40: 874403.7285 | H40: 880789.8696 | I40: 888490.4303 | J40: 895802.6415
B41: Distribution substation augmentations - indoor | D41: 91544.95534 | E41: 184783.794 | F41: 192202.7416 | G41: 199579.8702 | H41: 201037.4866 | I41: 202795.1151 | J41: 204464.104
B45: 2.3.4 - AUGEX - TOTAL EXPENDITURE
D46: =CONCATENATE("TOTAL DIRECT EXPENDITURE ($, real ", dms_DollarReal,")") -> TOTAL DIRECT EXPENDITURE ($, real June 2026)
D47: =CRCP_y4 -> 2024-25 | E47: =CRCP_y5 -> 2025-26 | F47: =FRCP_y1 -> 2026-27 | G47: =FRCP_y2 -> 2027-28 | H47: =FRCP_y3 -> 2028-29 | I47: =FRCP_y4 -> 2029-30 | J47: =FRCP_y5 -> 2030-31
B48: Subtransmission Substations, Switching Stations, Zone Substations | D48: 12791712.38 | E48: 12839198.83 | F48: 24667710.36 | G48: 21752731.26 | H48: 6458696.856 | I48: 2470450.931 | J48: 0
B49: Subtransmission Lines | D49: 8065432.901 | E49: 11439267.89 | F49: 19513964.64 | G49: 9747101.309 | H49: 5822647.156 | I49: 4172183.797 | J49: 2144047.083
B50: HV Feeders | D50: 2696836.917 | E50: 10608535.45 | F50: 29052782.37 | G50: 29768872.04 | H50: 9215138.59 | I50: 14545070.08 | J50: 8594004.461
B51: HV Feeders - Land Purchases and Easements
B52: Distribution Substations | D52: 2242625.45 | E52: 4526746.862 | F52: 4708492.767 | G52: 4889214.207 | H52: 4924922.211 | I52: 4967979.771 | J52: 5008865.881
B53: Distribution Substations - Land Purchases and Easements
B54: LV Feeders | D54: 1190628.657 | E54: 1677515.484 | F54: 3052271.673 | G54: 3068648.963 | H54: 3088910.452 | I54: 3113342.236 | J54: 3136541.893
B55: LV Feeders - Land Purchases and Easements
B56: Other Assets | D56: 2405024.319 | E56: 654496.1407 | F56: 927603.5765 | G56: 0 | H56: 1318274.487 | I56: 3242888.832 | J56: 3269082.878
B60: 2.3.5 - AUGEX - BY DRIVER
D61: =CONCATENATE("TOTAL DIRECT EXPENDITURE ($, real ", dms_DollarReal,")") -> TOTAL DIRECT EXPENDITURE ($, real June 2026)
D62: =CRCP_y4 -> 2024-25 | E62: =CRCP_y5 -> 2025-26 | F62: =FRCP_y1 -> 2026-27 | G62: =FRCP_y2 -> 2027-28 | H62: =FRCP_y3 -> 2028-29 | I62: =FRCP_y4 -> 2029-30 | J62: =FRCP_y5 -> 2030-31
B63: "Greenfield" driven augex (network expansion capex) | D63: 10831930.52 | E63: 23956862.91 | F63: 45230985.57 | G63: 31594504.21 | H63: 9555276.561 | I63: 7831259.446 | J63: 6393715.936
B64: Reinforcement driven augex (augmentation of the existing network) | D64: 18560330.1 | E64: 17788897.75 | F64: 36691839.83 | G64: 37632063.57 | H64: 21273313.19 | I64: 24680656.2 | J64: 15758826.26
B68: 2.3.6 - AUGEX - GREENFIELDS DRIVEN
D69: =CONCATENATE("TOTAL DIRECT EXPENDITURE ($, real ", dms_DollarReal,")") -> TOTAL DIRECT EXPENDITURE ($, real June 2026)
D70: =CRCP_y4 -> 2024-25 | E70: =CRCP_y5 -> 2025-26 | F70: =FRCP_y1 -> 2026-27 | G70: =FRCP_y2 -> 2027-28 | H70: =FRCP_y3 -> 2028-29 | I70: =FRCP_y4 -> 2029-30 | J70: =FRCP_y5 -> 2030-31
B71: Subtransmission Substations, Switching Stations, Zone Substations | D71: 0 | E71: 1091660.452 | F71: 16729504.75 | G71: 9889182.405 | H71: 0 | I71: 0 | J71: 0
B72: Subtransmission Lines | D72: 6118008.609 | E72: 9251432.361 | F72: 10829125.2 | G72: 5971373.553 | H72: 4786523.236 | I72: 2992675.789 | J72: 2144047.083
B73: HV Feeders | D73: 2696836.917 | E73: 10511638.92 | F73: 14228773.41 | G73: 12194160.38 | H73: 1203880.253 | I73: 1243462.259 | J73: 625824.5951
B74: HV Feeders - Land Purchases and Easements
B75: Distribution Substations | D75: 1121312.725 | E75: 2263373.431 | F75: 2354246.383 | G75: 2444607.103 | H75: 2462461.106 | I75: 2483989.885 | J75: 2504432.94
B76: Distribution Substations - Land Purchases and Easements
B77: LV Feeders | D77: 895772.2708 | E77: 838757.7418 | F77: 1089335.826 | G77: 1095180.774 | H77: 1102411.967 | I77: 1111131.511 | J77: 1119411.318
B78: LV Feeders - Land Purchases and Easements
B79: Other Assets | D79: 0 | E79: 0 | F79: 0 | G79: 0 | H79: 0 | I79: 0 | J79: 0

Sheet 2.5 Connections
B1: =INDEX(dms_Worksheet_List,MATCH(dms_Model,dms_Model_List)) -> REGULATORY REPORTING STATEMENT
B2: =INDEX(dms_TradingNameFull_List,MATCH(dms_TradingName,dms_TradingName_List)) -> Jemena Electricity
B3: =CONCATENATE("REGULATORY PERIOD FROM ", FRCP_y1," TO ",dms_MultiYear_FinalYear_Result) -> REGULATORY PERIOD FROM 2026-27 TO 2030-31
B4: 2.5 CONNECTIONS
B5: TEMPLATE DATE - SEPTEMBER 2024 - FINAL RIN
B7: There are THREE tables on this worksheet - each has been 'grouped' (and sub-grouped) for easy navigation. See the Instructions sheet on how to group or ungroup tables.
B9: 2.5.1 - DESCRIPTOR METRICS
B10: VOLUMES AND EXPENDITURE - ALL SERVICE CLASSIFICATIONS
B11: CONNECTION SUBCATEGORY | C11: DESCRIPTOR METRIC | D11: Unit of Measure | E11: =CONCATENATE("VOLUMES and EXPENDITURE (0's, real ", dms_DollarReal, ")") -> VOLUMES and EXPENDITURE (0's, real June 2026)
E12: =CRCP_y4 -> 2024-25 | F12: =CRCP_y5 -> 2025-26 | G12: =FRCP_y1 -> 2026-27 | H12: =FRCP_y2 -> 2027-28 | I12: =FRCP_y3 -> 2028-29 | J12: =FRCP_y4 -> 2029-30 | K12: =FRCP_y5 -> 2030-31
B13: RESIDENTIAL | C13: Underground connections | D13: 0's | E13: 7268 | F13: 7269 | G13: 7112 | H13: 6912 | I13: 6892 | J13: 6894 | K13: 6892
C14: Overhead connections | D14: 0's | E14: 176 | F14: 176 | G14: 173 | H14: 168 | I14: 167 | J14: 167 | K14: 167
C15: Distribution substations installed | D15: MVA | E15: - | F15: - | G15: - | H15: - | I15: - | J15: - | K15: -
C16: Distribution substations installed | D16: Number of substations | E16: - | F16: - | G16: - | H16: - | I16: - | J16: - | K16: -
C17: Distribution substations installed | D17: $ | E17: - | F17: - | G17: - | H17: - | I17: - | J17: - | K17: -
C18: Augmentation HV | D18: km added | E18: - | F18: - | G18: - | H18: - | I18: - | J18: - | K18: -
C19: Augmentation HV | D19: $ | E19: - | F19: - | G19: - | H19: - | I19: - | J19: - | K19: -
C20: Augmentation LV | D20: km added | E20: 29 | F20: 29 | G20: 28 | H20: 27 | I20: 27 | J20: 27 | K20: 27
C21: Augmentation LV | D21: $ | E21: 19776316 | F21: 20014192 | G21: 25561801 | H21: 22655368 | I21: 22668156 | J21: 22887919 | K21: 23177729
C22: Mean days to connect residential customer with LV single phase connection | D22: 0's | E22: 9 | F22: 9 | G22: 9 | H22: 9 | I22: 9 | J22: 9 | K22: 9
C23: Volume of GSL breaches for residential customers | D23: 0's | E23: 44 | F23: 44 | G23: 44 | H23: 44 | I23: 44 | J23: 44 | K23: 44
C24: Volume of customer complaints relating to connection services | D24: 0's | E24: 82 | F24: 82 | G24: 82 | H24: 82 | I24: 82 | J24: 82 | K24: 82
C25: GSL payments | D25: $ | E25: 10401 | F25: 10401 | G25: 10401 | H25: 10401 | I25: 10401 | J25: 10401 | K25: 10401
B26: COMMERCIAL/INDUSTRIAL | C26: Underground connections | D26: 0's | E26: 225 | F26: 236 | G26: 234 | H26: 232 | I26: 223 | J26: 219 | K26: 220
C27: Overhead connections | D27: 0's | E27: 74 | F27: 78 | G27: 77 | H27: 77 | I27: 74 | J27: 72 | K27: 73
C28: Distribution substations installed | D28: MVA | E28: 53 | F28: 68 | G28: 75 | H28: 76 | I28: 50 | J28: 56 | K28: 60
C29: Distribution substations installed | D29: Number of substations | E29: 68 | F29: 88 | G29: 97 | H29: 98 | I29: 64 | J29: 73 | K29: 77
C30: Distribution substations installed | D30: $ | E30: 7231633 | F30: 10253891 | G30: 10559153 | H30: 11191745 | I30: 8110189 | J30: 9170753 | K30: 9727277
C31: Augmentation HV | D31: km added | E31: 15 | F31: 19 | G31: 21 | H31: 22 | I31: 14 | J31: 16 | K31: 17
C32: Augmentation HV | D32: $ | E32: 24486563 | F32: 34720038 | G32: 35753665 | H32: 37895641 | I32: 27461386 | J32: 31052494 | K32: 32936904
C33: Augmentation LV | D33: km added | E33: 14 | F33: 18 | G33: 20 | H33: 20 | I33: 13 | J33: 15 | K33: 16
C34: Augmentation LV | D34: $ | E34: 9319911 | F34: 13214907 | G34: 13608320 | H34: 14423584 | I34: 10452168 | J34: 11818991 | K34: 12536223
B35: SUBDIVISION | C35: Underground connections | D35: 0's | E35: 1777 | F35: 1777 | G35: 1739 | H35: 1690 | I35: 1685 | J35: 1685 | K35: 1685
C36: Overhead connections | D36: 0's | E36: - | F36: - | G36: - | H36: - | I36: - | J36: - | K36: -
C37: Distribution substations installed | D37: MVA | E37: 19 | F37: 19 | G37: 18 | H37: 18 | I37: 18 | J37: 18 | K37: 18
C38: Distribution substations installed | D38: Number of substations | E38: 35 | F38: 35 | G38: 35 | H38: 34 | I38: 33 | J38: 33 | K38: 33
C39: Distribution substations installed | D39: $ | E39: 1260328 | F39: 1638141 | G39: 1622279 | H39: 1593882 | I39: 1585790 | J39: 1591390 | K39: 1597660
C40: Augmentation HV | D40: km added | E40: 12 | F40: 12 | G40: 12 | H40: 12 | I40: 12 | J40: 12 | K40: 12
C41: Augmentation HV | D41: $ | E41: 6179344 | F41: 8031748 | G41: 7953977 | H41: 7814746 | I41: 7775074 | J41: 7802526 | K41: 7833268
C42: Augmentation LV | D42: km added | E42: 36 | F42: 36 | G42: 35 | H42: 34 | I42: 34 | J42: 34 | K42: 34
C43: Augmentation LV | D43: $ | E43: 6930197 | F43: 9007688 | G43: 8920467 | H43: 8764318 | I43: 8719825 | J43: 8750613 | K43: 8785090
C44: Cost per lot | D44: $ | E44: 9519 | F44: 9519 | G44: 9519 | H44: 9519 | I44: 9519 | J44: 9519 | K44: 9519
B45: EMBEDDED GENERATION | C45: Underground connections | D45: 0's | E45: 3428 | F45: 3482 | G45: 3535 | H45: 3587 | I45: 3639 | J45: 3690 | K45: 3742
C46: Overhead connections | D46: 0's | E46: 1887 | F46: 1917 | G46: 1946 | H46: 1975 | I46: 2003 | J46: 2032 | K46: 2060
C47: Distribution substations installed | D47: MVA | E47: - | F47: - | G47: - | H47: - | I47: - | J47: - | K47: -
C48: Distribution substations installed | D48: Number of substations | E48: - | F48: - | G48: - | H48: - | I48: - | J48: - | K48: -
C49: Distribution substations installed | D49: $ | E49: - | F49: - | G49: - | H49: - | I49: - | J49: - | K49: -
C50: Augmentation HV | D50: km added | E50: - | F50: - | G50: - | H50: - | I50: - | J50: - | K50: -
C51: Augmentation HV | D51: $ | E51: - | F51: - | G51: - | H51: - | I51: - | J51: - | K51: -
C52: Augmentation LV | D52: km added | E52: - | F52: - | G52: - | H52: - | I52: - | J52: - | K52: -
C53: Augmentation LV | D53: $ | E53: - | F53: - | G53: - | H53: - | I53: - | J53: - | K53: -
B55: VOLUMES AND EXPENDITURE - STANDARD CONTROL SERVICES
B56: CONNECTION SUBCATEGORY | C56: DESCRIPTOR METRIC | D56: Unit of Measure | E56: =CONCATENATE("VOLUMES and EXPENDITURE (0's, real ", dms_DollarReal, ")") -> VOLUMES and EXPENDITURE (0's, real June 2026)
E57: =CRCP_y4 -> 2024-25 | F57: =CRCP_y5 -> 2025-26 | G57: =FRCP_y1 -> 2026-27 | H57: =FRCP_y2 -> 2027-28 | I57: =FRCP_y3 -> 2028-29 | J57: =FRCP_y4 -> 2029-30 | K57: =FRCP_y5 -> 2030-31
B58: RESIDENTIAL | C58: Underground connections | D58: 0's | E58: - | F58: - | G58: - | H58: - | I58: - | J58: - | K58: -
C59: Overhead connections | D59: 0's | E59: - | F59: - | G59: - | H59: - | I59: - | J59: - | K59: -
C60: Distribution substations installed | D60: MVA | E60: - | F60: - | G60: - | H60: - | I60: - | J60: - | K60: -
C61: Distribution substations installed | D61: Number of substations | E61: - | F61: - | G61: - | H61: - | I61: - | J61: - | K61: -
C62: Distribution substations installed | D62: $ | E62: - | F62: - | G62: - | H62: - | I62: - | J62: - | K62: -
C63: Augmentation HV | D63: km added | E63: - | F63: - | G63: - | H63: - | I63: - | J63: - | K63: -
C64: Augmentation HV | D64: $ | E64: - | F64: - | G64: - | H64: - | I64: - | J64: - | K64: -
C65: Augmentation LV | D65: km added | E65: 17 | F65: 17 | G65: 17 | H65: 16 | I65: 16 | J65: 16 | K65: 16
C66: Augmentation LV | D66: $ | E66: 10171430 | F66: 10289410 | G66: 13268304 | H66: 11945802 | I66: 11949287 | J66: 12062303 | K66: 12212234
C67: Mean days to connect residential customer with LV single phase connection | D67: 0's | E67: 9 | F67: 9 | G67: 9 | H67: 9 | I67: 9 | J67: 9 | K67: 9
C68: Volume of GSL breaches for residential customers | D68: 0's | E68: 24 | F68: 24 | G68: 24 | H68: 24 | I68: 24 | J68: 24 | K68: 24
C69: Volume of customer complaints relating to connection services | D69: 0's | E69: 44 | F69: 44 | G69: 44 | H69: 44 | I69: 44 | J69: 44 | K69: 44
C70: GSL payments | D70: $ | E70: 5566 | F70: 5566 | G70: 5566 | H70: 5566 | I70: 5566 | J70: 5566 | K70: 5566
B71: COMMERCIAL/INDUSTRIAL | C71: Underground connections | D71: 0's | E71: 225 | F71: 236 | G71: 234 | H71: 232 | I71: 223 | J71: 219 | K71: 220
C72: Overhead connections | D72: 0's | E72: 74 | F72: 78 | G72: 77 | H72: 77 | I72: 74 | J72: 72 | K72: 73
C73: Distribution substations installed | D73: MVA | E73: 53 | F73: 68 | G73: 75 | H73: 76 | I73: 50 | J73: 56 | K73: 60
C74: Distribution substations installed | D74: Number of substations | E74: 68 | F74: 88 | G74: 97 | H74: 98 | I74: 64 | J74: 73 | K74: 77
C75: Distribution substations installed | D75: $ | E75: 7231633 | F75: 10253891 | G75: 10559153 | H75: 11191745 | I75: 8110189 | J75: 9170753 | K75: 9727277
C76: Augmentation HV | D76: km added | E76: 15 | F76: 19 | G76: 21 | H76: 22 | I76: 14 | J76: 16 | K76: 17
C77: Augmentation HV | D77: $ | E77: 24486563 | F77: 34720038 | G77: 35753665 | H77: 37895641 | I77: 27461386 | J77: 31052494 | K77: 32936904
C78: Augmentation LV | D78: km added | E78: 14 | F78: 18 | G78: 20 | H78: 20 | I78: 13 | J78: 15 | K78: 16
C79: Augmentation LV | D79: $ | E79: 9319911 | F79: 13214907 | G79: 13608320 | H79: 14423584 | I79: 10452168 | J79: 11818991 | K79: 12536223
B80: SUBDIVISION | C80: Underground connections | D80: 0's | E80: 1777 | F80: 1777 | G80: 1739 | H80: 1690 | I80: 1685 | J80: 1685 | K80: 1685
C81: Overhead connections | D81: 0's | E81: - | F81: - | G81: - | H81: - | I81: - | J81: - | K81: -
C82: Distribution substations installed | D82: MVA | E82: 19 | F82: 19 | G82: 18 | H82: 18 | I82: 18 | J82: 18 | K82: 18
C83: Distribution substations installed | D83: Number of substations | E83: 35 | F83: 35 | G83: 35 | H83: 34 | I83: 33 | J83: 33 | K83: 33
C84: Distribution substations installed | D84: $ | E84: 1260328 | F84: 1638141 | G84: 1622279 | H84: 1593882 | I84: 1585790 | J84: 1591390 | K84: 1597660
C85: Augmentation HV | D85: km added | E85: 12 | F85: 12 | G85: 12 | H85: 12 | I85: 12 | J85: 12 | K85: 12
C86: Augmentation HV | D86: $ | E86: 6179344 | F86: 8031748 | G86: 7953977 | H86: 7814746 | I86: 7775074 | J86: 7802526 | K86: 7833268
C87: Augmentation LV | D87: km added | E87: 36 | F87: 36 | G87: 35 | H87: 34 | I87: 34 | J87: 34 | K87: 34
C88: Augmentation LV | D88: $ | E88: 6930197 | F88: 9007688 | G88: 8920467 | H88: 8764318 | I88: 8719825 | J88: 8750613 | K88: 8785090
C89: Cost per lot | D89: $ | E89: 9519 | F89: 9519 | G89: 9519 | H89: 9519 | I89: 9519 | J89: 9519 | K89: 9519
B90: EMBEDDED GENERATION | C90: Underground connections | D90: 0's | E90: - | F90: - | G90: - | H90: - | I90: - | J90: - | K90: -
C91: Overhead connections | D91: 0's | E91: - | F91: - | G91: - | H91: - | I91: - | J91: - | K91: -
C92: Distribution substations installed | D92: MVA | E92: - | F92: - | G92: - | H92: - | I92: - | J92: - | K92: -
C93: Distribution substations installed | D93: Number of substations | E93: - | F93: - | G93: - | H93: - | I93: - | J93: - | K93: -
C94: Distribution substations installed | D94: $ | E94: - | F94: - | G94: - | H94: - | I94: - | J94: - | K94: -
C95: Augmentation HV | D95: km added | E95: - | F95: - | G95: - | H95: - | I95: - | J95: - | K95: -
C96: Augmentation HV | D96: $ | E96: - | F96: - | G96: - | H96: - | I96: - | J96: - | K96: -
C97: Augmentation LV | D97: km added | E97: - | F97: - | G97: - | H97: - | I97: - | J97: - | K97: -
C98: Augmentation LV | D98: $ | E98: - | F98: - | G98: - | H98: - | I98: - | J98: - | K98: -
B102: 2.5.2 - COST METRICS BY CONNECTION CLASSIFICATION
B103: EXPENDITURE - ALL SERVICE CLASSIFICATIONS INCLUDING CAPITAL CONTRIBUTIONS
B104: CONNECTION SUBCATEGORY | C104: CONNECTION CLASSICIATION | E104: =CONCATENATE("EXPENDITURE ($, real ", dms_DollarReal, ")") -> EXPENDITURE ($, real June 2026)
E105: =CRCP_y4 -> 2024-25 | F105: =CRCP_y5 -> 2025-26 | G105: =FRCP_y1 -> 2026-27 | H105: =FRCP_y2 -> 2027-28 | I105: =FRCP_y3 -> 2028-29 | J105: =FRCP_y4 -> 2029-30 | K105: =FRCP_y5 -> 2030-31
B106: RESIDENTIAL | C106: Simple connection LV | E106: 19776316 | F106: 20014192 | G106: 25561801 | H106: 22655368 | I106: 22668156 | J106: 22887919 | K106: 23177729
C107: Complex connection LV | E107: - | F107: - | G107: - | H107: - | I107: - | J107: - | K107: -
C108: Complex connection HV | E108: - | F108: - | G108: - | H108: - | I108: - | J108: - | K108: -
B109: COMMERCIAL/INDUSTRIAL | C109: Simple connection LV | E109: 5568735 | F109: 6716167 | G109: 6075606 | H109: 6023757 | I109: 5920999 | J109: 5839825 | K109: 5813005
C110: Complex connection HV (customer connected at LV, minor HV works) | E110: 17777711 | F110: 21440790 | G110: 19176691 | H110: 19009992 | I110: 18680489 | J110: 18419596 | K110: 18332308
C111: Complex connection HV (customer connected at LV, upstream asset works) | E111: 4607577 | F111: 5556963 | G111: 4970161 | H111: 4926956 | I111: 4841556 | J111: 4773939 | K111: 4751316
C112: Complex connection HV (customer connected at HV) | E112: 18038290 | F112: 36365014 | G112: 36634571 | H112: 107431538 | I112: 152460505 | J112: 142005008 | K112: 128647612
C113: Complex connection sub-transmission | E113: 78460038 | F113: 140182033 | G113: 131612648 | H113: 37560614 | I113: 49206291 | J113: 44316725 | K113: 21324823
B114: SUBDIVISION | C114: Complex connection LV | E114: 2756832 | F114: 3583257 | G114: 3548561 | H114: 3486445 | I114: 3468745 | J114: 3480993 | K114: 3494708
C115: Complex connection HV (no upstream asset works) | E115: 9874772 | F115: 12834968 | G115: 12710687 | H115: 12488192 | I115: 12424795 | J115: 12468665 | K115: 12517791
C116: Complex connection HV (with upstream asset works) | E116: 1738266 | F116: 2259352 | G116: 2237475 | H116: 2198309 | I116: 2187149 | J116: 2194871 | K116: 2203519
B117: EMBEDDED GENERATION | C117: Simple connection LV | E117: - | F117: - | G117: - | H117: - | I117: - | J117: - | K117: -
C118: Complex connection HV (small capacity) | E118: - | F118: - | G118: - | H118: - | I118: - | J118: - | K118: -
C119: Complex connection HV (large capacity) | E119: - | F119: - | G119: - | H119: - | I119: - | J119: - | K119: -
B121: EXPENDITURE - STANDARD CONTROL SERVICES EXCLUDING CAPITAL CONTRIBUTIONS
E122: =CONCATENATE("EXPENDITURE ($, real ", dms_DollarReal, ")") -> EXPENDITURE ($, real June 2026)
E123: =CRCP_y4 -> 2024-25 | F123: =CRCP_y5 -> 2025-26 | G123: =FRCP_y1 -> 2026-27 | H123: =FRCP_y2 -> 2027-28 | I123: =FRCP_y3 -> 2028-29 | J123: =FRCP_y4 -> 2029-30 | K123: =FRCP_y5 -> 2030-31
B124: RESIDENTIAL | C124: Simple connection LV | E124: 5918417 | F124: 5986655 | G124: 7660898 | H124: 6907790 | I124: 6910664 | J124: 6976154 | K124: 7062631
C125: Complex connection LV | E125: - | F125: - | G125: - | H125: - | I125: - | J125: - | K125: -
C126: Complex connection HV | E126: - | F126: - | G126: - | H126: - | I126: - | J126: - | K126: -
B127: COMMERCIAL/INDUSTRIAL | C127: Simple connection LV | E127: 1999869 | F127: 2416615 | G127: 2195634 | H127: 2177758 | I127: 2141627 | J127: 2113476 | K127: 2104915
C128: Complex connection HV (customer connected at LV, minor HV works) | E128: 6384411 | F128: 7714836 | G128: 6943624 | H128: 6886205 | I128: 6770423 | J128: 6680027 | K128: 6652197
C129: Complex connection HV (customer connected at LV, upstream asset works) | E129: 1654694 | F129: 1999510 | G129: 1799629 | H129: 1784747 | I129: 1754739 | J129: 1731311 | K129: 1724098
C130: Complex connection HV (customer connected at HV) | E130: 7713584 | F130: 15221851 | G130: 16524666 | H130: 35180326 | I130: 41502305 | J130: 39412170 | K130: 35893897
C131: Complex connection sub-transmission | E131: 20914138 | F131: 38612113 | G131: 29484114 | H131: 11071389 | I131: 13334905 | J131: 12009832 | K131: 5779027
B132: SUBDIVISION | C132: Complex connection LV | E132: 1420959 | F132: 1853488 | G132: 1840084 | H132: 1811381 | I132: 1806474 | J132: 1818004 | K132: 1830037
C133: Complex connection HV (no upstream asset works) | E133: 5089772 | F133: 6639061 | G133: 6591046 | H133: 6488234 | I133: 6470661 | J133: 6511957 | K133: 6555058
C134: Complex connection HV (with upstream asset works) | E134: 895958 | F134: 1168680 | G134: 1160228 | H134: 1142130 | I134: 1139037 | J134: 1146306 | K134: 1153893
B135: EMBEDDED GENERATION | C135: Simple connection LV | E135: - | F135: - | G135: - | H135: - | I135: - | J135: - | K135: -
C136: Complex connection HV (small capacity) | E136: - | F136: - | G136: - | H136: - | I136: - | J136: - | K136: -
C137: Complex connection HV (large capacity) | E137: - | F137: - | G137: - | H137: - | I137: - | J137: - | K137: -
B139: EXPENDITURE - STANDARD CONTROL SERVICES - TYPE 1 CAPITAL CONTRIBUTIONS
E140: =CONCATENATE("EXPENDITURE ($, real ", dms_DollarReal, ")") -> EXPENDITURE ($, real June 2026)
E141: =CRCP_y4 -> 2024-25 | F141: =CRCP_y5 -> 2025-26 | G141: =FRCP_y1 -> 2026-27 | H141: =FRCP_y2 -> 2027-28 | I141: =FRCP_y3 -> 2028-29 | J141: =FRCP_y4 -> 2029-30 | K141: =FRCP_y5 -> 2030-31
B142: RESIDENTIAL | C142: Simple connection LV | E142: 4253013 | F142: 4302755 | G142: 5607406 | H142: 5038012 | I142: 5038623 | J142: 5086149 | K142: 5149603
C143: Complex connection LV | E143: - | F143: - | G143: - | H143: - | I143: - | J143: - | K143: -
C144: Complex connection HV | E144: - | F144: - | G144: - | H144: - | I144: - | J144: - | K144: -
B145: COMMERCIAL/INDUSTRIAL | C145: Simple connection LV | E145: 3118386 | F145: 3742306 | G145: 3386605 | H145: 3359363 | I145: 3304075 | J145: 3261125 | K145: 3248304
C146: Complex connection HV (customer connected at LV, minor HV works) | E146: 9955181 | F146: 11946991 | G146: 10658035 | H146: 10570242 | I146: 10392723 | J146: 10254378 | K146: 10212283
C147: Complex connection HV (customer connected at LV, upstream asset works) | E147: 2580156 | F147: 3096387 | G147: 2762319 | H147: 2739566 | I147: 2693557 | J147: 2657701 | K147: 2646791
C148: Complex connection HV (customer connected at HV) | E148: 10324707 | F148: 21143163 | G148: 20109905 | H148: 72251212 | I148: 110958200 | J148: 102592838 | K148: 92753715
C149: Complex connection sub-transmission | E149: 57545900 | F149: 101569920 | G149: 102128534 | H149: 26489225 | I149: 35871386 | J149: 32306892 | K149: 15545796
B150: SUBDIVISION | C150: Complex connection LV | E150: 207357 | F150: 270382 | G150: 268369 | H150: 264176 | I150: 263452 | J150: 265123 | K150: 266868
C151: Complex connection HV (no upstream asset works) | E151: 742739 | F151: 968487 | G151: 961277 | H151: 946258 | I151: 943665 | J151: 949652 | K151: 955904
C152: Complex connection HV (with upstream asset works) | E152: 130745 | F152: 170484 | G152: 169214 | H152: 166571 | I152: 166114 | J152: 167168 | K152: 168269
B153: EMBEDDED GENERATION | C153: Simple connection LV | E153: - | F153: - | G153: - | H153: - | I153: - | J153: - | K153: -
C154: Complex connection HV (small capacity) | E154: - | F154: - | G154: - | H154: - | I154: - | J154: - | K154: -
C155: Complex connection HV (large capacity) | E155: - | F155: - | G155: - | H155: - | I155: - | J155: - | K155: -
B159: 2.5.3 - VOLUMES BY CONNECTION CLASSIFICATION
B160: NEW CONNECTIONS - ALL
E161: VOLUMES
E162: =CRCP_y4 -> 2024-25 | F162: =CRCP_y5 -> 2025-26 | G162: =FRCP_y1 -> 2026-27 | H162: =FRCP_y2 -> 2027-28 | I162: =FRCP_y3 -> 2028-29 | J162: =FRCP_y4 -> 2029-30 | K162: =FRCP_y5 -> 2030-31
B163: RESIDENTIAL | C163: Simple connection LV | E163: 7445 | F163: 7446 | G163: 7284 | H163: 7080 | I163: 7060 | J163: 7061 | K163: 7060
C164: Complex connection LV | E164: - | F164: - | G164: - | H164: - | I164: - | J164: - | K164: -
C165: Complex connection HV | E165: - | F165: - | G165: - | H165: - | I165: - | J165: - | K165: -
B166: COMMERCIAL/INDUSTRIAL | C166: Simple connection LV | E166: 62 | F166: 65 | G166: 65 | H166: 64 | I166: 62 | J166: 61 | K166: 60
C167: Complex connection HV (customer connected at LV, minor HV works) | E167: 104 | F167: 109 | G167: 109 | H167: 107 | I167: 105 | J167: 102 | K167: 101
C168: Complex connection HV (customer connected at LV, upstream asset works) | E168: 29 | F168: 30 | G168: 30 | H168: 30 | I168: 29 | J168: 28 | K168: 28
C169: Complex connection HV (customer connected at HV) | E169: 4 | F169: 7 | G169: 3 | H169: 4 | I169: 2 | J169: 3 | K169: 7
C170: Complex connection sub-transmission | E170: 1 | F170: 1 | G170: 9 | H170: 2 | I170: 1 | J170: 2 | K170: -
B171: SUBDIVISION | C171: Complex connection LV | E171: 535 | F171: 536 | G171: 524 | H171: 509 | I171: 508 | J171: 508 | K171: 508
C172: Complex connection HV (no upstream asset works) | E172: 1018 | F172: 1018 | G172: 996 | H172: 968 | I172: 965 | J172: 965 | K172: 965
C173: Complex connection HV (with upstream asset works) | E173: 218 | F173: 218 | G173: 213 | H173: 207 | I173: 207 | J173: 207 | K173: 207
B174: EMBEDDED GENERATION | C174: Simple connection LV | E174: 5314 | F174: 5399 | G174: 5482 | H174: 5562 | I174: 5642 | J174: 5722 | K174: 5802
C175: Complex connection HV (small capacity) | E175: - | F175: - | G175: - | H175: - | I175: - | J175: - | K175: -
C176: Complex connection HV (large capacity) | E176: - | F176: - | G176: - | H176: - | I176: - | J176: - | K176: -
B178: NEW CONNECTIONS - STANDARD CONTROL SERVICES
E179: VOLUMES
E180: =CRCP_y4 -> 2024-25 | F180: =CRCP_y5 -> 2025-26 | G180: =FRCP_y1 -> 2026-27 | H180: =FRCP_y2 -> 2027-28 | I180: =FRCP_y3 -> 2028-29 | J180: =FRCP_y4 -> 2029-30 | K180: =FRCP_y5 -> 2030-31
B181: RESIDENTIAL | C181: Simple connection LV | E181: - | F181: - | G181: - | H181: - | I181: - | J181: - | K181: -
C182: Complex connection LV | E182: - | F182: - | G182: - | H182: - | I182: - | J182: - | K182: -
C183: Complex connection HV | E183: - | F183: - | G183: - | H183: - | I183: - | J183: - | K183: -
B184: COMMERCIAL/INDUSTRIAL | C184: Simple connection LV | E184: 62 | F184: 65 | G184: 65 | H184: 64 | I184: 62 | J184: 61 | K184: 60
C185: Complex connection HV (customer connected at LV, minor HV works) | E185: 104 | F185: 109 | G185: 109 | H185: 107 | I185: 105 | J185: 102 | K185: 101
C186: Complex connection HV (customer connected at LV, upstream asset works) | E186: 29 | F186: 30 | G186: 30 | H186: 30 | I186: 29 | J186: 28 | K186: 28
C187: Complex connection HV (customer connected at HV) | E187: 4 | F187: 7 | G187: 3 | H187: 4 | I187: 2 | J187: 3 | K187: 7
C188: Complex connection sub-transmission | E188: 1 | F188: 1 | G188: 9 | H188: 2 | I188: 1 | J188: 2 | K188: -
B189: SUBDIVISION | C189: Complex connection LV | E189: 535 | F189: 536 | G189: 524 | H189: 509 | I189: 508 | J189: 508 | K189: 508
C190: Complex connection HV (no upstream asset works) | E190: 1018 | F190: 1018 | G190: 996 | H190: 968 | I190: 965 | J190: 965 | K190: 965
C191: Complex connection HV (with upstream asset works) | E191: 218 | F191: 218 | G191: 213 | H191: 207 | I191: 207 | J191: 207 | K191: 207
B192: EMBEDDED GENERATION | C192: Simple connection LV | E192: - | F192: - | G192: - | H192: - | I192: - | J192: - | K192: -
C193: Complex connection HV (small capacity) | E193: - | F193: - | G193: - | H193: - | I193: - | J193: - | K193: -
C194: Complex connection HV (large capacity) | E194: - | F194: - | G194: - | H194: - | I194: - | J194: - | K194: -
B196: EXISTING CONNECTIONS - ALL
E197: VOLUMES
E198: =CRCP_y4 -> 2024-25 | F198: =CRCP_y5 -> 2025-26 | G198: =FRCP_y1 -> 2026-27 | H198: =FRCP_y2 -> 2027-28 | I198: =FRCP_y3 -> 2028-29 | J198: =FRCP_y4 -> 2029-30 | K198: =FRCP_y5 -> 2030-31
B199: RESIDENTIAL | C199: Simple connection LV | E199: - | F199: - | G199: - | H199: - | I199: - | J199: - | K199: -
C200: Complex connection LV | E200: - | F200: - | G200: - | H200: - | I200: - | J200: - | K200: -
C201: Complex connection HV | E201: - | F201: - | G201: - | H201: - | I201: - | J201: - | K201: -
B202: COMMERCIAL/INDUSTRIAL | C202: Simple connection LV | E202: 38 | F202: 40 | G202: 40 | H202: 39 | I202: 38 | J202: 37 | K202: 37
C203: Complex connection HV (customer connected at LV, minor HV works) | E203: 53 | F203: 56 | G203: 56 | H203: 55 | I203: 53 | J203: 52 | K203: 52
C204: Complex connection HV (customer connected at LV, upstream asset works) | E204: 8 | F204: 8 | G204: 8 | H204: 8 | I204: 8 | J204: 8 | K204: 8
C205: Complex connection HV (customer connected at HV) | E205: 1 | F205: 0 | G205: 0 | H205: 1 | I205: 0 | J205: 0 | K205: 1
C206: Complex connection sub-transmission | E206: - | F206: - | G206: 2 | H206: - | I206: - | J206: - | K206: 2
B207: SUBDIVISION | C207: Complex connection LV | E207: 6 | F207: 6 | G207: 6 | H207: 6 | I207: 6 | J207: 6 | K207: 6
C208: Complex connection HV (no upstream asset works) | E208: - | F208: - | G208: - | H208: - | I208: - | J208: - | K208: -
C209: Complex connection HV (with upstream asset works) | E209: - | F209: - | G209: - | H209: - | I209: - | J209: - | K209: -
B210: EMBEDDED GENERATION | C210: Simple connection LV | E210: - | F210: - | G210: - | H210: - | I210: - | J210: - | K210: -
C211: Complex connection HV (small capacity) | E211: - | F211: - | G211: - | H211: - | I211: - | J211: - | K211: -
C212: Complex connection HV (large capacity) | E212: - | F212: - | G212: - | H212: - | I212: - | J212: - | K212: -

Sheet 2.6 Non-network
B1: =INDEX(dms_Worksheet_List,MATCH(dms_Model,dms_Model_List)) -> REGULATORY REPORTING STATEMENT
B2: =INDEX(dms_TradingNameFull_List,MATCH(dms_TradingName,dms_TradingName_List)) -> Jemena Electricity
B3: =CONCATENATE("REGULATORY PERIOD FROM ", FRCP_y1," TO ",dms_MultiYear_FinalYear_Result) -> REGULATORY PERIOD FROM 2026-27 TO 2030-31
B4: 2.6 NON-NETWORK EXPENDITURE
B5: TEMPLATE DATE - SEPTEMBER 2024 - FINAL RIN
B7: There are THREE tables on this worksheet - each has been 'grouped' (and sub-grouped) for easy navigation. See the Instructions sheet on how to group or ungroup tables.
B9: 2.6.1 - NON-NETWORK EXPENDITURE
E10: =CONCATENATE("EXPENDITURE ($, real ", dms_DollarReal, ")") -> EXPENDITURE ($, real June 2026)
B11: SERVICE SUBCATEGORY | C11: ASSET CATEGORY | E11: =CRCP_y4 -> 2024-25 | F11: =CRCP_y5 -> 2025-26 | G11: =FRCP_y1 -> 2026-27 | H11: =FRCP_y2 -> 2027-28 | I11: =FRCP_y3 -> 2028-29 | J11: =FRCP_y4 -> 2029-30 | K11: =FRCP_y5 -> 2030-31
B12: OPEX
B13: IT & COMMUNICATIONS | C13: Total IT and communications | E13: 13228102.48 | F13: 15002596.22 | G13: 15061959.73 | H13: 17333738.49 | I13: 17867645.04 | J13: 18638970.59 | K13: 19723676.95
B14: MOTOR VEHICLES | C14: Car | E14: 40210.9042 | F14: 45572.74269 | G14: 45724.13891 | H14: 51517.91256 | I14: 55972.48814 | J14: 58859.8775 | K14: 59456.27188
C15: Light commercial vehicle | E15: 120672.9347 | F15: 136763.8135 | G15: 137218.1536 | H15: 154605.2699 | I15: 167973.4525 | J15: 176638.5087 | K15: 178428.2884
C16: Elevated work platform (LCV) | E16: 0 | F16: 0 | G16: 0 | H16: 0 | I16: 0 | J16: 0 | K16: 0
C17: Elevated work platform (HCV) | E17: 139031.8366 | F17: 157570.7445 | G17: 158094.2069 | H17: 178126.559 | I17: 193528.546 | J17: 203511.8839 | K17: 205573.9566
C18: Heavy commercial vehicle | E18: 3111.033863 | F18: 3525.868134 | G18: 3537.581344 | H18: 3985.833538 | I18: 4330.474768 | J18: 4553.866065 | K18: 4600.007855
B19: BUILDINGS AND PROPERTY | C19: Total buildings and property expenditure | E19: 8258803.541 | F19: 9360056.337 | G19: 9391151.177 | H19: 10581117.91 | I19: 11496030.55 | J19: 12089063.26 | K19: 12211555.01
B20: OTHER | C20: Other expenditure | E20: 0 | F20: 0 | G20: 0 | H20: 0 | I20: 0 | J20: 0 | K20: 0
B21: OTHER - DNSP nominated
B32: CAPEX
B33: IT & COMMUNICATIONS | C33: Total IT and communications | E33: 22770988.86 | F33: 32546840.57 | G33: 33197981.99 | H33: 25292413.27 | I33: 20230465.36 | J33: 22888368.32 | K33: 27704515.21
B34: MOTOR VEHICLES | C34: Car
C35: Light commercial vehicle | E35: 277872.9732 | F35: 601032.596 | G35: 6906745.91 | H35: 1604429.055 | I35: 2241179.888 | J35: 1317964.872 | K35: 0
C36: Elevated work platform (LCV) | E36: 0 | F36: 0 | G36: 887004.7628 | H36: 586104.5953 | I36: 1140432.255 | J36: 523655.6858 | K36: 0
C37: Elevated work platform (HCV) | E37: 1882706.943 | F37: 0 | G37: 2886152.225 | H37: 3115886.085 | I37: 2280412.325 | J37: 1294429.785 | K37: 1887457.405
C38: Heavy commercial vehicle | E38: 0 | F38: 0 | G38: 2376828.714 | H38: 1326115.438 | I38: 1299127.679 | J38: 0 | K38: 0
B39: BUILDINGS AND PROPERTY | C39: Total buildings and property expenditure | E39: 1178111.235 | F39: 308532.3814 | G39: 11317558.38 | H39: 4300146.16 | I39: 1557730.581 | J39: 325854.2803 | K39: 339898.8579
B40: OTHER | C40: Other expenditure
B41: OTHER - DNSP nominated | C41: Replacement of Vehicles - Plant | E41: 0 | F41: 0 | G41: 440814.4882 | H41: 43957.84465 | I41: 52905.65208 | J41: 48923.66987 | K41: 58888.67103
C42: Replacement of Vehicles - Trailer | E42: 0 | F42: 0 | G42: 660168.0781 | H42: 215561.2661 | I42: 270180.5736 | J42: 133343.9407 | K42: 11777.73421
C43: New trailer and carbonized oil filtration unit for Zinfra | E43: 0 | F43: 0 | G43: 505129.7353 | H43: 0 | I43: 0 | J43: 0 | K43: 0
C44: Primary plant condition monitoring equipment | E44: 0 | F44: 0 | G44: 0 | H44: 80805.99572 | I44: 116355.8604 | J44: 0 | K44: 102629.8364
C45: Tullamarine UPS Replacement | E45: 0 | F45: 0 | G45: 40394.23272 | H45: 0 | I45: 0 | J45: 37548.52591 | K45: 0
C46: Deployment of Mobile Emergency Response Vehicle | E46: 0 | F46: 0 | G46: 303020.3455 | H46: 288391.2457 | I46: 0 | J46: 0 | K46: 0
C47: Procurement of LV/HV generators | E47: 0 | F47: 0 | G47: 369349.3694 | H47: 369539.6146 | I47: 0 | J47: 0 | K47: 0
B55: 2.6.2 - ANNUAL DESCRIPTOR METRICS
B56: IT & COMMUNICATIONS
E57: VOLUMES
E58: =CRCP_y4 -> 2024-25 | F58: =CRCP_y5 -> 2025-26 | G58: =FRCP_y1 -> 2026-27 | H58: =FRCP_y2 -> 2027-28 | I58: =FRCP_y3 -> 2028-29 | J58: =FRCP_y4 -> 2029-30 | K58: =FRCP_y5 -> 2030-31
B59: Number of devices | E59: 310 | F59: 315 | G59: 320 | H59: 325 | I59: 330 | J59: 335 | K59: 340
B61: MOTOR VEHICLES
E62: VOLUMES or PER CENT
B63: ASSET CATEGORY | C63: DESCRIPTOR METRIC | D63: UNITS | E63: =CRCP_y4 -> 2024-25 | F63: =CRCP_y5 -> 2025-26 | G63: =FRCP_y1 -> 2026-27 | H63: =FRCP_y2 -> 2027-28 | I63: =FRCP_y3 -> 2028-29 | J63: =FRCP_y4 -> 2029-30 | K63: =FRCP_y5 -> 2030-31
B64: CAR | C64: Average kilometres travelled | D64: 0's | E64: 16000 | F64: 16000 | G64: 16000 | H64: 16000 | I64: 16000 | J64: 16000 | K64: 16000
C65: Number purchased | D65: 0's | E65: 52 | F65: 52 | G65: 63 | H65: 63 | I65: 63 | J65: 63 | K65: 63
C66: Number leased | D66: 0's | E66: 8 | F66: 9 | G66: - | H66: -
C67: Number in fleet | D67: 0's | E67: 60 | F67: 61 | G67: 63 | H67: 63 | I67: 63 | J67: 63 | K67: 63
C68: Proportion of total fleet expenditure allocated as regulatory expenditure | D68: % | E68: 1 | F68: 1 | G68: 1 | H68: 1 | I68: 1 | J68: 1 | K68: 1
B69: LIGHT COMMERCIAL VEHICLE | C69: Average kilometres travelled | D69: 0's | E69: 26240 | F69: 26240 | G69: 25000 | H69: 25000 | I69: 25000 | J69: 25000 | K69: 25000
C70: Number purchased | D70: 0's | E70: 100 | F70: 100 | G70: 198 | H70: 228 | I70: 228 | J70: 228 | K70: 228
C71: Number leased | D71: 0's | E71: 44 | F71: 86 | G71: - | H71: - | I71: - | J71: - | K71: -
C72: Number in fleet | D72: 0's
C73: Proportion of total fleet expenditure allocated as regulatory expenditure | D73: % | E73: 1 | F73: 1 | G73: 1 | H73: 1 | I73: 1 | J73: 1 | K73: 1
B74: ELEVATED WORK PLATFORM (LCV) | C74: Average kilometres travelled | D74: 0's | E74: - | F74: - | G74: - | H74: - | I74: - | J74: - | K74: -
C75: Number purchased | D75: 0's | E75: - | F75: - | G75: - | H75: - | I75: - | J75: - | K75: -
C76: Number leased | D76: 0's | E76: - | F76: - | G76: - | H76: - | I76: - | J76: - | K76: -
C77: Number in fleet | D77: 0's | E77: - | F77: - | G77: - | H77: - | I77: - | J77: - | K77: -
C78: Proportion of total fleet expenditure allocated as regulatory expenditure | D78: % | E78: 0 | F78: 0 | G78: 0 | H78: 0 | I78: 0 | J78: 0 | K78: 0
B79: ELEVATED WORK PLATFORM (HCV) | C79: Average kilometres travelled | D79: 0's | E79: 15000 | F79: 15000 | G79: 15000 | H79: 15000 | I79: 15000 | J79: 15000 | K79: 15000
C80: Number purchased | D80: 0's | E80: 24 | F80: 30 | G80: 48 | H80: 51 | I80: 51 | J80: 51 | K80: 51
C81: Number leased | D81: 0's | E81: 13 | F81: 18 | G81: 3 | H81: - | I81: - | J81: - | K81: -
C82: Number in fleet | D82: 0's | E82: 37 | F82: 48 | G82: 51 | H82: 51 | I82: 51 | J82: 51 | K82: 51
C83: Proportion of total fleet expenditure allocated as regulatory expenditure | D83: % | E83: 1 | F83: 1 | G83: 1 | H83: 1 | I83: 1 | J83: 1 | K83: 1
B84: HEAVY COMMERCIAL VEHICLE | C84: Average kilometres travelled | D84: 0's | E84: 9500 | F84: 9500 | G84: 9500 | H84: 9500 | I84: 9500 | J84: 9500 | K84: 9500
C85: Number purchased | D85: 0's | E85: 20 | F85: 20 | G85: 29 | H85: 29 | I85: 29 | J85: 29 | K85: 29
C86: Number leased | D86: 0's | E86: 7 | F86: 8
C87: Number in fleet | D87: 0's
C88: Proportion of total fleet expenditure allocated as regulatory expenditure | D88: % | E88: 1 | F88: 1 | G88: 1 | H88: 1 | I88: 1 | J88: 1 | K88: 1
B93: 2.6.5 - INFORMATION & COMMUNICATIONS TECHNOLOGY - CAPEX
E94: =CONCATENATE("EXPENDITURE ($, real ", dms_DollarReal, ")") -> EXPENDITURE ($, real June 2026)
E95: =CRCP_y4 -> 2024-25 | F95: =CRCP_y5 -> 2025-26 | G95: =FRCP_y1 -> 2026-27 | H95: =FRCP_y2 -> 2027-28 | I95: =FRCP_y3 -> 2028-29 | J95: =FRCP_y4 -> 2029-30 | K95: =FRCP_y5 -> 2030-31
B96: RECURRENT
B97: Total | E97: 9747829.709 | F97: 13019683.45 | G97: 6608306.087 | H97: 6730176.066 | I97: 6867185.897 | J97: 7020753.96 | K97: 7172382.423
B107: NON-RECURRENT
B108: Non-recurrent – new capability | E108: 0 | F108: 0 | G108: 6909766.518 | H108: 8178946.207 | I108: 11264051.87 | J108: 13905796.46 | K108: 15829698.53
B109: Non-recurrent – compliance | E109: 0 | F109: 0 | G109: 15023270.66 | H109: 9105811.651 | I109: 0 | J109: 0 | K109: 0
B110: Non-recurrent – maintain | E110: 13023159.15 | F110: 19527157.13 | G110: 4656638.725 | H110: 1277479.345 | I110: 2099227.593 | J110: 1961817.905 | K110: 4702434.258

Sheet 2.10 Overheads
B1: =INDEX(dms_Worksheet_List,MATCH(dms_Model,dms_Model_List)) -> REGULATORY REPORTING STATEMENT
B2: =INDEX(dms_TradingNameFull_List,MATCH(dms_TradingName,dms_TradingName_List)) -> Jemena Electricity
B3: =CONCATENATE("REGULATORY PERIOD FROM ", FRCP_y1," TO ",dms_MultiYear_FinalYear_Result) -> REGULATORY PERIOD FROM 2026-27 TO 2030-31
B4: 2.10 OVERHEADS
B5: TEMPLATE DATE - SEPTEMBER 2024 - FINAL RIN
B7: There are TWO tables on this worksheet. Each table has been 'grouped' (and sub-grouped) for easy navigation. See the Instructions sheet on how to group or ungroup data.
B9: 2.10.1 - NETWORK OVERHEADS EXPENDITURE
D10: =CONCATENATE("EXPENDITURE ($, real ", dms_DollarReal, ")") -> EXPENDITURE ($, real June 2026)
D11: =CRCP_y4 -> 2024-25 | E11: =CRCP_y5 -> 2025-26 | F11: =FRCP_y1 -> 2026-27 | G11: =FRCP_y2 -> 2027-28 | H11: =FRCP_y3 -> 2028-29 | I11: =FRCP_y4 -> 2029-30 | J11: =FRCP_y5 -> 2030-31
B12: OPEX
B13: Standard Control Services | C13: Total | D13: 29411533 | E13: 29433669.56 | F13: 33620215.6 | G13: 35173079.19 | H13: 36479448.92 | I13: 37742197.99 | J13: 39250843.45
B14: Alternative Control Services | C14: Total | D14: 3506886.508 | E14: 3601924.625 | F14: 4005126.17 | G14: 4038738.792 | H14: 4058001.466 | I14: 3989642.77 | J14: 3985577.465
B15: CAPEX
B16: Standard Control Services | C16: Total | D16: 36745681.3 | E16: 41356571.13 | F16: 44308030.02 | G16: 44589501.51 | H16: 45302461.84 | I16: 45054864.56 | J16: 42904492.28
B17: Alternative Control Services | C17: Total | D17: 551801.0608 | E17: 794977.5785 | F17: 1935926.981 | G17: 1880702.988 | H17: 1828303.845 | I17: 1558435.182 | J17: 1399936.685
B18: OTHER DISTRIBUTION SERVICES
B19: Negotiated Services | C19: Total
B20: Unregulated Distribution Services | C20: Total
B24: 2.10.2 - CORPORATE OVERHEADS EXPENDITURE
D25: =CONCATENATE("EXPENDITURE ($, real ", dms_DollarReal, ")") -> EXPENDITURE ($, real June 2026)
D26: =CRCP_y4 -> 2024-25 | E26: =CRCP_y5 -> 2025-26 | F26: =FRCP_y1 -> 2026-27 | G26: =FRCP_y2 -> 2027-28 | H26: =FRCP_y3 -> 2028-29 | I26: =FRCP_y4 -> 2029-30 | J26: =FRCP_y5 -> 2030-31
B27: OPEX
B28: Standard Control Services | C28: Total | D28: 20799304.53 | E28: 21361932.34 | F28: 23538441.4 | G28: 24768970.16 | H28: 25760886.29 | I28: 26707044.61 | J28: 27851298.81
B29: Alternative Control Services | C29: Total | D29: 6111251.624 | E29: 6263557.406 | F29: 7075207.791 | G29: 7184129.003 | H29: 7249202.518 | I29: 7259767.265 | J29: 7341399.42
B30: CAPEX
B31: Standard Control Services | C31: Total
B32: Alternative Control Services | C32: Total
B33: OTHER DISTRIBUTION SERVICES
B34: Negotiated Services | C34: Total
B35: Unregulated Distribution Services | C35: Total

Sheet 2.11 Labour
B1: =INDEX(dms_Worksheet_List,MATCH(dms_Model,dms_Model_List)) -> REGULATORY REPORTING STATEMENT
B2: =INDEX(dms_TradingNameFull_List,MATCH(dms_TradingName,dms_TradingName_List)) -> Jemena Electricity
B3: =CONCATENATE("REGULATORY PERIOD FROM ", FRCP_y1," TO ",dms_MultiYear_FinalYear_Result) -> REGULATORY PERIOD FROM 2026-27 TO 2030-31
B4: 2.11 LABOUR
B5: TEMPLATE DATE - SEPTEMBER 2024 - FINAL RIN
B7: Table numbering on this worksheet starts at 2.11.3.
B9: 2.11.3 - LABOUR / NON-LABOUR EXPENDITURE SPLIT - STANDARD CONTROL SERVICES
C10: =CONCATENATE("EXPENDITURE ($, real ", dms_DollarReal, ")") -> EXPENDITURE ($, real June 2026)
C11: =CRCP_y4 -> 2024-25 | D11: =CRCP_y5 -> 2025-26 | E11: =FRCP_y1 -> 2026-27 | F11: =FRCP_y2 -> 2027-28 | G11: =FRCP_y3 -> 2028-29 | H11: =FRCP_y4 -> 2029-30 | I11: =FRCP_y5 -> 2030-31
B12: OPEX
B13: In-house labour expenditure | C13: 38953061.4 | D13: 40006754.12 | E13: 43158986.87 | F13: 45612069.53 | G13: 47362159.58 | H13: 49085592.11 | I13: 51103762.73
B14: Labour expenditure outsourced to related parties | C14: 14807532.93 | D14: 15208081.41 | E14: 15952420.59 | F14: 16744328.09 | G14: 17374653.9 | H14: 17994444.46 | I14: 18761627.5
B15: Labour expenditure outsourced to unrelated parties | C15: 0 | D15: 0 | E15: 1373807.5 | F15: 1373807.5 | G15: 1373807.5 | H15: 1373807.5 | I15: 1373807.5
B16: Non-labour expenditure | C16: 42012594.26 | D16: 45091912.83 | E16: 50140187.8 | F16: 54624963.71 | G16: 57992361.65 | H16: 60557186.44 | I16: 61849079.36
B17: Total | C17: =SUM(C13:C16) -> 95773188.59 | D17: 100306748.4 | E17: 110625402.8 | F17: 118355168.8 | G17: 124102982.6 | H17: 129011030.5 | I17: 133088277.1
B18: CAPEX
B19: In-house labour expenditure | C19: 82776393.41 | D19: 109919254.8 | E19: 145644328.2 | F19: 151758331.5 | G19: 151237886.5 | H19: 148343416.9 | I19: 126857095.5
B20: Labour expenditure outsourced to related parties | C20: 126824590.6 | D20: 179167848.9 | E20: 196807543.2 | F20: 181792241.8 | G20: 186096520.8 | H20: 174773211.2 | I20: 151678888.5
B21: Labour expenditure outsourced to unrelated parties | C21: 0 | D21: 0 | E21: 0 | F21: 0 | G21: 0 | H21: 0 | I21: 0
B22: Non-labour expenditure | C22: 76490651.15 | D22: 104076441.4 | E22: 141060967.3 | F22: 127356905.7 | G22: 126723398.9 | H22: 118701748.1 | I22: 100013612.6
B23: Total | C23: =SUM(C19:C22) -> 286091635.2 | D23: 393163545.1 | E23: 483512838.7 | F23: 460907479 | G23: 464057806.2 | H23: 441818376.2 | I23: 378549596.7

Sheet 2.14 Forecast price changes
B1: =INDEX(dms_Worksheet_List,MATCH(dms_Model,dms_Model_List)) -> REGULATORY REPORTING STATEMENT
B2: =INDEX(dms_TradingNameFull_List,MATCH(dms_TradingName,dms_TradingName_List)) -> Jemena Electricity
B3: =CONCATENATE("REGULATORY PERIOD FROM ", FRCP_y1," TO ",dms_MultiYear_FinalYear_Result) -> REGULATORY PERIOD FROM 2026-27 TO 2030-31
B4: 2.14 FORECAST PRICE CHANGES
B5: TEMPLATE DATE - SEPTEMBER 2024 - FINAL RIN
B7: There is ONE table on this worksheet.
B9: Instructions
B10: =CONCATENATE(dms_TradingName, " must provide all forecast price changes used to forecast opex and capex, including forecast changes in CPI. FORECAST price changes must be expressed in real terms, except for CPI. "&"If the same escalators are not used for capex and opex, report capex and opex escalators separately. Add additional rows as required. If price changes for a given year were not used to forecast either opex or capex enter '0' for that year.") -> Jemena Electricity must provide all forecast price changes used to forecast opex and capex, including forecast changes in CPI. FORECAST price changes must be expressed in real terms, except for CPI. If the same escalators are not used for capex and opex, report capex and opex escalators separately. Add additional rows as required. If price changes for a given year were not used to forecast either opex or capex enter '0' for that year.
B12: 2.14.2 - FORECAST CAPEX AND OPEX PRICE CHANGES
C13: Price changes (% YoY real) Current regulatory period | E13: Price changes (%YoY real) Forthcoming regulatory period
C14: FORECAST
B15: DESCRIPTION | C15: =CRCP_y4 -> 2024-25 | D15: =CRCP_y5 -> 2025-26 | E15: =FRCP_y1 -> 2026-27 | F15: =FRCP_y2 -> 2027-28 | G15: =FRCP_y3 -> 2028-29 | H15: =FRCP_y4 -> 2029-30 | I15: =FRCP_y5 -> 2030-31
B16: OPEX
B17: CPI - unlagged June series | C17: 0.025 | D17: 0.031 | E17: 0.025 | F17: 0.025 | G17: 0.025 | H17: 0.025 | I17: 0.025
B18: CPI - unlagged December series | C18: 0.026 | D18: 0.037 | E18: 0.025 | F18: 0.025 | G18: 0.025 | H18: 0.025 | I18: 0.025
B19: CPI - lagged December series | C19: 0.04051987768 | D19: 0.026 | E19: 0.025 | F19: 0.025 | G19: 0.025 | H19: 0.025 | I19: 0.025
B20: CAPEX
B21: CAPEX
B22: CPI - lagged December series | C22: 0.04051987768 | D22: 0.026 | E22: 0.025 | F22: 0.025 | G22: 0.025 | H22: 0.025 | I22: 0.025
B23: CPI - unlagged December series | C23: 0.026 | D23: 0.037 | E23: 0.025 | F23: 0.025 | G23: 0.025 | H23: 0.025 | I23: 0.025
B24: Real labour escalation | C24: 0.01326815645 | D24: 0.01310051557 | E24: 0.009313524394 | F24: 0.008358355629 | G24: 0.01025499053 | H24: 0.01224018808 | I24: 0.01148235304

Sheet 2.16 Opex Summary
B1: =INDEX(dms_Worksheet_List,MATCH(dms_Model,dms_Model_List)) -> REGULATORY REPORTING STATEMENT
B2: =INDEX(dms_TradingNameFull_List,MATCH(dms_TradingName,dms_TradingName_List)) -> Jemena Electricity
B3: =CONCATENATE("REGULATORY PERIOD FROM ", FRCP_y1," TO ",dms_MultiYear_FinalYear_Result) -> REGULATORY PERIOD FROM 2026-27 TO 2030-31
B4: 2.16 OPEX SUMMARY
B5: TEMPLATE DATE - SEPTEMBER 2024 - FINAL RIN
B7: Instructions | J7: IMPORTANT!
B8: =CONCATENATE("Complete the tables below in accordance with the regulatory information notice. ",dms_TradingName,"'s total forecast opex must reconcile to Table 2.16.1 (and if ",dms_TradingName," owns any dual function assets Table 2.16.3). If ",dms_TradingName," did not forecast its total opex using a Base Year approach, total forecast opex must reconcile to Table 2.16.2 (and if ",dms_TradingName," owns any dual function assets Table 2.16.4).") -> Complete the tables below in accordance with the regulatory information notice. Jemena Electricity's total forecast opex must reconcile to Table 2.16.1 (and if Jemena Electricity owns any dual function assets Table 2.16.3). If Jemena Electricity did not forecast its total opex using a Base Year approach, total forecast opex must reconcile to Table 2.16.2 (and if Jemena Electricity owns any dual function assets Table 2.16.4). | J8: =CONCATENATE("Has ",dms_TradingName," used a base-step-trend model to derive its opex forecast? ") -> Has Jemena Electricity used a base-step-trend model to derive its opex forecast? | L8: Yes
B9: =CONCATENATE("If ",dms_TradingName," does not own any dual function assets,Table 2.16.3 and 2.16.4 may be left blank.") -> If Jemena Electricity does not own any dual function assets,Table 2.16.3 and 2.16.4 may be left blank. | J9: Yes / No
B10: The total step changes in Table 2.16.1 and Table 2.16.3 must "&"reconcile (in each year) to the total step changes for each year in Table 2.17.1 and Table 2.17.3 of worksheet '2.17 Step Changes', respectively.") | J10: Please nominate the base year. | L10: 2024-25
B13: 2.16.1 - STANDARD CONTROL SERVICES - OPEX BY DRIVER
C14: =CONCATENATE("EXPENDITURE ($, real ", dms_DollarReal, ")") -> EXPENDITURE ($, real June 2026)
C15: =CRCP_y1 -> 2021-22 | D15: =CRCP_y2 -> 2022-23 | E15: =CRCP_y3 -> 2023-24 | F15: =CRCP_y4 -> 2024-25 | G15: =CRCP_y5 -> 2025-26 | H15: =FRCP_y1 -> 2026-27 | I15: =FRCP_y2 -> 2027-28 | J15: =FRCP_y3 -> 2028-29 | K15: =FRCP_y4 -> 2029-30 | L15: =FRCP_y5 -> 2030-31
B16: Base year total opex, excluding category specific | F16: 95144917.1 | G16: 97720777.01 | H16: 100306748.4 | I16: 100306748.4 | J16: 100306748.4 | K16: 100306748.4 | L16: 100306748.4
B17: Increment from base year to final year | G17: 2585971.351 | H17: 0 | I17: 0 | J17: 0 | K17: 0 | L17: 0
B18: Price growth | H18: 568607.4709 | I18: 1135498.949 | J18: 1865412.141 | K18: 2781938.384 | L18: 3735530.368
B19: Output growth | H19: 2821299.861 | I19: 7949057.634 | J19: 11907484.14 | K19: 15654133.57 | L19: 20385212.53
B20: Productivity growth | H20: -518483.2784 | I20: -1091178.267 | J20: -1702652.956 | K20: -2357104.28 | L20: -3079735.554
B21: Step changes | H21: 5214625.399 | I21: 7704256.143 | J21: 9268671.865 | K21: 10092421.82 | L21: 9140993.185
B22: Category specific | F22: 628271.4881 | G22: 643106.8321 | H22: 2232604.948 | I22: 2350786.006 | J22: 2457319.094 | K22: 2532892.656 | L22: 2599528.208
B23: Total opex | C23: =SUM(C16:C22) -> 0 | D23: 0 | E23: 0 | F23: 95773188.59 | G23: 100949855.2 | H23: 110625402.8 | I23: 118355168.8 | J23: 124102982.6 | K23: 129011030.5 | L23: 133088277.1
B26: 2.16.2 - STANDARD CONTROL SERVICES - OPEX BY CATEGORY
C27: =CONCATENATE("EXPENDITURE ($, real ", dms_DollarReal, ")") -> EXPENDITURE ($, real June 2026)
C28: =CRCP_y1 -> 2021-22 | D28: =CRCP_y2 -> 2022-23 | E28: =CRCP_y3 -> 2023-24 | F28: =CRCP_y4 -> 2024-25 | G28: =CRCP_y5 -> 2025-26 | H28: =FRCP_y1 -> 2026-27 | I28: =FRCP_y2 -> 2027-28 | J28: =FRCP_y3 -> 2028-29 | K28: =FRCP_y4 -> 2029-30 | L28: =FRCP_y5 -> 2030-31
B29: Vegetation management
B30: Maintenance
B31: Emergency response
B32: Non-network
B33: Metering
B34: Network overheads
B35: Corporate overheads
B36: Total opex | C36: =SUM(C29:C35) -> 0 | D36: 0 | E36: 0 | F36: 0 | G36: 0 | H36: 0 | I36: 0 | J36: 0 | K36: 0 | L36: 0
B39: 2.16.3 - DUAL FUNCTION ASSETS - OPEX BY DRIVER
C40: =CONCATENATE("EXPENDITURE ($, real ", dms_DollarReal, ")") -> EXPENDITURE ($, real June 2026)
C41: =CRCP_y1 -> 2021-22 | D41: =CRCP_y2 -> 2022-23 | E41: =CRCP_y3 -> 2023-24 | F41: =CRCP_y4 -> 2024-25 | G41: =CRCP_y5 -> 2025-26 | H41: =FRCP_y1 -> 2026-27 | I41: =FRCP_y2 -> 2027-28 | J41: =FRCP_y3 -> 2028-29 | K41: =FRCP_y4 -> 2029-30 | L41: =FRCP_y5 -> 2030-31
B42: Base year total opex, excluding category specific
B43: Increment from base year to final year
B44: Price growth
B45: Output growth
B46: Productivity growth
B47: Step changes
B48: Category specific
B49: Total opex | C49: =SUM(C42:C48) -> 0 | D49: 0 | E49: 0 | F49: 0 | G49: 0 | H49: 0 | I49: 0 | J49: 0 | K49: 0 | L49: 0
B52: 2.16.4 - DUAL FUNCTION ASSETS - OPEX BY CATEGORY
C53: =CONCATENATE("EXPENDITURE ($, real ", dms_DollarReal, ")") -> EXPENDITURE ($, real June 2026)
C54: =CRCP_y1 -> 2021-22 | D54: =CRCP_y2 -> 2022-23 | E54: =CRCP_y3 -> 2023-24 | F54: =CRCP_y4 -> 2024-25 | G54: =CRCP_y5 -> 2025-26 | H54: =FRCP_y1 -> 2026-27 | I54: =FRCP_y2 -> 2027-28 | J54: =FRCP_y3 -> 2028-29 | K54: =FRCP_y4 -> 2029-30 | L54: =FRCP_y5 -> 2030-31
B55: Vegetation management
B56: Maintenance
B57: Emergency response
B58: Non-network
B59: Metering
B60: Network overheads
B61: Corporate overheads
B62: Total opex | C62: =SUM(C55:C61) -> 0 | D62: 0 | E62: 0 | F62: 0 | G62: 0 | H62: 0 | I62: 0 | J62: 0 | K62: 0 | L62: 0

Sheet 2.17 Step Changes
B1: =INDEX(dms_Worksheet_List,MATCH(dms_Model,dms_Model_List)) -> REGULATORY REPORTING STATEMENT
B2: =INDEX(dms_TradingNameFull_List,MATCH(dms_TradingName,dms_TradingName_List)) -> Jemena Electricity
B3: =CONCATENATE("REGULATORY PERIOD FROM ", FRCP_y1," TO ",dms_MultiYear_FinalYear_Result) -> REGULATORY PERIOD FROM 2026-27 TO 2030-31
B4: 2.17 STEP CHANGES
B5: TEMPLATE DATE - SEPTEMBER 2024 - FINAL RIN
B7: 2.17.1 - STEP CHANGES FOR STANDARD CONTROL SERVICES - FORECAST OPEX
E8: =CONCATENATE("EXPENDITURE ($, real ", dms_DollarReal, ")") -> EXPENDITURE ($, real June 2026)
B9: STEP CHANGE | C9: DESCRIPTION | E9: =CRCP_y4 -> 2024-25 | F9: =CRCP_y5 -> 2025-26 | G9: =FRCP_y1 -> 2026-27 | H9: =FRCP_y2 -> 2027-28 | I9: =FRCP_y3 -> 2028-29 | J9: =FRCP_y4 -> 2029-30 | K9: =FRCP_y5 -> 2030-31
B10: Customer communications and education | C10: To develop and implement new and expanded ICT capability to deliver integrated customer education programs that have been requested by our customers. | G10: 927848.45 | H10: 843306.45 | I10: 867612.275 | J10: 869725.825 | K10: 817943.85
B11: ICT services | C11: These costs reflect incremental operating expenditure associated with initiatives that are deploying new or expanded ICT capabilities, functions, and services to deliver customer or business benefits and that are not reflected in our base year operating expenditure. | G11: 1454619.949 | H11: 3658921.443 | I11: 5318446.915 | J11: 6047087.117 | K11: 5147440.46
B12: CER Integration Strategy Initiatives | C12: These costs reflect incremental operating expenditure associated with our programs of work that support our CER Integration Strategy | G12: 211355 | H12: 581226.25 | I12: 673165.675 | J12: 766161.875 | K12: 766161.875
B13: New REFCL | C13: These costs are necessary to improve our annual validation testing as part of new obligations under our bushfire mitigation plan. | G13: 982800.75 | H13: 982800.75 | I13: 982800.75 | J13: 982800.75 | K13: 982800.75
B14: Network reliability initiatives (resilience) | C14: These costs are necessary to effectively manage the distribution network when faced with increasing extreme weather events. | G14: 1109613.75 | H14: 1109613.75 | I14: 898258.75 | J14: 898258.75 | K14: 898258.75
B15: Safety initiatives | C15: These costs are necessary to meet customer expectations for communities in the management of hazardous trees in Low Bushfire Risk Areas (LBRA). | G15: 528387.5 | H15: 528387.5 | I15: 528387.5 | J15: 528387.5 | K15: 528387.5
B30: Total | E30: =SUM(E10:E29) -> 0 | F30: 0 | G30: 5214625.399 | H30: 7704256.143 | I30: 9268671.865 | J30: 10092421.82 | K30: 9140993.185
B31: Check | G31: =IF(ROUND(G$30,0)-ROUND('2.16 Opex Summary'!H$21,0)=0,"OK","Error") -> OK | H31: =IF(ROUND(H$30,0)-ROUND('2.16 Opex Summary'!I$21,0)=0,"OK","Error") -> OK | I31: =IF(ROUND(I$30,0)-ROUND('2.16 Opex Summary'!J$21,0)=0,"OK","Error") -> OK | J31: =IF(ROUND(J$30,0)-ROUND('2.16 Opex Summary'!K$21,0)=0,"OK","Error") -> OK | K31: =IF(ROUND(K$30,0)-ROUND('2.16 Opex Summary'!L$21,0)=0,"OK","Error") -> OK
B33: 2.17.2 - STEP CHANGES FOR STANDARD CONTROL SERVICES - FORECAST CAPEX
E34: =CONCATENATE("EXPENDITURE ($, real ", dms_DollarReal, ")") -> EXPENDITURE ($, real June 2026)
B35: STEP CHANGE | C35: DESCRIPTION | E35: =CRCP_y4 -> 2024-25 | F35: =CRCP_y5 -> 2025-26 | G35: =FRCP_y1 -> 2026-27 | H35: =FRCP_y2 -> 2027-28 | I35: =FRCP_y3 -> 2028-29 | J35: =FRCP_y4 -> 2029-30 | K35: =FRCP_y5 -> 2030-31
B56: Total | E56: =SUM(E36:E55) -> 0 | F56: 0 | G56: 0 | H56: 0 | I56: 0 | J56: 0 | K56: 0
B58: 2.17.3 - STEP CHANGES FOR DUAL FUNCTION ASSETS - FORECAST OPEX
E59: =CONCATENATE("EXPENDITURE ($, real ", dms_DollarReal, ")") -> EXPENDITURE ($, real June 2026)
B60: STEP CHANGE | C60: DESCRIPTION | E60: =CRCP_y4 -> 2024-25 | F60: =CRCP_y5 -> 2025-26 | G60: =FRCP_y1 -> 2026-27 | H60: =FRCP_y2 -> 2027-28 | I60: =FRCP_y3 -> 2028-29 | J60: =FRCP_y4 -> 2029-30 | K60: =FRCP_y5 -> 2030-31
B81: Total | E81: =SUM(E61:E80) -> 0 | F81: 0 | G81: 0 | H81: 0 | I81: 0 | J81: 0 | K81: 0
B82: Check | G82: =IF(ROUND(G$30,0)-ROUND('2.16 Opex Summary'!H$47,0)=0,"OK","Error") ->  | H82: =IF(ROUND(H$30,0)-ROUND('2.16 Opex Summary'!I$47,0)=0,"OK","Error") ->  | I82: =IF(ROUND(I$30,0)-ROUND('2.16 Opex Summary'!J$47,0)=0,"OK","Error") ->  | J82: =IF(ROUND(J$30,0)-ROUND('2.16 Opex Summary'!K$47,0)=0,"OK","Error") ->  | K82: =IF(ROUND(K$30,0)-ROUND('2.16 Opex Summary'!L$47,0)=0,"OK","Error") -> 
B84: 2.17.4 - STEP CHANGES FOR DUAL FUNCTION ASSETS - FORECAST CAPEX
E85: =CONCATENATE("EXPENDITURE ($, real ", dms_DollarReal, ")") -> EXPENDITURE ($, real June 2026)
B86: STEP CHANGE | C86: DESCRIPTION | E86: =CRCP_y4 -> 2024-25 | F86: =CRCP_y5 -> 2025-26 | G86: =FRCP_y1 -> 2026-27 | H86: =FRCP_y2 -> 2027-28 | I86: =FRCP_y3 -> 2028-29 | J86: =FRCP_y4 -> 2029-30 | K86: =FRCP_y5 -> 2030-31
B107: Total | E107: =SUM(E87:E106) -> 0 | F107: 0 | G107: 0 | H107: 0 | I107: 0 | J107: 0 | K107: 0
B110: 2.17.5 - FORECAST CATEGORY SPECIFIC OPEX
D111: EXPENDITURE ($, real June 2024)
B112: CATEGORY | C112: DESCRIPTION | D112: =CRCP_y3 -> 2023-24 | E112: =CRCP_y4 -> 2024-25 | F112: =CRCP_y5 -> 2025-26 | G112: =FRCP_y1 -> 2026-27 | H112: =FRCP_y2 -> 2027-28 | I112: =FRCP_y3 -> 2028-29 | J112: =FRCP_y4 -> 2029-30 | K112: =FRCP_y5 -> 2030-31
B113: GSL payments | E113: 94010.56252 | F113: 96230.42935 | G113: 256207.059 | H113: 256207.059 | I113: 256207.059 | J113: 256207.059 | K113: 256207.059
B114: Movement in provisions | E114: 501027.8134 | F114: 512858.5587 | G114: 0 | H114: 0 | I114: 0 | J114: 0 | K114: 0
B115: DMIA | E115: 33233.11223 | F115: 34017.84409 | G115: 0 | H115: 0 | I115: 0 | J115: 0 | K115: 0
B116: Innovation fund | E116: 0 | F116: 0 | G116: 845420 | H116: 845420 | I116: 845420 | J116: 845420 | K116: 845420
B117: Debt raising costs | E117: 0 | F117: 0 | G117: 1130977.89 | H117: 1249158.947 | I117: 1355692.035 | J117: 1431265.597 | K117: 1497901.149
B133: Total | D133: =SUM(D113:D132) -> 0 | E133: =SUM(E113:E132) -> 628271.4881 | F133: =SUM(F113:F132) -> 643106.8321 | G133: 2232604.948 | H133: 2350786.006 | I133: 2457319.094 | J133: 2532892.656 | K133: 2599528.208

Sheet 3.1 Revenue
B1: =INDEX(dms_Worksheet_List,MATCH(dms_Model,dms_Model_List)) -> REGULATORY REPORTING STATEMENT
B2: =INDEX(dms_TradingNameFull_List,MATCH(dms_TradingName,dms_TradingName_List)) -> Jemena Electricity
B3: =CONCATENATE("REGULATORY PERIOD FROM ", FRCP_y1," TO ",dms_MultiYear_FinalYear_Result) -> REGULATORY PERIOD FROM 2026-27 TO 2030-31
B4: 3.1 REVENUE
B5: TEMPLATE DATE - SEPTEMBER 2024 - FINAL RIN
B7: There are THREE tables on this worksheet. Each table has been 'grouped' (and 'sub-grouped') for easy navigation. See the Instructions sheet on how to group or ungroup data.
B9: 3.1.1 - REVENUE GROUPING BY CHARGEABLE QUANTITY
C10: Standard control services | K10: Alternative control services
C11: =CONCATENATE("REVENUE FORECAST ($, real ", dms_DollarReal,")") -> REVENUE FORECAST ($, real June 2026) | K11: =CONCATENATE("REVENUE FORECAST ($, real ", dms_DollarReal,")") -> REVENUE FORECAST ($, real June 2026)
C12: =CRCP_y4 -> 2024-25 | D12: =CRCP_y5 -> 2025-26 | E12: =FRCP_y1 -> 2026-27 | F12: =FRCP_y2 -> 2027-28 | G12: =FRCP_y3 -> 2028-29 | H12: =FRCP_y4 -> 2029-30 | I12: =FRCP_y5 -> 2030-31 | K12: =CRCP_y4 -> 2024-25 | L12: =CRCP_y5 -> 2025-26 | M12: =FRCP_y1 -> 2026-27 | N12: =FRCP_y2 -> 2027-28 | O12: =FRCP_y3 -> 2028-29 | P12: =FRCP_y4 -> 2029-30 | Q12: =FRCP_y5 -> 2030-31
A13: DREV0101 | B13: Revenue from Fixed Customer Charges | C13: 54762560.35 | D13: 57758752.97 | E13: 51701152.65 | F13: 49658551.64 | G13: 47686780.53 | H13: 45785941.13 | I13: 43969469.43 | K13: 0 | L13: 0 | M13: 0 | N13: 0 | O13: 0 | P13: 0 | Q13: 0
A14: DREV0102 | B14: Revenue from Energy Delivery charges where time of use is not a determinant | C14: 124567921.3 | D14: 128242309.6 | E14: 117862804.9 | F14: 118925816.6 | G14: 119050918.2 | H14: 118728625.4 | I14: 118834609.3 | K14: 0 | L14: 0 | M14: 0 | N14: 0 | O14: 0 | P14: 0 | Q14: 0
A15: DREV0103 | B15: Revenue from On–Peak Energy Delivery charges | C15: 52306415.57 | D15: 57386342.26 | E15: 56439043.44 | F15: 59891082.04 | G15: 63387919.01 | H15: 66392948.01 | I15: 69983366.56 | K15: 0 | L15: 0 | M15: 0 | N15: 0 | O15: 0 | P15: 0 | Q15: 0
A16: DREV0104 | B16: Revenue from Shoulder period Energy Delivery Charges | C16: 0 | D16: 0 | E16: 585451.209 | F16: 661863.7806 | G16: 738276.9972 | H16: 816663.7209 | I16: 901731.3389 | K16: 0 | L16: 0 | M16: 0 | N16: 0 | O16: 0 | P16: 0 | Q16: 0
A17: DREV0105 | B17: Revenue from Off–Peak Energy Delivery charges | C17: 16327716.86 | D17: 18152221.58 | E17: 16866351.11 | F17: 18142159.68 | G17: 19448367.23 | H17: 20621654.2 | I17: 21966120.05 | K17: 0 | L17: 0 | M17: 0 | N17: 0 | O17: 0 | P17: 0 | Q17: 0
A18: DREV0106 | B18: Revenue from controlled load customer charges | C18: 475261.2789 | D18: 493997.5464 | E18: 427206.2804 | F18: 444889.5661 | G18: 460191.887 | H18: 474432.0034 | I18: 490385.2775 | K18: 0 | L18: 0 | M18: 0 | N18: 0 | O18: 0 | P18: 0 | Q18: 0
A19: DREV0107 | B19: Revenue from unmetered supplies | C19: 1425560.789 | D19: 1481760.799 | E19: 1373385.25 | F19: 1369465.688 | G19: 1352279.23 | H19: 1333479.781 | I19: 1332348.248 | K19: 0 | L19: 0 | M19: 0 | N19: 0 | O19: 0 | P19: 0 | Q19: 0
A20: DREV0108 | B20: Revenue from Contracted Maximum Demand charges | C20: 0 | D20: 0 | E20: 0 | F20: 0 | G20: 0 | H20: 0 | I20: 0 | K20: 0 | L20: 0 | M20: 0 | N20: 0 | O20: 0 | P20: 0 | Q20: 0
A21: DREV0109 | B21: Revenue from Measured Maximum Demand charges | C21: 94851582.43 | D21: 107507214.5 | E21: 98586285.06 | F21: 108638422.8 | G21: 117432002 | H21: 125252734.5 | I21: 134459668.5 | K21: 0 | L21: 0 | M21: 0 | N21: 0 | O21: 0 | P21: 0 | Q21: 0
A22: DREV0110 | B22: Revenue from metering charges | C22: 0 | D22: 0 | E22: 0 | F22: 0 | G22: 0 | H22: 0 | I22: 0 | K22: 26188280.68 | L22: 25613512.14 | M22: 26231731.82 | N22: 26719514.79 | O22: 28657869.03 | P22: 30731844.7 | Q22: 32947695.85
A23: DREV0111 | B23: Revenue from connection charges | C23: 0 | D23: 0 | E23: 0 | F23: 0 | G23: 0 | H23: 0 | I23: 0 | K23: 5704163.358 | L23: 5824523.518 | M23: 7595661.796 | N23: 7797311.07 | O23: 8016334.634 | P23: 8255034.004 | Q23: 8492089.533
A24: DREV0112 | B24: Revenue from public lighting charges | C24: 0 | D24: 0 | E24: 0 | F24: 0 | G24: 0 | H24: 0 | I24: 0 | K24: 6570099.253 | L24: 6665460.517 | M24: 7993379.058 | N24: 7700582.118 | O24: 6911839.236 | P24: 5910431.471 | Q24: 5238872.893
A25: DREV0113 | B25: Revenue from other Sources | C25: 0 | D25: 0 | E25: 0 | F25: 0 | G25: 0 | H25: 0 | I25: 0 | K25: 3835760.011 | L25: 3916696.103 | M25: 4743779.703 | N25: 4869717.345 | O25: 5006505.892 | P25: 5155582.727 | Q25: 5303632.922
A26: DREV01 | B26: Total revenue by chargeable quantity | C26: =SUM(C13:C25) -> 344717018.6 | D26: 371022599.3 | E26: 343841679.9 | F26: 357732251.8 | G26: 369556735 | H26: 379406478.7 | I26: 391937698.7 | K26: =SUM(K13:K25) -> 42298303.3 | L26: 42020192.28 | M26: 46564552.38 | N26: 47087125.32 | O26: 48592548.8 | P26: 50052892.91 | Q26: 51982291.2
B29: 3.1.2 - REVENUE GROUPING BY CUSTOMER TYPE OR CLASS
C30: Standard control services | K30: Alternative control services
C31: =CONCATENATE("REVENUE FORECAST ($, real ", dms_DollarReal,")") -> REVENUE FORECAST ($, real June 2026) | K31: =CONCATENATE("REVENUE FORECAST ($, real ", dms_DollarReal,")") -> REVENUE FORECAST ($, real June 2026)
C32: =CRCP_y4 -> 2024-25 | D32: =CRCP_y5 -> 2025-26 | E32: =FRCP_y1 -> 2026-27 | F32: =FRCP_y2 -> 2027-28 | G32: =FRCP_y3 -> 2028-29 | H32: =FRCP_y4 -> 2029-30 | I32: =FRCP_y5 -> 2030-31 | K32: =CRCP_y4 -> 2024-25 | L32: =CRCP_y5 -> 2025-26 | M32: =FRCP_y1 -> 2026-27 | N32: =FRCP_y2 -> 2027-28 | O32: =FRCP_y3 -> 2028-29 | P32: =FRCP_y4 -> 2029-30 | Q32: =FRCP_y5 -> 2030-31
A33: DREV0201 | B33: Revenue from residential Customers | C33: 167658260.4 | D33: 176453455.4 | E33: 163361089.8 | F33: 166643304.1 | G33: 169242086.7 | H33: 171552507.8 | I33: 174380154.6 | K33: 0 | L33: 0 | M33: 0 | N33: 0 | O33: 0 | P33: 0 | Q33: 0
A34: DREV0202 | B34: Revenue from Non residential customers not on demand tariffs | C34: 49609017.65 | D34: 52034036.85 | E34: 47612924.45 | F34: 47283044.04 | G34: 46549732.84 | H34: 45773514.77 | I34: 45550864.4 | K34: 0 | L34: 0 | M34: 0 | N34: 0 | O34: 0 | P34: 0 | Q34: 0
A35: DREV0203 | B35: Revenue from Non-residential low voltage demand tariff customers | C35: 93848010.81 | D35: 98950345.91 | E35: 86746304.58 | F35: 85676815.34 | G35: 83483855.37 | H35: 81546362.04 | I35: 81235342.34 | K35: 0 | L35: 0 | M35: 0 | N35: 0 | O35: 0 | P35: 0 | Q35: 0
A36: DREV0204 | B36: Revenue from Non-residential high voltage demand tariff customers | C36: 32176168.95 | D36: 42103000.39 | E36: 44747975.74 | F36: 56759622.63 | G36: 68928780.93 | H36: 79200614.34 | I36: 89438989.1 | K36: 0 | L36: 0 | M36: 0 | N36: 0 | O36: 0 | P36: 0 | Q36: 0
A37: DREV0205 | B37: Revenue from unmetered supplies | C37: 1425560.789 | D37: 1481760.799 | E37: 1373385.25 | F37: 1369465.688 | G37: 1352279.23 | H37: 1333479.781 | I37: 1332348.248 | K37: 0 | L37: 0 | M37: 0 | N37: 0 | O37: 0 | P37: 0 | Q37: 0
A38: DREV0206 | B38: Revenue from Other Customers | C38: 0 | D38: 0 | E38: 0 | F38: 0 | G38: 0 | H38: 0 | I38: 0 | K38: 42298303.3 | L38: 42020192.28 | M38: 46564552.38 | N38: 47087125.32 | O38: 48592548.8 | P38: 50052892.91 | Q38: 51982291.2
A39: DREV02 | B39: Total revenue by customer class | C39: =SUM(C33:C38) -> 344717018.6 | D39: 371022599.3 | E39: 343841679.9 | F39: 357732251.8 | G39: 369556735 | H39: 379406478.7 | I39: 391937698.7 | K39: =SUM(K33:K38) -> 42298303.3 | L39: 42020192.28 | M39: 46564552.38 | N39: 47087125.32 | O39: 48592548.8 | P39: 50052892.91 | Q39: 51982291.2
B42: 3.1.3 - REVENUE (penalties) ALLOWED (deducted) THROUGH INCENTIVE SCHEMES
C43: Standard control services | K43: Alternative control services
C44: =CONCATENATE("REVENUE FORECAST ($, real ", dms_DollarReal,")") -> REVENUE FORECAST ($, real June 2026) | K44: =CONCATENATE("REVENUE FORECAST ($, real ", dms_DollarReal,")") -> REVENUE FORECAST ($, real June 2026)
C45: =CRCP_y4 -> 2024-25 | D45: =CRCP_y5 -> 2025-26 | E45: =FRCP_y1 -> 2026-27 | F45: =FRCP_y2 -> 2027-28 | G45: =FRCP_y3 -> 2028-29 | H45: =FRCP_y4 -> 2029-30 | I45: =FRCP_y5 -> 2030-31 | K45: =CRCP_y4 -> 2024-25 | L45: =CRCP_y5 -> 2025-26 | M45: =FRCP_y1 -> 2026-27 | N45: =FRCP_y2 -> 2027-28 | O45: =FRCP_y3 -> 2028-29 | P45: =FRCP_y4 -> 2029-30 | Q45: =FRCP_y5 -> 2030-31
A46: DREV0301 | B46: EBSS | C46: 6807758.018 | D46: 7327262.477 | E46: 3967775.282 | F46: 4128066.11 | G46: 4264515.224 | H46: 4378176.749 | I46: 4522781.28 | K46: 0 | L46: 0 | M46: 0 | N46: 0 | O46: 0 | P46: 0 | Q46: 0
A47: DREV0306 | B47: CESS | C47: 11783385.31 | D47: 12682583.13 | E47: 584774.9468 | F47: 608398.7798 | G47: 628508.7955 | H47: 645260.3521 | I47: 666572.3219 | K47: 0 | L47: 0 | M47: 0 | N47: 0 | O47: 0 | P47: 0 | Q47: 0
A48: DREV0302 | B48: STPIS | C48: 0 | D48: 0 | E48: 0 | F48: 0 | G48: 0 | H48: 0 | I48: 0 | K48: 0 | L48: 0 | M48: 0 | N48: 0 | O48: 0 | P48: 0 | Q48: 0
A49: DREV0307 | B49: CSIS | C49: 0 | D49: 0 | E49: 0 | F49: 0 | G49: 0 | H49: 0 | I49: 0 | K49: 0 | L49: 0 | M49: 0 | N49: 0 | O49: 0 | P49: 0 | Q49: 0
A50: DREV0308 | B50: ESIS | C50: 0 | D50: 0 | E50: 0 | F50: 0 | G50: 0 | H50: 0 | I50: 0 | K50: 0 | L50: 0 | M50: 0 | N50: 0 | O50: 0 | P50: 0 | Q50: 0
A51: DREV0309 | B51: DMIS/DMIA/DMIAM | C51: 534862.7319 | D51: 575678.4561 | E51: 498001.0923 | F51: 518119.4211 | G51: 535245.3425 | H51: 549511.1613 | I51: 567660.6807 | K51: 0 | L51: 0 | M51: 0 | N51: 0 | O51: 0 | P51: 0 | Q51: 0
A52: DREV0303 | B52: F-Factor | C52: 0 | D52: 0 | E52: 0 | F52: 0 | G52: 0 | H52: 0 | I52: 0 | K52: 0 | L52: 0 | M52: 0 | N52: 0 | O52: 0 | P52: 0 | Q52: 0
A53: DREV0305 | B53: Other | C53: 0 | D53: 0 | E53: 0 | F53: 0 | G53: 0 | H53: 0 | I53: 0 | K53: 0 | L53: 0 | M53: 0 | N53: 0 | O53: 0 | P53: 0 | Q53: 0
A54: DREV03 | B54: Total revenue rewards and penalties - incentive schemes | C54: =SUM(C46:C53) -> 19126006.06 | D54: 20585524.07 | E54: 5050551.321 | F54: 5254584.311 | G54: 5428269.362 | H54: 5572948.262 | I54: 5757014.282 | K54: =SUM(K46:K53) -> 0 | L54: 0 | M54: 0 | N54: 0 | O54: 0 | P54: 0 | Q54: 0

Sheet 3.2 Operating expenditure
B1: =INDEX(dms_Worksheet_List,MATCH(dms_Model,dms_Model_List)) -> REGULATORY REPORTING STATEMENT
B2: =INDEX(dms_TradingNameFull_List,MATCH(dms_TradingName,dms_TradingName_List)) -> Jemena Electricity
B3: =CONCATENATE("REGULATORY PERIOD FROM ", FRCP_y1," TO ",dms_MultiYear_FinalYear_Result) -> REGULATORY PERIOD FROM 2026-27 TO 2030-31
B4: 3.2 OPERATING EXPENDITURE
B5: TEMPLATE DATE - SEPTEMBER 2024 - FINAL RIN
B7: There are TWO tables on this worksheet. Both ROWS and COLUMNS have been grouped for ease of navigation. see the Instructions sheet on how to group or ungroup tables.
B9: 3.2.1 - OPEX CATEGORIES
B10: CURRENT OPEX CATEGORIES AND COST ALLOCATIONS
C11: Standard control services | K11: Alternative control services
C12: =CONCATENATE("EXPENDITURE ($, real ", dms_DollarReal, ")") -> EXPENDITURE ($, real June 2026) | K12: =CONCATENATE("EXPENDITURE ($, real ", dms_DollarReal, ")") -> EXPENDITURE ($, real June 2026)
C13: =CRCP_y4 -> 2024-25 | D13: =CRCP_y5 -> 2025-26 | E13: =FRCP_y1 -> 2026-27 | F13: =FRCP_y2 -> 2027-28 | G13: =FRCP_y3 -> 2028-29 | H13: =FRCP_y4 -> 2029-30 | I13: =FRCP_y5 -> 2030-31 | K13: =CRCP_y4 -> 2024-25 | L13: =CRCP_y5 -> 2025-26 | M13: =FRCP_y1 -> 2026-27 | N13: =FRCP_y2 -> 2027-28 | O13: =FRCP_y3 -> 2028-29 | P13: =FRCP_y4 -> 2029-30 | Q13: =FRCP_y5 -> 2030-31
A14: DOPEX0101 | B14: SCS - Vegetation management | C14: 5415233.731 | D14: 5561717.528 | E14: 6362315.844 | F14: 6651922.778 | G14: 6882437.99 | H14: 7109100.375 | I14: 7389665.374
A15: DOPEX0102 | B15: SCS - Maintenance | C15: 9150930.931 | D15: 9398466.527 | E15: 11739521.39 | F15: 12228913.57 | G15: 12618449.62 | H15: 13001474.98 | I15: 13475587.65
A16: DOPEX0103 | B16: SCS - Emergency response | C16: 5960834.639 | D16: 6122077.114 | E16: 6633068.98 | F16: 6951854.674 | G16: 6994239.98 | H16: 7243739.274 | I16: 7552572.032
A17: DOPEX0104 | B17: SCS - Non-network | C17: 21789932.73 | D17: 24706085.73 | E17: 24797684.98 | F17: 28303091.98 | G17: 29785480.56 | H17: 31171597.99 | I17: 32383290.49
A18: DOPEX0105 | B18: SCS - Export services | C18: 3245419.034 | D18: 3722799.563 | E18: 3934154.563 | F18: 4277336.478 | G18: 5582039.279 | H18: 6035875.286 | I18: 5185019.291
A19: DOPEX0106 | B19: SCS - Metering | C19: 0 | D19: 0 | E19: 0 | F19: 0 | G19: 0 | H19: 0 | I19: 0
A20: DOPEX0107 | B20: SCS - Network overheads | C20: 29411533 | D20: 29433669.56 | E20: 33620215.6 | F20: 35173079.19 | G20: 36479448.92 | H20: 37742197.99 | I20: 39250843.45
A21: DOPEX0108 | B21: SCS - Corporate overheads | C21: 20799304.53 | D21: 21361932.34 | E21: 23538441.4 | F21: 24768970.16 | G21: 25760886.29 | H21: 26707044.61 | I21: 27851298.81
A22: DOPEX0109
A23: DOPEX0110 | B23: ACS - Connections | K23: 0 | L23: 0 | M23: 0 | N23: 0 | O23: 0 | P23: 0 | Q23: 0
A24: DOPEX0111 | B24: ACS - Metering | K24: 5659210.549 | L24: 5781474.44 | M24: 9882318.462 | N24: 10124495.52 | O24: 11888179.83 | P24: 12169518.28 | Q24: 11329882.88
A25: DOPEX0112 | B25: ACS - Public lighting | K25: 2186794.659 | L25: 2278825.025 | M25: 2454431.087 | N25: 2366915.342 | O25: 2163184.699 | P25: 1820363.375 | Q25: 1623817.594
A26: DOPEX0113 | B26: ACS - Fee and quoted | K26: 5600899.937 | L26: 5719081.196 | M26: 7146451.395 | N26: 7336175.052 | O26: 7542245.478 | P26: 7766828.074 | Q26: 7989864.047
A27: DOPEX0114 | B27: ACS - Network overheads | K27: 3506886.508 | L27: 3601924.625 | M27: 4005126.17 | N27: 4038738.792 | O27: 4058001.466 | P27: 3989642.77 | Q27: 3985577.465
A28: DOPEX0115 | B28: ACS - Corporate overheads | K28: 6111251.624 | L28: 6263557.406 | M28: 7075207.791 | N28: 7184129.003 | O28: 7249202.518 | P28: 7259767.265 | Q28: 7341399.42
A29: DOPEX0116
A30: DOPEX0117
A31: DOPEX0118
A32: DOPEX0119
A33: DOPEX0120
A34: DOPEX0121
A35: DOPEX0122
A36: DOPEX0123
A37: DOPEX0124
A38: DOPEX0125
A39: DOPEX0126
A40: DOPEX0127
A41: DOPEX0128
A42: DOPEX0129
A43: DOPEX0130
A44: DOPEX0131
A45: DOPEX0132
A46: DOPEX0133
A47: DOPEX0134
A48: DOPEX0135
A49: DOPEX0136
A50: DOPEX0137
A51: DOPEX0138
A52: DOPEX0139
A53: DOPEX0140
A54: DOPEX0141
A55: DOPEX0142
A56: DOPEX0143
A57: DOPEX0144
A58: DOPEX0145
A59: DOPEX0146
A60: DOPEX0147
A61: DOPEX0148
A62: DOPEX0149
A63: DOPEX01 | B63: Total opex | C63: =SUM(C14:C62) -> 95773188.59 | D63: 100306748.4 | E63: 110625402.8 | F63: 118355168.8 | G63: 124102982.6 | H63: 129011030.5 | I63: 133088277.1 | K63: =SUM(K14:K62) -> 23065043.28 | L63: 23644862.69 | M63: 30563534.91 | N63: 31050453.71 | O63: 32900813.99 | P63: 33006119.77 | Q63: 32270541.41
B66: 3.2.2 - OPEX CONSISTENCY
B67: OPEX CONSISTENCY - CURRENT COST ALLOCATION APPROACH
C68: Standard control services | K68: Alternative control services
C69: =CONCATENATE("EXPENDITURE ($, real ", dms_DollarReal, ")") -> EXPENDITURE ($, real June 2026) | K69: =CONCATENATE("EXPENDITURE ($, real ", dms_DollarReal, ")") -> EXPENDITURE ($, real June 2026)
C70: =CRCP_y4 -> 2024-25 | D70: =CRCP_y5 -> 2025-26 | E70: =FRCP_y1 -> 2026-27 | F70: =FRCP_y2 -> 2027-28 | G70: =FRCP_y3 -> 2028-29 | H70: =FRCP_y4 -> 2029-30 | I70: =FRCP_y5 -> 2030-31 | K70: =CRCP_y4 -> 2024-25 | L70: =CRCP_y5 -> 2025-26 | M70: =FRCP_y1 -> 2026-27 | N70: =FRCP_y2 -> 2027-28 | O70: =FRCP_y3 -> 2028-29 | P70: =FRCP_y4 -> 2029-30 | Q70: =FRCP_y5 -> 2030-31
A71: DOPEX0201 | B71: Opex for network services | C71: 93802189.51 | D71: 98242449.24 | E71: 108348747.1 | F71: 115919435.7 | G71: 121548960.3 | H71: 126356001.2 | I71: 130349338.6 | K71: 0 | L71: 0 | M71: 0 | N71: 0 | O71: 0 | P71: 0 | Q71: 0
A72: DOPEX0202 | B72: Opex for metering | C72: 0 | D72: 0 | E72: 0 | F72: 0 | G72: 0 | H72: 0 | I72: 0 | K72: 9585336.095 | L72: 9792421.602 | M72: 14010359.01 | N72: 14351632.79 | O72: 16252931.17 | P72: 16646195.58 | Q72: 15919644.89
A73: DOPEX0203 | B73: Opex for connection services | C73: 1916423.847 | D73: 2007140.489 | E73: 2213617.016 | F73: 2368289.824 | G73: 2483303.719 | H73: 2581513.877 | I73: 2663099.681 | K73: 9271461.467 | L73: 9467093.063 | M73: 11829893.32 | N73: 12143952.77 | O73: 12485071.88 | P73: 12856835.15 | Q73: 13226038.22
A74: DOPEX0204 | B74: Opex for public lighting | C74: 0 | D74: 0 | E74: 0 | F74: 0 | G74: 0 | H74: 0 | I74: 0 | K74: 4208245.715 | L74: 4385348.028 | M74: 4723282.573 | N74: 4554868.15 | O74: 4162810.944 | P74: 3503089.027 | Q74: 3124858.296
A75: DOPEX0205 | B75: Opex for amounts payable for easement levy or similar direct charges on DNSP | C75: 0 | D75: 0 | E75: 0 | F75: 0 | G75: 0 | H75: 0 | I75: 0 | K75: 0 | L75: 0 | M75: 0 | N75: 0 | O75: 0 | P75: 0 | Q75: 0
A76: DOPEX0207 | B76: Opex for transmission connection point planning | C76: 54575.23362 | D76: 57158.62974 | E76: 63038.59451 | F76: 67443.31148 | G76: 70718.63609 | H76: 73515.42987 | I76: 75838.80125 | K76: 0 | L76: 0 | M76: 0 | N76: 0 | O76: 0 | P76: 0 | Q76: 0

Sheet 3.3 Assets (RAB)
B1: =INDEX(dms_Worksheet_List,MATCH(dms_Model,dms_Model_List)) -> REGULATORY REPORTING STATEMENT
B2: =INDEX(dms_TradingNameFull_List,MATCH(dms_TradingName,dms_TradingName_List)) -> Jemena Electricity
B3: =CONCATENATE("REGULATORY PERIOD FROM ", FRCP_y1," TO ",dms_MultiYear_FinalYear_Result) -> REGULATORY PERIOD FROM 2026-27 TO 2030-31
B4: 3.3 ASSETS
B5: TEMPLATE DATE - SEPTEMBER 2024 - FINAL RIN
B7: There are FOUR tables on this worksheet. Both ROWS and COLUMNS in each have been grouped (and sub-grouped) for ease of navigation. see the Instructions sheet on how to group or ungroup tables.
B9: 3.3.1 - BENCHMARKING ASSET BASE VALUES
C10: Network services | K10: Standard control services | S10: Alternative control services
C11: =CONCATENATE(" VALUE FORECAST ($, real ", dms_DollarReal, ")") -> VALUE FORECAST ($, real June 2026) | K11: =CONCATENATE(" VALUE FORECAST ($, real ", dms_DollarReal, ")") -> VALUE FORECAST ($, real June 2026) | S11: =CONCATENATE(" VALUE FORECAST ($, real ", dms_DollarReal, ")") -> VALUE FORECAST ($, real June 2026)
C12: =CRCP_y4 -> 2024-25 | D12: =CRCP_y5 -> 2025-26 | E12: =FRCP_y1 -> 2026-27 | F12: =FRCP_y2 -> 2027-28 | G12: =FRCP_y3 -> 2028-29 | H12: =FRCP_y4 -> 2029-30 | I12: =FRCP_y5 -> 2030-31 | K12: =CRCP_y4 -> 2024-25 | L12: =CRCP_y5 -> 2025-26 | M12: =FRCP_y1 -> 2026-27 | N12: =FRCP_y2 -> 2027-28 | O12: =FRCP_y3 -> 2028-29 | P12: =FRCP_y4 -> 2029-30 | Q12: =FRCP_y5 -> 2030-31 | S12: =CRCP_y4 -> 2024-25 | T12: =CRCP_y5 -> 2025-26 | U12: =FRCP_y1 -> 2026-27 | V12: =FRCP_y2 -> 2027-28 | W12: =FRCP_y3 -> 2028-29 | X12: =FRCP_y4 -> 2029-30 | Y12: =FRCP_y5 -> 2030-31
B13: For total asset base:
A14: DRAB0101 | B14: Opening value | C14: 1794533404 | D14: =C21 -> 1802795638 | E14: 1865642584 | F14: 2069385048 | G14: 2248889248 | H14: 2372170230 | I14: 2478799431 | K14: 2046169096 | L14: =K21 -> 2058194371 | M14: 2132311255 | N14: 2355126220 | O14: 2555980458 | P14: 2698464549 | Q14: 2824097189 | S14: 71342502.39 | T14: =S21 -> 67388375.64 | U14: 66742750.69 | V14: 81831071.13 | W14: 98323293.95 | X14: 114504536.2 | Y14: 132628870.7
A15: DRAB0102 | B15: Inflation addition | C15: 0 | D15: 0 | E15: 0 | F15: 0 | G15: 0 | H15: 0 | I15: 0 | K15: 0 | L15: 0 | M15: 0 | N15: 0 | O15: 0 | P15: 0 | Q15: 0 | S15: 0 | T15: 0 | U15: 0 | V15: 0 | W15: 0 | X15: 0 | Y15: 0
A16: DRAB0103 | B16: Actual straight line depreciation | C16: 101214297.5 | D16: 106247296.6 | E16: 96650327.08 | F16: 106062064.4 | G16: 114729627.5 | H16: 121781882.2 | I16: 128476267.2 | K16: 112467397.6 | L16: 117945935.7 | M16: 108606271.2 | N16: 118657505.7 | O16: 128022854.3 | P16: 135741681.1 | Q16: 143111095.2 | S16: 12647960.69 | T16: 13229990.7 | U16: 7609616.811 | V16: 9714875.571 | W16: 11480712.96 | X16: 13422045.48 | Y16: 15951627.98
A17: DRAB0104 | B17: Gross capex | C17: 249804452.8 | D17: 338920636.2 | E17: 447350869.6 | F17: 407045420.6 | G17: 402405846.6 | H17: 381971266 | I17: 327259036.2 | K17: 290135964.1 | L17: 398760074.3 | M17: 511880103.5 | N17: 468703327 | O17: 472073021.1 | P17: 449671615.3 | Q17: 385593116.7 | S17: 8693833.942 | T17: 13890090.14 | U17: 22697937.25 | V17: 26207098.39 | W17: 27661955.22 | X17: 31546379.99 | Y17: 31675423.57
A18: DRAB0108 | B18: Capital contributions included in gross capex | C18: 139788714.1 | D18: 149191777.2 | E18: 146043772.2 | F18: 121060941.9 | G18: 163604745 | H18: 152967728.2 | I18: 128466158 | K18: 165104085 | L18: 183147011.5 | M18: 179544560.3 | N18: 148773369.3 | O18: 200775583.6 | P18: 187704841 | Q18: 157917001.2 | S18: 0 | T18: 0 | U18: 0 | V18: 0 | W18: 0 | X18: 0 | Y18: 0
A19: DRAB0106 | B19: Disposals | C19: 539206.2882 | D19: 405980.4338 | E19: 914306.2307 | F19: 418214.1009 | G19: 790492.2744 | H19: 592453.8535 | I19: 122227.9529 | K19: 539206.2882 | L19: 405980.4338 | M19: 914306.2307 | N19: 418214.1009 | O19: 790492.2744 | P19: 592453.8535 | Q19: 122227.9529 | S19: 0 | T19: 0 | U19: 0 | V19: 0 | W19: 0 | X19: 0 | Y19: 0
A20: DRAB0109 | B20: Capex timing adjustment | C20: 0 | D20: -20228636.75 | E20: 0 | F20: 0 | G20: 0 | H20: 0 | I20: 0 | K20: 0 | L20: -23144262.7 | M20: 0 | N20: 0 | O20: 0 | P20: 0 | Q20: 0 | S20: 0 | T20: -1305724.389 | U20: 0 | V20: 0 | W20: 0 | X20: 0 | Y20: 0
A21: DRAB0107 | B21: Closing value | C21: =C14+C15-C16+C17-C18-C19+C20 -> 1802795638 | D21: 1865642584 | E21: 2069385048 | F21: 2248889248 | G21: 2372170230 | H21: 2478799431 | I21: 2548993814 | K21: =K14+K15-K16+K17-K18-K19+K20 -> 2058194371 | L21: 2132311255 | M21: 2355126220 | N21: 2555980458 | O21: 2698464549 | P21: 2824097189 | Q21: 2908539981 | S21: =S14+S15-S16+S17-S18-S19+S20 -> 67388375.64 | T21: 66742750.69 | U21: 81831071.13 | V21: 98323293.95 | W21: 114504536.2 | X21: 132628870.7 | Y21: 148352666.3
B24: 3.3.2 - ASSET VALUE ROLL FORWARD
C25: Network services | K25: Standard control services | S25: Alternative control services
C26: =CONCATENATE(" VALUE FORECAST ($, real ", dms_DollarReal, ")") -> VALUE FORECAST ($, real June 2026) | K26: =CONCATENATE(" VALUE FORECAST ($, real ", dms_DollarReal, ")") -> VALUE FORECAST ($, real June 2026) | S26: =CONCATENATE(" VALUE FORECAST ($, real ", dms_DollarReal, ")") -> VALUE FORECAST ($, real June 2026)
C27: =CRCP_y4 -> 2024-25 | D27: =CRCP_y5 -> 2025-26 | E27: =FRCP_y1 -> 2026-27 | F27: =FRCP_y2 -> 2027-28 | G27: =FRCP_y3 -> 2028-29 | H27: =FRCP_y4 -> 2029-30 | I27: =FRCP_y5 -> 2030-31 | K27: =CRCP_y4 -> 2024-25 | L27: =CRCP_y5 -> 2025-26 | M27: =FRCP_y1 -> 2026-27 | N27: =FRCP_y2 -> 2027-28 | O27: =FRCP_y3 -> 2028-29 | P27: =FRCP_y4 -> 2029-30 | Q27: =FRCP_y5 -> 2030-31 | S27: =CRCP_y4 -> 2024-25 | T27: =CRCP_y5 -> 2025-26 | U27: =FRCP_y1 -> 2026-27 | V27: =FRCP_y2 -> 2027-28 | W27: =FRCP_y3 -> 2028-29 | X27: =FRCP_y4 -> 2029-30 | Y27: =FRCP_y5 -> 2030-31
B28: For overhead network assets less than 33kV:
A29: DRAB0201 | B29: Opening value | C29: 985808797.1 | D29: =C36 -> 999149784.3 | E29: 1040965928 | F29: 1112956756 | G29: 1193715304 | H29: 1266317904 | I29: 1338202403 | K29: 1209280604 | L29: =K36 -> 1225963460 | M29: 1277788175 | N29: 1366716848 | O29: 1466435868 | P29: 1556092303 | Q29: 1644853312 | S29: 0 | T29: =S36 -> 0 | U29: 0 | V29: 0 | W29: 0 | X29: 0 | Y29: 0
A30: DRAB0202 | B30: Inflation addition | C30: 0 | D30: 0 | E30: 0 | F30: 0 | G30: 0 | H30: 0 | I30: 0 | K30: 0 | L30: 0 | M30: 0 | N30: 0 | O30: 0 | P30: 0 | Q30: 0 | S30: 0 | T30: 0 | U30: 0 | V30: 0 | W30: 0 | X30: 0 | Y30: 0
A31: DRAB0203 | B31: Actual straight line depreciation | C31: 44085181.29 | D31: 45766447.88 | E31: 46671138.53 | F31: 49059018.4 | G31: 51673013.37 | H31: 54176681.26 | I31: 56717316.21 | K31: 54078797.87 | L31: 56155737.3 | M31: 57288934.53 | N31: 60244736.93 | O31: 63478418.98 | P31: 66574054.14 | Q31: 69714166.74 | S31: 0 | T31: 0 | U31: 0 | V31: 0 | W31: 0 | X31: 0 | Y31: 0
A32: DRAB0204 | B32: Gross capex | C32: 154239644.8 | D32: 228843735.1 | E32: 246778902.9 | F32: 235798096.4 | G32: 266427909.8 | H32: 258906187.6 | I32: 223086801.6 | K32: 190057122.3 | L32: 281985748.8 | M32: 304085815.2 | N32: 290555049.5 | O32: 328297707.7 | P32: 319029293.7 | Q32: 274891942.2 | S32: 0 | T32: 0 | U32: 0 | V32: 0 | W32: 0 | X32: 0 | Y32: 0
A33: DRAB0208 | B33: Capital contributions included in gross capex | C33: 96813476.34 | D33: 129854872.9 | E33: 128116936.2 | F33: 105980530.6 | G33: 142152296 | H33: 132845007.8 | I33: 112628747.5 | K33: 119295468.6 | L33: 160009726.9 | M33: 157868207.2 | N33: 130591293 | O33: 175162853.4 | P33: 163694230 | Q33: 138783356.6 | S33: 0 | T33: 0 | U33: 0 | V33: 0 | W33: 0 | X33: 0 | Y33: 0
A34: DRAB0206 | B34: Disposals | C34: 0 | D34: 0 | E34: 0 | F34: 0 | G34: 0 | H34: 0 | I34: 0 | K34: 0 | L34: 0 | M34: 0 | N34: 0 | O34: 0 | P34: 0 | Q34: 0 | S34: 0 | T34: 0 | U34: 0 | V34: 0 | W34: 0 | X34: 0 | Y34: 0
A35: DRAB0209 | B35: Capex timing adjustment | C35: 0 | D35: -11406270.55 | E35: 0 | F35: 0 | G35: 0 | H35: 0 | I35: 0 | K35: 0 | L35: -13995570.17 | M35: 0 | N35: 0 | O35: 0 | P35: 0 | Q35: 0 | S35: 0 | T35: 0 | U35: 0 | V35: 0 | W35: 0 | X35: 0 | Y35: 0
A36: DRAB0207 | B36: Closing value | C36: =C29+C30-C31+C32-C33-C34+C35 -> 999149784.3 | D36: 1040965928 | E36: 1112956756 | F36: 1193715304 | G36: 1266317904 | H36: 1338202403 | I36: 1391943141 | K36: =K29+K30-K31+K32-K33-K34+K35 -> 1225963460 | L36: 1277788175 | M36: 1366716848 | N36: 1466435868 | O36: 1556092303 | P36: 1644853312 | Q36: 1711247731 | S36: =S29+S30-S31+S32-S33-S34+S35 -> 0 | T36: 0 | U36: 0 | V36: 0 | W36: 0 | X36: 0 | Y36: 0
B37: For underground network assets less than 33kV:
A38: DRAB0301 | B38: Opening value | C38: 70939704.6 | D38: =C45 -> 71899734.26 | E38: 74908862.3 | F38: 80089388.28 | G38: 85900847.37 | H38: 91125397.05 | I38: 96298271.45 | K38: 87020940.68 | L38: =K45 -> 88221454.27 | M38: 91950808.22 | N38: 98350197.07 | O38: 105526069.1 | P38: 111977828.4 | Q38: 118365152 | S38: 0 | T38: =S45 -> 0 | U38: 0 | V38: 0 | W38: 0 | X38: 0 | Y38: 0
A39: DRAB0302 | B39: Inflation addition | C39: 0 | D39: 0 | E39: 0 | F39: 0 | G39: 0 | H39: 0 | I39: 0 | K39: 0 | L39: 0 | M39: 0 | N39: 0 | O39: 0 | P39: 0 | Q39: 0 | S39: 0 | T39: 0 | U39: 0 | V39: 0 | W39: 0 | X39: 0 | Y39: 0
A40: DRAB0303 | B40: Actual straight line depreciation | C40: 3172410.053 | D40: 3293395.538 | E40: 3358497.906 | F40: 3530331.93 | G40: 3718437.404 | H40: 3898603.64 | I40: 4081430.059 | K40: 3891559.862 | L40: 4041018.326 | M40: 4122564.238 | N40: 4335266.487 | O40: 4567965.212 | P40: 4790729.955 | Q40: 5016695.336 | S40: 0 | T40: 0 | U40: 0 | V40: 0 | W40: 0 | X40: 0 | Y40: 0
A41: DRAB0304 | B41: Gross capex | C41: 11099226.21 | D41: 16467804.93 | E41: 17758436.04 | F41: 16968247.14 | G41: 19172396.59 | H41: 18631126.56 | I41: 16053530.72 | K41: 13676684.72 | L41: 20291952.94 | M41: 21882293.97 | N41: 20908607.67 | O41: 23624603.95 | P41: 22957640.39 | Q41: 19781476.12 | S41: 0 | T41: 0 | U41: 0 | V41: 0 | W41: 0 | X41: 0 | Y41: 0
A42: DRAB0308 | B42: Capital contributions included in gross capex | C42: 6966786.494 | D42: 9344475.671 | E42: 9219412.154 | F42: 7626456.118 | G42: 10229409.51 | H42: 9559648.522 | I42: 8104867.899 | K42: 8584611.265 | L42: 11514446.61 | M42: 11360340.88 | N42: 9397469.143 | O42: 12604879.48 | P42: 11779586.82 | Q42: 9986977.544 | S42: 0 | T42: 0 | U42: 0 | V42: 0 | W42: 0 | X42: 0 | Y42: 0
A43: DRAB0306 | B43: Disposals | C43: 0 | D43: 0 | E43: 0 | F43: 0 | G43: 0 | H43: 0 | I43: 0 | K43: 0 | L43: 0 | M43: 0 | N43: 0 | O43: 0 | P43: 0 | Q43: 0 | S43: 0 | T43: 0 | U43: 0 | V43: 0 | W43: 0 | X43: 0 | Y43: 0
A44: DRAB0309 | B44: Capex timing adjustment | C44: 0 | D44: -820805.6834 | E44: 0 | F44: 0 | G44: 0 | H44: 0 | I44: 0 | K44: 0 | L44: -1007134.057 | M44: 0 | N44: 0 | O44: 0 | P44: 0 | Q44: 0 | S44: 0 | T44: 0 | U44: 0 | V44: 0 | W44: 0 | X44: 0 | Y44: 0
A45: DRAB0307 | B45: Closing value | C45: =C38+C39-C40+C41-C42-C43+C44 -> 71899734.26 | D45: 74908862.3 | E45: 80089388.28 | F45: 85900847.37 | G45: 91125397.05 | H45: 96298271.45 | I45: 100165504.2 | K45: =K38+K39-K40+K41-K42-K43+K44 -> 88221454.27 | L45: 91950808.22 | M45: 98350197.07 | N45: 105526069.1 | O45: 111977828.4 | P45: 118365152 | Q45: 123142955.2 | S45: =S38+S39-S40+S41-S42-S43+S44 -> 0 | T45: 0 | U45: 0 | V45: 0 | W45: 0 | X45: 0 | Y45: 0
B46: For distribution substations and transformers:
A47: DRAB0401 | B47: Opening value | C47: 53300599.69 | D47: =C54 -> 54021918.69 | E47: 56282829.27 | F47: 60175221.31 | G47: 64541665.41 | H47: 68467134.69 | I47: 72353777.71 | K47: 65383248.35 | L47: =K54 -> 66285255.13 | M47: 69087307.99 | N47: 73895493.55 | O47: 79287090.33 | P47: 84134624.44 | Q47: 88933744.77 | S47: 0 | T47: =S54 -> 0 | U47: 0 | V47: 0 | W47: 0 | X47: 0 | Y47: 0
A48: DRAB0402 | B48: Inflation addition | C48: 0 | D48: 0 | E48: 0 | F48: 0 | G48: 0 | H48: 0 | I48: 0 | K48: 0 | L48: 0 | M48: 0 | N48: 0 | O48: 0 | P48: 0 | Q48: 0 | S48: 0 | T48: 0 | U48: 0 | V48: 0 | W48: 0 | X48: 0 | Y48: 0
A49: DRAB0403 | B49: Actual straight line depreciation | C49: 2383592.647 | D49: 2474495.181 | E49: 2523409.893 | F49: 2652517.515 | G49: 2793850.702 | H49: 2929218.738 | I49: 3066585.504 | K49: 2923926.39 | L49: 3036222.118 | M49: 3097491.699 | N49: 3257305.692 | O49: 3432144.051 | P49: 3599518.507 | Q49: 3769297.763 | S49: 0 | T49: 0 | U49: 0 | V49: 0 | W49: 0 | X49: 0 | Y49: 0
A50: DRAB0404 | B50: Gross capex | C50: 8339411.85 | D50: 12373097.45 | E50: 13342814.1 | F50: 12749105.08 | G50: 14405194.4 | H50: 13998510.77 | I50: 12061832.22 | K50: 10275987.21 | L50: 15246373.9 | M50: 16441277.81 | N50: 15709697.89 | O50: 17750363.71 | P50: 17249240.14 | Q50: 14862826.76 | S50: 0 | T50: 0 | U50: 0 | V50: 0 | W50: 0 | X50: 0 | Y50: 0
A51: DRAB0408 | B51: Capital contributions included in gross capex | C51: 5234500.201 | D51: 7020978.729 | E51: 6927012.163 | F51: 5730143.463 | G51: 7685874.426 | H51: 7182649.011 | I51: 6089598.51 | K51: 6450054.044 | L51: 8651388.003 | M51: 8535600.553 | N51: 7060795.414 | O51: 9470685.549 | P51: 8850601.301 | Q51: 7503722.988 | S51: 0 | T51: 0 | U51: 0 | V51: 0 | W51: 0 | X51: 0 | Y51: 0
A52: DRAB0406 | B52: Disposals | C52: 0 | D52: 0 | E52: 0 | F52: 0 | G52: 0 | H52: 0 | I52: 0 | K52: 0 | L52: 0 | M52: 0 | N52: 0 | O52: 0 | P52: 0 | Q52: 0 | S52: 0 | T52: 0 | U52: 0 | V52: 0 | W52: 0 | X52: 0 | Y52: 0
A53: DRAB0409 | B53: Capex timing adjustment | C53: 0 | D53: -616712.9593 | E53: 0 | F53: 0 | G53: 0 | H53: 0 | I53: 0 | K53: 0 | L53: -756710.921 | M53: 0 | N53: 0 | O53: 0 | P53: 0 | Q53: 0 | S53: 0 | T53: 0 | U53: 0 | V53: 0 | W53: 0 | X53: 0 | Y53: 0
A54: DRAB0407 | B54: Closing value | C54: =C47+C48-C49+C50-C51-C52+C53 -> 54021918.69 | D54: 56282829.27 | E54: 60175221.31 | F54: 64541665.41 | G54: 68467134.69 | H54: 72353777.71 | I54: 75259425.91 | K54: =K47+K48-K49+K50-K51-K52+K53 -> 66285255.13 | L54: 69087307.99 | M54: 73895493.55 | N54: 79287090.33 | O54: 84134624.44 | P54: 88933744.77 | Q54: 92523550.78 | S54: =S47+S48-S49+S50-S51-S52+S53 -> 0 | T54: 0 | U54: 0 | V54: 0 | W54: 0 | X54: 0 | Y54: 0
B55: For overhead network assets 33kV and above:
A56: DRAB0501 | B56: Opening value | C56: 264694148.2 | D56: =C63 -> 266196700.9 | E56: 278476573.2 | F56: 311565038.5 | G56: 350786953.2 | H56: 370074160.7 | I56: 384999331.2 | K56: 264694148.2 | L56: =K63 -> 266196700.9 | M56: 278476573.2 | N56: 311565038.5 | O56: 350786953.2 | P56: 370074160.7 | Q56: 384999331.2 | S56: 0 | T56: =S63 -> 0 | U56: 0 | V56: 0 | W56: 0 | X56: 0 | Y56: 0
A57: DRAB0502 | B57: Inflation addition | C57: 0 | D57: 0 | E57: 0 | F57: 0 | G57: 0 | H57: 0 | I57: 0 | K57: 0 | L57: 0 | M57: 0 | N57: 0 | O57: 0 | P57: 0 | Q57: 0 | S57: 0 | T57: 0 | U57: 0 | V57: 0 | W57: 0 | X57: 0 | Y57: 0
A58: DRAB0503 | B58: Actual straight line depreciation | C58: 8040283.999 | D58: 8349152.415 | E58: 8844698.204 | F58: 9630520.535 | G58: 10546009.17 | H58: 11105079.98 | I58: 11592883.68 | K58: 8040283.999 | L58: 8349152.415 | M58: 8844698.204 | N58: 9630520.535 | O58: 10546009.17 | P58: 11105079.98 | Q58: 11592883.68 | S58: 0 | T58: 0 | U58: 0 | V58: 0 | W58: 0 | X58: 0 | Y58: 0
A59: DRAB0504 | B59: Gross capex | C59: 25102840.12 | D59: 23917642.35 | E59: 42833379.8 | F59: 49724033.28 | G59: 31621687.11 | H59: 27739468.47 | I59: 21861740.32 | K59: 25102840.12 | L59: 23917642.35 | M59: 42833379.8 | N59: 49724033.28 | O59: 31621687.11 | P59: 27739468.47 | Q59: 21861740.32 | S59: 0 | T59: 0 | U59: 0 | V59: 0 | W59: 0 | X59: 0 | Y59: 0
A60: DRAB0508 | B60: Capital contributions included in gross capex | C60: 15560003.44 | D60: 1502432.104 | E60: 900216.2973 | F60: 871598.07 | G60: 1788470.432 | H60: 1709218.009 | I60: 830709.5888 | K60: 15560003.44 | L60: 1502432.104 | M60: 900216.2973 | N60: 871598.07 | O60: 1788470.432 | P60: 1709218.009 | Q60: 830709.5888 | S60: 0 | T60: 0 | U60: 0 | V60: 0 | W60: 0 | X60: 0 | Y60: 0
A61: DRAB0506 | B61: Disposals | C61: 0 | D61: 0 | E61: 0 | F61: 0 | G61: 0 | H61: 0 | I61: 0 | K61: 0 | L61: 0 | M61: 0 | N61: 0 | O61: 0 | P61: 0 | Q61: 0 | S61: 0 | T61: 0 | U61: 0 | V61: 0 | W61: 0 | X61: 0 | Y61: 0
A62: DRAB0509 | B62: Capex timing adjustment | C62: 0 | D62: -1786185.558 | E62: 0 | F62: 0 | G62: 0 | H62: 0 | I62: 0 | K62: 0 | L62: -1786185.558 | M62: 0 | N62: 0 | O62: 0 | P62: 0 | Q62: 0 | S62: 0 | T62: 0 | U62: 0 | V62: 0 | W62: 0 | X62: 0 | Y62: 0
A63: DRAB0507 | B63: Closing value | C63: =C56+C57-C58+C59-C60-C61+C62 -> 266196700.9 | D63: 278476573.2 | E63: 311565038.5 | F63: 350786953.2 | G63: 370074160.7 | H63: 384999331.2 | I63: 394437478.2 | K63: =K56+K57-K58+K59-K60-K61+K62 -> 266196700.9 | L63: 278476573.2 | M63: 311565038.5 | N63: 350786953.2 | O63: 370074160.7 | P63: 384999331.2 | Q63: 394437478.2 | S63: =S56+S57-S58+S59-S60-S61+S62 -> 0 | T63: 0 | U63: 0 | V63: 0 | W63: 0 | X63: 0 | Y63: 0
B64: For underground network assets 33kV and above:
A65: DRAB0601 | B65: Opening value | C65: 10153161.22 | D65: =C72 -> 10210796.26 | E65: 10681828.68 | F65: 11951038.91 | G65: 13455516.54 | H65: 14195336.92 | I65: 14767837.91 | K65: 10153161.22 | L65: =K72 -> 10210796.26 | M65: 10681828.68 | N65: 11951038.91 | O65: 13455516.54 | P65: 14195336.92 | Q65: 14767837.91 | S65: 0 | T65: =S72 -> 0 | U65: 0 | V65: 0 | W65: 0 | X65: 0 | Y65: 0
A66: DRAB0602 | B66: Inflation addition | C66: 0 | D66: 0 | E66: 0 | F66: 0 | G66: 0 | H66: 0 | I66: 0 | K66: 0 | L66: 0 | M66: 0 | N66: 0 | O66: 0 | P66: 0 | Q66: 0 | S66: 0 | T66: 0 | U66: 0 | V66: 0 | W66: 0 | X66: 0 | Y66: 0
A67: DRAB0603 | B67: Actual straight line depreciation | C67: 308409.9147 | D67: 320257.5163 | E67: 339265.7049 | F67: 369408.3464 | G67: 404524.7392 | H67: 425969.6263 | I67: 444680.8429 | K67: 308409.9147 | L67: 320257.5163 | M67: 339265.7049 | N67: 369408.3464 | O67: 404524.7392 | P67: 425969.6263 | Q67: 444680.8429 | S67: 0 | T67: 0 | U67: 0 | V67: 0 | W67: 0 | X67: 0 | Y67: 0
A68: DRAB0604 | B68: Gross capex | C68: 962896.9303 | D68: 917435.0107 | E68: 1643006.517 | F68: 1907318.804 | G68: 1212947.431 | H68: 1064032.95 | I68: 838574.5415 | K68: 962896.9303 | L68: 917435.0107 | M68: 1643006.517 | N68: 1907318.804 | O68: 1212947.431 | P68: 1064032.95 | Q68: 838574.5415 | S68: 0 | T68: 0 | U68: 0 | V68: 0 | W68: 0 | X68: 0 | Y68: 0
A69: DRAB0608 | B69: Capital contributions included in gross capex | C69: 596851.9689 | D69: 57630.42165 | E69: 34530.57523 | F69: 33432.83477 | G69: 68602.30478 | H69: 65562.33344 | I69: 31864.43084 | K69: 596851.9689 | L69: 57630.42165 | M69: 34530.57523 | N69: 33432.83477 | O69: 68602.30478 | P69: 65562.33344 | Q69: 31864.43084 | S69: 0 | T69: 0 | U69: 0 | V69: 0 | W69: 0 | X69: 0 | Y69: 0
A70: DRAB0606 | B70: Disposals | C70: 0 | D70: 0 | E70: 0 | F70: 0 | G70: 0 | H70: 0 | I70: 0 | K70: 0 | L70: 0 | M70: 0 | N70: 0 | O70: 0 | P70: 0 | Q70: 0 | S70: 0 | T70: 0 | U70: 0 | V70: 0 | W70: 0 | X70: 0 | Y70: 0
A71: DRAB0609 | B71: Capex timing adjustment | C71: 0 | D71: -68514.66139 | E71: 0 | F71: 0 | G71: 0 | H71: 0 | I71: 0 | K71: 0 | L71: -68514.66139 | M71: 0 | N71: 0 | O71: 0 | P71: 0 | Q71: 0 | S71: 0 | T71: 0 | U71: 0 | V71: 0 | W71: 0 | X71: 0 | Y71: 0
A72: DRAB0607 | B72: Closing value | C72: =C65+C66-C67+C68-C69-C70+C71 -> 10210796.26 | D72: 10681828.68 | E72: 11951038.91 | F72: 13455516.54 | G72: 14195336.92 | H72: 14767837.91 | I72: 15129867.18 | K72: =K65+K66-K67+K68-K69-K70+K71 -> 10210796.26 | L72: 10681828.68 | M72: 11951038.91 | N72: 13455516.54 | O72: 14195336.92 | P72: 14767837.91 | Q72: 15129867.18 | S72: =S65+S66-S67+S68-S69-S70+S71 -> 0 | T72: 0 | U72: 0 | V72: 0 | W72: 0 | X72: 0 | Y72: 0
B73: Zone substations and transformers
A74: DRAB0701 | B74: Opening value | C74: 248654166.4 | D74: =C81 -> 250065667.2 | E74: =D81 -> 261601401.6 | F74: =E81 -> 292684766.4 | G74: =F81 -> 329529904.7 | H74: =G81 -> 347648342.7 | I74: =H81 -> 361669075.1 | K74: 248654166.4 | L74: =K81 -> 250065667.2 | M74: =L81 -> 261601401.6 | N74: =M81 -> 292684766.4 | O74: =N81 -> 329529904.7 | P74: =O81 -> 347648342.7 | Q74: =P81 -> 361669075.1 | S74: 0 | T74: =S81 -> 0 | U74: =T81 -> 0 | V74: =U81 -> 0 | W74: =V81 -> 0 | X74: =W81 -> 0 | Y74: =X81 -> 0
A75: DRAB0702 | B75: Inflation addition | C75: 0 | D75: 0 | E75: 0 | F75: 0 | G75: 0 | H75: 0 | I75: 0 | K75: 0 | L75: 0 | M75: 0 | N75: 0 | O75: 0 | P75: 0 | Q75: 0 | S75: 0 | T75: 0 | U75: 0 | V75: 0 | W75: 0 | X75: 0 | Y75: 0
A76: DRAB0703 | B76: Actual straight line depreciation | C76: 7553057.478 | D76: 7843209.032 | E76: 8308725.652 | F76: 9046928.585 | G76: 9906940.28 | H76: 10432132.42 | I76: 10890376.11 | K76: 7553057.478 | L76: 7843209.032 | M76: 8308725.652 | N76: 9046928.585 | O76: 9906940.28 | P76: 10432132.42 | Q76: 10890376.11 | S76: 0 | T76: 0 | U76: 0 | V76: 0 | W76: 0 | X76: 0 | Y76: 0
A77: DRAB0704 | B77: Gross capex | C77: 23581653.87 | D77: 22468276.92 | E77: 40237755.24 | F77: 46710847.71 | G77: 29705470.64 | H77: 26058507.36 | I77: 20536958.8 | K77: 23581653.87 | L77: 22468276.92 | M77: 40237755.24 | N77: 46710847.71 | O77: 29705470.64 | P77: 26058507.36 | Q77: 20536958.8 | S77: 0 | T77: 0 | U77: 0 | V77: 0 | W77: 0 | X77: 0 | Y77: 0
A78: DRAB0708 | B78: Capital contributions included in gross capex | C78: 14617095.66 | D78: 1411387.463 | E78: 845664.8344 | F78: 818780.8194 | G78: 1680092.391 | H78: 1605642.521 | I78: 780370.1054 | K78: 14617095.66 | L78: 1411387.463 | M78: 845664.8344 | N78: 818780.8194 | O78: 1680092.391 | P78: 1605642.521 | Q78: 780370.1054 | S78: 0 | T78: 0 | U78: 0 | V78: 0 | W78: 0 | X78: 0 | Y78: 0
A79: DRAB0706 | B79: Disposals | C79: 0 | D79: 0 | E79: 0 | F79: 0 | G79: 0 | H79: 0 | I79: 0 | K79: 0 | L79: 0 | M79: 0 | N79: 0 | O79: 0 | P79: 0 | Q79: 0 | S79: 0 | T79: 0 | U79: 0 | V79: 0 | W79: 0 | X79: 0 | Y79: 0
A80: DRAB0709 | B80: Capex timing adjustment | C80: 0 | D80: -1677945.977 | E80: 0 | F80: 0 | G80: 0 | H80: 0 | I80: 0 | K80: 0 | L80: -1677945.977 | M80: 0 | N80: 0 | O80: 0 | P80: 0 | Q80: 0 | S80: 0 | T80: 0 | U80: 0 | V80: 0 | W80: 0 | X80: 0 | Y80: 0
A81: DRAB0707 | B81: Closing value | C81: =C74+C75-C76+C77-C78-C79+C80 -> 250065667.2 | D81: 261601401.6 | E81: 292684766.4 | F81: 329529904.7 | G81: 347648342.7 | H81: 361669075.1 | I81: 370535287.7 | K81: =K74+K75-K76+K77-K78-K79+K80 -> 250065667.2 | L81: 261601401.6 | M81: 292684766.4 | N81: 329529904.7 | O81: 347648342.7 | P81: 361669075.1 | Q81: 370535287.7 | S81: =S74+S75-S76+S77-S78-S79+S80 -> 0 | T81: 0 | U81: 0 | V81: 0 | W81: 0 | X81: 0 | Y81: 0
B82: For easements:
A83: DRAB0801 | B83: Opening value | C83: 0 | D83: 0 | E83: 0 | F83: 0 | G83: 0 | H83: 0 | I83: 0 | K83: 0 | L83: 0 | M83: 0 | N83: 0 | O83: 0 | P83: 0 | Q83: 0 | S83: 0 | T83: 0 | U83: 0 | V83: 0 | W83: 0 | X83: 0 | Y83: 0
A84: DRAB0802 | B84: Inflation addition | C84: 0 | D84: 0 | E84: 0 | F84: 0 | G84: 0 | H84: 0 | I84: 0 | K84: 0 | L84: 0 | M84: 0 | N84: 0 | O84: 0 | P84: 0 | Q84: 0 | S84: 0 | T84: 0 | U84: 0 | V84: 0 | W84: 0 | X84: 0 | Y84: 0
B85: Actual straight line depreciation
A86: DRAB0804 | B86: Gross capex | C86: 0 | D86: 0 | E86: 0 | F86: 0 | G86: 0 | H86: 0 | I86: 0 | K86: 0 | L86: 0 | M86: 0 | N86: 0 | O86: 0 | P86: 0 | Q86: 0 | S86: 0 | T86: 0 | U86: 0 | V86: 0 | W86: 0 | X86: 0 | Y86: 0
A87: DRAB0808 | B87: Capital contributions included in gross capex | C87: 0 | D87: 0 | E87: 0 | F87: 0 | G87: 0 | H87: 0 | I87: 0 | K87: 0 | L87: 0 | M87: 0 | N87: 0 | O87: 0 | P87: 0 | Q87: 0 | S87: 0 | T87: 0 | U87: 0 | V87: 0 | W87: 0 | X87: 0 | Y87: 0
A88: DRAB0806 | B88: Disposals | C88: 0 | D88: 0 | E88: 0 | F88: 0 | G88: 0 | H88: 0 | I88: 0 | K88: 0 | L88: 0 | M88: 0 | N88: 0 | O88: 0 | P88: 0 | Q88: 0 | S88: 0 | T88: 0 | U88: 0 | V88: 0 | W88: 0 | X88: 0 | Y88: 0
A89: DRAB0809 | B89: Capex timing adjustment | C89: 0 | D89: 0 | E89: 0 | F89: 0 | G89: 0 | H89: 0 | I89: 0 | K89: 0 | L89: 0 | M89: 0 | N89: 0 | O89: 0 | P89: 0 | Q89: 0 | S89: 0 | T89: 0 | U89: 0 | V89: 0 | W89: 0 | X89: 0 | Y89: 0
A90: DRAB0807 | B90: Closing value | C90: =C83+C84-C85+C86-C87-C88+C89 -> 0 | D90: 0 | E90: 0 | F90: 0 | G90: 0 | H90: 0 | I90: 0 | K90: =K83+K84-K85+K86-K87-K88+K89 -> 0 | L90: 0 | M90: 0 | N90: 0 | O90: 0 | P90: 0 | Q90: 0 | S90: =S83+S84-S85+S86-S87-S88+S89 -> 0 | T90: 0 | U90: 0 | V90: 0 | W90: 0 | X90: 0 | Y90: 0
B91: For meters:
A92: DRAB0901 | B92: Opening value | C92: 0 | D92: =C99 -> 0 | E92: =D99 -> 0 | F92: =E99 -> 0 | G92: =F99 -> 0 | H92: =G99 -> 0 | I92: =H99 -> 0 | K92: 3.405208931e-09 | L92: =K99 -> 3.405208931e-09 | M92: =L99 -> 3.405208931e-09 | N92: =M99 -> 3.405208931e-09 | O92: =N99 -> 3.405208931e-09 | P92: =O99 -> 3.405208931e-09 | Q92: =P99 -> 3.405208931e-09 | S92: 48162727.38 | T92: =S99 -> 44235568.17 | U92: =T99 -> 41400155.54 | V92: =U99 -> 42978055.44 | W92: =V99 -> 49663790.92 | X92: =W99 -> 60164431.98 | Y92: =X99 -> 72427350.19
A93: DRAB0902 | B93: Inflation addition | C93: 0 | D93: 0 | E93: 0 | F93: 0 | G93: 0 | H93: 0 | I93: 0 | K93: 0 | L93: 0 | M93: 0 | N93: 0 | O93: 0 | P93: 0 | Q93: 0 | S93: 0 | T93: 0 | U93: 0 | V93: 0 | W93: 0 | X93: 0 | Y93: 0
A94: DRAB0903 | B94: Actual straight line depreciation | C94: 0 | D94: 0 | E94: 0 | F94: 0 | G94: 0 | H94: 0 | I94: 0 | K94: 0 | L94: 0 | M94: 0 | N94: 0 | O94: 0 | P94: 0 | Q94: 0 | S94: 10006367.77 | T94: 10411648.34 | U94: 5085812.681 | V94: 5530060.186 | W94: 6344446.564 | X94: 7467452.406 | Y94: 8782810.447
A95: DRAB0904 | B95: Gross capex | C95: 0 | D95: 0 | E95: 0 | F95: 0 | G95: 0 | H95: 0 | I95: 0 | K95: 0 | L95: 0 | M95: 0 | N95: 0 | O95: 0 | P95: 0 | Q95: 0 | S95: 6079208.564 | T95: 9380148.774 | U95: 6663712.583 | V95: 12215795.66 | W95: 16845087.62 | X95: 19730370.62 | Y95: 23134420.32
A96: DRAB0908 | B96: Capital contributions included in gross capex | C96: 0 | D96: 0 | E96: 0 | F96: 0 | G96: 0 | H96: 0 | I96: 0 | K96: 0 | L96: 0 | M96: 0 | N96: 0 | O96: 0 | P96: 0 | Q96: 0 | S96: 0 | T96: 0 | U96: 0 | V96: 0 | W96: 0 | X96: 0 | Y96: 0
A97: DRAB0906 | B97: Disposals | C97: 0 | D97: 0 | E97: 0 | F97: 0 | G97: 0 | H97: 0 | I97: 0 | K97: 0 | L97: 0 | M97: 0 | N97: 0 | O97: 0 | P97: 0 | Q97: 0 | S97: 0 | T97: 0 | U97: 0 | V97: 0 | W97: 0 | X97: 0 | Y97: 0
A98: DRAB0909 | B98: Capex timing adjustment | C98: 0 | D98: 0 | E98: 0 | F98: 0 | G98: 0 | H98: 0 | I98: 0 | K98: 0 | L98: 0 | M98: 0 | N98: 0 | O98: 0 | P98: 0 | Q98: 0 | S98: 0 | T98: -1803913.062 | U98: 0 | V98: 0 | W98: 0 | X98: 0 | Y98: 0
A99: DRAB0907 | B99: Closing value | C99: =C92+C93-C94+C95-C96-C97+C98 -> 0 | D99: 0 | E99: 0 | F99: 0 | G99: 0 | H99: 0 | I99: 0 | K99: =K92+K93-K94+K95-K96-K97+K98 -> 3.405208931e-09 | L99: 3.405208931e-09 | M99: 3.405208931e-09 | N99: 3.405208931e-09 | O99: 3.405208931e-09 | P99: 3.405208931e-09 | Q99: 3.405208931e-09 | S99: =S92+S93-S94+S95-S96-S97+S98 -> 44235568.17 | T99: 41400155.54 | U99: 42978055.44 | V99: 49663790.92 | W99: 60164431.98 | X99: 72427350.19 | Y99: 86778960.07
B100: For “other” asset items with long lives:
A101: DRAB1001 | B101: Opening value | C101: 24949451.5 | D101: =C108 -> 24836654.18 | E101: =D108 -> 26256392.04 | F101: =E108 -> 58215229.09 | G101: =F108 -> 61316719.01 | H101: =G108 -> 61430276.79 | I101: =H108 -> 59935280.59 | K101: 24949451.5 | L101: =K108 -> 24836654.18 | M101: =L108 -> 26256392.04 | N101: =M108 -> 58215229.09 | O101: =N108 -> 61316719.01 | P101: =O108 -> 61430276.79 | Q101: =P108 -> 59935280.59 | S101: 16763745.56 | T101: =S108 -> 17359390.1 | U101: =T108 -> 18942788.07 | V101: =U108 -> 26103570.96 | W101: =V108 -> 31854158.14 | X101: =W108 -> 37044113.47 | Y101: =X108 -> 40755088.67
A102: DRAB1002 | B102: Inflation addition | C102: 0 | D102: 0 | E102: 0 | F102: 0 | G102: 0 | H102: 0 | I102: 0 | K102: 0 | L102: 0 | M102: 0 | N102: 0 | O102: 0 | P102: 0 | Q102: 0 | S102: 0 | T102: 0 | U102: 0 | V102: 0 | W102: 0 | X102: 0 | Y102: 0
A103: DRAB1003 | B103: Actual straight line depreciation | C103: 959787.517 | D103: 987799.2004 | E103: 934636.7896 | F103: 1780407.021 | G103: 1938237.85 | H103: 2022373.597 | I103: 2058632.941 | K103: 959787.517 | L103: 987799.2004 | M103: 934636.7896 | N103: 1780407.021 | O103: 1938237.85 | P103: 2022373.597 | Q103: 2058632.941 | S103: 1067071.817 | T103: 1107834.252 | U103: 984629.8241 | V103: 1508511.501 | W103: 1816055.202 | X103: 2089973.729 | Y103: 2317620.378
A104: DRAB1004 | B104: Gross capex | C104: 884374.9355 | D104: 355188.7276 | E104: 32956865.34 | F104: 4910892.938 | G104: 2106602.751 | H104: 568453.9374 | I104: 491759.7212 | K104: 884374.9355 | L104: 355188.7276 | M104: 32956865.34 | N104: 4910892.938 | O104: 2106602.751 | P104: 568453.9374 | Q104: 491759.7212 | S104: 1662716.361 | T104: 2691232.221 | U104: 8145412.716 | V104: 7259098.679 | W104: 7006010.528 | X104: 5800948.928 | Y104: 5083468.026
A105: DRAB1008 | B105: Capital contributions included in gross capex | C105: 0 | D105: 0 | E105: 0 | F105: 0 | G105: 0 | H105: 0 | I105: 0 | K105: 0 | L105: 0 | M105: 0 | N105: 0 | O105: 0 | P105: 0 | Q105: 0 | S105: 0 | T105: 0 | U105: 0 | V105: 0 | W105: 0 | X105: 0 | Y105: 0
A106: DRAB1006 | B106: Disposals | C106: 37384.73607 | D106: 28147.80113 | E106: 63391.50315 | F106: 28995.99675 | G106: 54807.12241 | H106: 41076.54422 | I106: 8474.418526 | K106: 37384.73607 | L106: 28147.80113 | M106: 63391.50315 | N106: 28995.99675 | O106: 54807.12241 | P106: 41076.54422 | Q106: 8474.418526 | S106: 0 | T106: 0 | U106: 0 | V106: 0 | W106: 0 | X106: 0 | Y106: 0
A107: DRAB1009 | B107: Capex timing adjustment | C107: 0 | D107: 2080496.137 | E107: 0 | F107: 0 | G107: 0 | H107: 0 | I107: 0 | K107: 0 | L107: 2080496.137 | M107: 0 | N107: 0 | O107: 0 | P107: 0 | Q107: 0 | S107: 0 | T107: 0 | U107: 0 | V107: 0 | W107: 0 | X107: 0 | Y107: 0
A108: DRAB1007 | B108: Closing value | C108: =C101+C102-C103+C104-C105-C106+C107 -> 24836654.18 | D108: 26256392.04 | E108: 58215229.09 | F108: 61316719.01 | G108: 61430276.79 | H108: 59935280.59 | I108: 58359932.95 | K108: =K101+K102-K103+K104-K105-K106+K107 -> 24836654.18 | L108: 26256392.04 | M108: 58215229.09 | N108: 61316719.01 | O108: 61430276.79 | P108: 59935280.59 | Q108: 58359932.95 | S108: =S101+S102-S103+S104-S105-S106+S107 -> 17359390.1 | T108: 18942788.07 | U108: 26103570.96 | V108: 31854158.14 | W108: 37044113.47 | X108: 40755088.67 | Y108: 43520936.31
B109: For “other” asset items with short lives:
A110: DRAB1101 | B110: Opening value | C110: 136033374.8 | D110: =C117 -> 126414382.7 | E110: =D117 -> 116468768.4 | F110: =E117 -> 141747608.9 | G110: =F117 -> 149642337.9 | H110: =G117 -> 152911676.6 | I110: =H117 -> 150573454.7 | K110: 136033374.8 | L110: =K117 -> 126414382.7 | M110: =L117 -> 116468768.4 | N110: =M117 -> 141747608.9 | O110: =N117 -> 149642337.9 | P110: =O117 -> 152911676.6 | Q110: =P117 -> 150573454.7 | S110: 6416029.45 | T110: =S117 -> 5793417.367 | U110: =T117 -> 6399807.082 | V110: =U117 -> 12749444.72 | W110: =V117 -> 16805344.89 | X110: =W117 -> 17295990.77 | Y110: =X117 -> 19446431.87
A111: DRAB1102 | B111: Inflation addition | C111: 0 | D111: 0 | E111: 0 | F111: 0 | G111: 0 | H111: 0 | I111: 0 | K111: 0 | L111: 0 | M111: 0 | N111: 0 | O111: 0 | P111: 0 | Q111: 0 | S111: 0 | T111: 0 | U111: 0 | V111: 0 | W111: 0 | X111: 0 | Y111: 0
A112: DRAB1103 | B112: Actual straight line depreciation | C112: 34711574.62 | D112: 37212539.84 | E112: 25669954.41 | F112: 29992932.06 | G112: 33748614.03 | H112: 36791822.9 | I112: 39624361.83 | K112: 34711574.62 | L112: 37212539.84 | M112: 25669954.41 | N112: 29992932.06 | O112: 33748614.03 | P112: 36791822.9 | Q112: 39624361.83 | S112: 1574521.099 | T112: 1710508.101 | U112: 1539174.306 | V112: 2676303.884 | W112: 3320211.19 | X112: 3864619.344 | Y112: 4851197.159
A113: DRAB1104 | B113: Gross capex | C113: 25594404.07 | D113: 33577455.67 | E113: 51799709.61 | F113: 38276879.22 | G113: 37753637.84 | H113: 35004978.35 | I113: 32327838.28 | K113: 25594404.07 | L113: 33577455.67 | M113: 51799709.61 | N113: 38276879.22 | O113: 37753637.84 | P113: 35004978.35 | Q113: 32327838.28 | S113: 951909.0156 | T113: 1818709.143 | U113: 7888811.948 | V113: 6732204.045 | W113: 3810857.074 | X113: 6015060.442 | Y113: 3457535.223
A114: DRAB1108 | B114: Capital contributions included in gross capex | C114: 0 | D114: 0 | E114: 0 | F114: 0 | G114: 0 | H114: 0 | I114: 0 | K114: 0 | L114: 0 | M114: 0 | N114: 0 | O114: 0 | P114: 0 | Q114: 0 | S114: 0 | T114: 0 | U114: 0 | V114: 0 | W114: 0 | X114: 0 | Y114: 0
A115: DRAB1106 | B115: Disposals | C115: 501821.5522 | D115: 377832.6327 | E115: 850914.7275 | F115: 389218.1041 | G115: 735685.152 | H115: 551377.3093 | I115: 113753.5343 | K115: 501821.5522 | L115: 377832.6327 | M115: 850914.7275 | N115: 389218.1041 | O115: 735685.152 | P115: 551377.3093 | Q115: 113753.5343 | S115: 0 | T115: 0 | U115: 0 | V115: 0 | W115: 0 | X115: 0 | Y115: 0
A116: DRAB1109 | B116: Capex timing adjustment | C116: 0 | D116: -5932697.5 | E116: 0 | F116: 0 | G116: 0 | H116: 0 | I116: 0 | K116: 0 | L116: -5932697.5 | M116: 0 | N116: 0 | O116: 0 | P116: 0 | Q116: 0 | S116: 0 | T116: 498188.6733 | U116: 0 | V116: 0 | W116: 0 | X116: 0 | Y116: 0
A117: DRAB1107 | B117: Closing value | C117: =C110+C111-C112+C113-C114-C115+C116 -> 126414382.7 | D117: 116468768.4 | E117: 141747608.9 | F117: 149642337.9 | G117: 152911676.6 | H117: 150573454.7 | I117: 143163177.7 | K117: =K110+K111-K112+K113-K114-K115+K116 -> 126414382.7 | L117: 116468768.4 | M117: 141747608.9 | N117: 149642337.9 | O117: 152911676.6 | P117: 150573454.7 | Q117: 143163177.7 | S117: =S110+S111-S112+S113-S114-S115+S116 -> 5793417.367 | T117: 6399807.082 | U117: 12749444.72 | V117: 16805344.89 | W117: 17295990.77 | X117: 19446431.87 | Y117: 18052769.93
B121: 3.3.3 - TOTAL DISAGGREGATED BENCHMARKING ASSET BASE VALUES
C122: Network services | K122: Standard control services | S122: Alternative control services
C123: =CONCATENATE(" VALUE FORECAST ($, real ", dms_DollarReal, ")") -> VALUE FORECAST ($, real June 2026) | K123: =CONCATENATE(" VALUE FORECAST ($, real ", dms_DollarReal, ")") -> VALUE FORECAST ($, real June 2026) | S123: =CONCATENATE(" VALUE FORECAST ($, real ", dms_DollarReal, ")") -> VALUE FORECAST ($, real June 2026)
C124: =CRCP_y4 -> 2024-25 | D124: =CRCP_y5 -> 2025-26 | E124: =FRCP_y1 -> 2026-27 | F124: =FRCP_y2 -> 2027-28 | G124: =FRCP_y3 -> 2028-29 | H124: =FRCP_y4 -> 2029-30 | I124: =FRCP_y5 -> 2030-31 | K124: =CRCP_y4 -> 2024-25 | L124: =CRCP_y5 -> 2025-26 | M124: =FRCP_y1 -> 2026-27 | N124: =FRCP_y2 -> 2027-28 | O124: =FRCP_y3 -> 2028-29 | P124: =FRCP_y4 -> 2029-30 | Q124: =FRCP_y5 -> 2030-31 | S124: =CRCP_y4 -> 2024-25 | T124: =CRCP_y5 -> 2025-26 | U124: =FRCP_y1 -> 2026-27 | V124: =FRCP_y2 -> 2027-28 | W124: =FRCP_y3 -> 2028-29 | X124: =FRCP_y4 -> 2029-30 | Y124: =FRCP_y5 -> 2030-31
A125: DRAB1201 | B125: Overhead network assets less than 33kV (wires and poles) | C125: =IFERROR(AVERAGE(C29,C36),"") -> 992479290.7 | D125: 1020057856 | E125: 1076961342 | F125: 1153336030 | G125: 1230016604 | H125: 1302260153 | I125: 1365072772 | K125: =IFERROR(AVERAGE(K29,K36),"") -> 1217622032 | L125: 1251875817 | M125: 1322252511 | N125: 1416576358 | O125: 1511264085 | P125: 1600472808 | Q125: 1678050522 | S125: =IFERROR(AVERAGE(S29,S36),"") -> 0 | T125: 0 | U125: 0 | V125: 0 | W125: 0 | X125: 0 | Y125: 0
A126: DRAB1202 | B126: Underground network assets less than 33kV (cables) | C126: =IFERROR(AVERAGE(C38,C45),"") -> 71419719.43 | D126: 73404298.28 | E126: 77499125.29 | F126: 82995117.83 | G126: 88513122.21 | H126: 93711834.25 | I126: 98231887.83 | K126: =IFERROR(AVERAGE(K38,K45),"") -> 87621197.47 | L126: 90086131.24 | M126: 95150502.65 | N126: 101938133.1 | O126: 108751948.7 | P126: 115171490.2 | Q126: 120754053.6 | S126: =IFERROR(AVERAGE(S38,S45),"") -> 0 | T126: 0 | U126: 0 | V126: 0 | W126: 0 | X126: 0 | Y126: 0
A127: DRAB1203 | B127: Distribution substations including transformers | C127: =IFERROR(AVERAGE(C47,C54),"") -> 53661259.19 | D127: 55152373.98 | E127: 58229025.29 | F127: 62358443.36 | G127: 66504400.05 | H127: 70410456.2 | I127: 73806601.81 | K127: =IFERROR(AVERAGE(K47,K54),"") -> 65834251.74 | L127: 67686281.56 | M127: 71491400.77 | N127: 76591291.94 | O127: 81710857.38 | P127: 86534184.6 | Q127: 90728647.77 | S127: =IFERROR(AVERAGE(S47,S54),"") -> 0 | T127: 0 | U127: 0 | V127: 0 | W127: 0 | X127: 0 | Y127: 0
A128: DRAB1204 | B128: Overhead network assets 33kV and above (wires and towers / poles etc) | C128: =IFERROR(AVERAGE(C56,C63),"") -> 265445424.6 | D128: 272336637 | E128: 295020805.8 | F128: 331175995.8 | G128: 360430556.9 | H128: 377536745.9 | I128: 389718404.7 | K128: =IFERROR(AVERAGE(K56,K63),"") -> 265445424.6 | L128: 272336637 | M128: 295020805.8 | N128: 331175995.8 | O128: 360430556.9 | P128: 377536745.9 | Q128: 389718404.7 | S128: =IFERROR(AVERAGE(S56,S63),"") -> 0 | T128: 0 | U128: 0 | V128: 0 | W128: 0 | X128: 0 | Y128: 0
A129: DRAB1205 | B129: Underground network assets 33kV and above(cables, ducts etc) | C129: =IFERROR(AVERAGE(C65,C72),"") -> 10181978.74 | D129: 10446312.47 | E129: 11316433.79 | F129: 12703277.72 | G129: 13825426.73 | H129: 14481587.42 | I129: 14948852.55 | K129: =IFERROR(AVERAGE(K65,K72),"") -> 10181978.74 | L129: 10446312.47 | M129: 11316433.79 | N129: 12703277.72 | O129: 13825426.73 | P129: 14481587.42 | Q129: 14948852.55 | S129: =IFERROR(AVERAGE(S65,S72),"") -> 0 | T129: 0 | U129: 0 | V129: 0 | W129: 0 | X129: 0 | Y129: 0
A130: DRAB1206 | B130: Zone substations and transformers | C130: =IFERROR(AVERAGE(C74,C81),"") -> 249359916.8 | D130: 255833534.4 | E130: 277143084 | F130: 311107335.5 | G130: 338589123.7 | H130: 354658708.9 | I130: 366102181.4 | K130: =IFERROR(AVERAGE(K74,K81),"") -> 249359916.8 | L130: 255833534.4 | M130: 277143084 | N130: 311107335.5 | O130: 338589123.7 | P130: 354658708.9 | Q130: 366102181.4 | S130: =IFERROR(AVERAGE(S74,S81),"") -> 0 | T130: 0 | U130: 0 | V130: 0 | W130: 0 | X130: 0 | Y130: 0
A131: DRAB1207 | B131: Easements | C131: =IFERROR(AVERAGE(C83,C90),"") -> 0 | D131: 0 | E131: 0 | F131: 0 | G131: 0 | H131: 0 | I131: 0 | K131: =IFERROR(AVERAGE(K83,K90),"") -> 0 | L131: 0 | M131: 0 | N131: 0 | O131: 0 | P131: 0 | Q131: 0 | S131: =IFERROR(AVERAGE(S83,S90),"") -> 0 | T131: 0 | U131: 0 | V131: 0 | W131: 0 | X131: 0 | Y131: 0
A132: DRAB1208 | B132: Meters | C132: =IFERROR(AVERAGE(C92,C99),"") -> 0 | D132: =IFERROR(AVERAGE(D92,D99),"") -> 0 | E132: 0 | F132: 0 | G132: 0 | H132: 0 | I132: 0 | K132: =IFERROR(AVERAGE(K92,K99),"") -> 3.405208931e-09 | L132: =IFERROR(AVERAGE(L92,L99),"") -> 3.405208931e-09 | M132: 3.405208931e-09 | N132: 3.405208931e-09 | O132: 3.405208931e-09 | P132: 3.405208931e-09 | Q132: 3.405208931e-09 | S132: =IFERROR(AVERAGE(S92,S99),"") -> 46199147.78 | T132: =IFERROR(AVERAGE(T92,T99),"") -> 42817861.86 | U132: 42189105.49 | V132: 46320923.18 | W132: 54914111.45 | X132: 66295891.09 | Y132: 79603155.13
A133: DRAB1209 | B133: “Other” assets with long lives | C133: =IFERROR(AVERAGE(C101,C108),"") -> 24893052.84 | D133: =IFERROR(AVERAGE(D101,D108),"") -> 25546523.11 | E133: 42235810.57 | F133: 59765974.05 | G133: 61373497.9 | H133: 60682778.69 | I133: 59147606.77 | K133: =IFERROR(AVERAGE(K101,K108),"") -> 24893052.84 | L133: =IFERROR(AVERAGE(L101,L108),"") -> 25546523.11 | M133: 42235810.57 | N133: 59765974.05 | O133: 61373497.9 | P133: 60682778.69 | Q133: 59147606.77 | S133: =IFERROR(AVERAGE(S101,S108),"") -> 17061567.83 | T133: =IFERROR(AVERAGE(T101,T108),"") -> 18151089.09 | U133: 22523179.52 | V133: 28978864.55 | W133: 34449135.8 | X133: 38899601.07 | Y133: 42138012.49
A134: DRAB1210 | B134: “Other” assets with short lives | C134: =IFERROR(AVERAGE(C110,C117),"") -> 131223878.8 | D134: =IFERROR(AVERAGE(D110,D117),"") -> 121441575.6 | E134: 129108188.6 | F134: 145694973.4 | G134: 151277007.3 | H134: 151742565.7 | I134: 146868316.2 | K134: =IFERROR(AVERAGE(K110,K117),"") -> 131223878.8 | L134: =IFERROR(AVERAGE(L110,L117),"") -> 121441575.6 | M134: 129108188.6 | N134: 145694973.4 | O134: 151277007.3 | P134: 151742565.7 | Q134: 146868316.2 | S134: =IFERROR(AVERAGE(S110,S117),"") -> 6104723.408 | T134: =IFERROR(AVERAGE(T110,T117),"") -> 6096612.224 | U134: 9574625.903 | V134: 14777394.8 | W134: 17050667.83 | X134: 18371211.32 | Y134: 18749600.9
A135: DRAB13 | B135: Value of Capital Contributions or Contributed Assets (included in the above) | C135: 0 | D135: 0 | E135: 0 | F135: 0 | G135: 0 | H135: 0 | I135: 0 | K135: 0 | L135: 0 | M135: 0 | N135: 0 | O135: 0 | P135: 0 | Q135: 0 | S135: 0 | T135: 0 | U135: 0 | V135: 0 | W135: 0 | X135: 0 | Y135: 0
B138: 3.3.4 - ASSET LIVES
C139: Network services | K139: Standard control services | S139: Alternative control services
C140: FORECAST ( years ) | K140: FORECAST ( years ) | S140: FORECAST ( years )
C141: =CRCP_y4 -> 2024-25 | D141: =CRCP_y5 -> 2025-26 | E141: =FRCP_y1 -> 2026-27 | F141: =FRCP_y2 -> 2027-28 | G141: =FRCP_y3 -> 2028-29 | H141: =FRCP_y4 -> 2029-30 | I141: =FRCP_y5 -> 2030-31 | K141: =CRCP_y4 -> 2024-25 | L141: =CRCP_y5 -> 2025-26 | M141: =FRCP_y1 -> 2026-27 | N141: =FRCP_y2 -> 2027-28 | O141: =FRCP_y3 -> 2028-29 | P141: =FRCP_y4 -> 2029-30 | Q141: =FRCP_y5 -> 2030-31 | S141: =CRCP_y4 -> 2024-25 | T141: =CRCP_y5 -> 2025-26 | U141: =FRCP_y1 -> 2026-27 | V141: =FRCP_y2 -> 2027-28 | W141: =FRCP_y3 -> 2028-29 | X141: =FRCP_y4 -> 2029-30 | Y141: =FRCP_y5 -> 2030-31
B142: Estimated service life of new assets
A143: DRAB1401 | B143: Overhead network assets less than 33kV (wires and poles) | C143: 49.4679916 | D143: 49.4679916 | E143: 49.4679916 | F143: 49.4679916 | G143: 49.4679916 | H143: 49.4679916 | I143: 49.4679916 | K143: 49.4679916 | L143: 49.4679916 | M143: 49.4679916 | N143: 49.4679916 | O143: 49.4679916 | P143: 49.4679916 | Q143: 49.4679916 | S143: n/a | T143: n/a | U143: n/a | V143: n/a | W143: n/a | X143: n/a | Y143: n/a
A144: DRAB1402 | B144: Underground network assets less than 33kV (cables) | C144: 49.4679916 | D144: 49.4679916 | E144: 49.4679916 | F144: 49.4679916 | G144: 49.4679916 | H144: 49.4679916 | I144: 49.4679916 | K144: 49.4679916 | L144: 49.4679916 | M144: 49.4679916 | N144: 49.4679916 | O144: 49.4679916 | P144: 49.4679916 | Q144: 49.4679916 | S144: n/a | T144: n/a | U144: n/a | V144: n/a | W144: n/a | X144: n/a | Y144: n/a
A145: DRAB1403 | B145: Distribution substations including transformers | C145: 49.4679916 | D145: 49.4679916 | E145: 49.4679916 | F145: 49.4679916 | G145: 49.4679916 | H145: 49.4679916 | I145: 49.4679916 | K145: 49.4679916 | L145: 49.4679916 | M145: 49.4679916 | N145: 49.4679916 | O145: 49.4679916 | P145: 49.4679916 | Q145: 49.4679916 | S145: n/a | T145: n/a | U145: n/a | V145: n/a | W145: n/a | X145: n/a | Y145: n/a
A146: DRAB1404 | B146: Overhead network assets 33kV and above (wires and towers / poles etc) | C146: 53.36214286 | D146: 53.36214286 | E146: 53.36214286 | F146: 53.36214286 | G146: 53.36214286 | H146: 53.36214286 | I146: 53.36214286 | K146: 53.36214286 | L146: 53.36214286 | M146: 53.36214286 | N146: 53.36214286 | O146: 53.36214286 | P146: 53.36214286 | Q146: 53.36214286 | S146: n/a | T146: n/a | U146: n/a | V146: n/a | W146: n/a | X146: n/a | Y146: n/a
A147: DRAB1405 | B147: Underground network assets 33kV and above(cables, ducts etc) | C147: 53.36214286 | D147: 53.36214286 | E147: 53.36214286 | F147: 53.36214286 | G147: 53.36214286 | H147: 53.36214286 | I147: 53.36214286 | K147: 53.36214286 | L147: 53.36214286 | M147: 53.36214286 | N147: 53.36214286 | O147: 53.36214286 | P147: 53.36214286 | Q147: 53.36214286 | S147: n/a | T147: n/a | U147: n/a | V147: n/a | W147: n/a | X147: n/a | Y147: n/a
A148: DRAB1406 | B148: Zone substations and transformers | C148: 53.36214286 | D148: 53.36214286 | E148: 53.36214286 | F148: 53.36214286 | G148: 53.36214286 | H148: 53.36214286 | I148: 53.36214286 | K148: 53.36214286 | L148: 53.36214286 | M148: 53.36214286 | N148: 53.36214286 | O148: 53.36214286 | P148: 53.36214286 | Q148: 53.36214286 | S148: n/a | T148: n/a | U148: n/a | V148: n/a | W148: n/a | X148: n/a | Y148: n/a
A149: DRAB1407 | B149: Meters | C149: n/a | D149: n/a | E149: n/a | F149: n/a | G149: n/a | H149: n/a | I149: n/a | K149: n/a | L149: n/a | M149: n/a | N149: n/a | O149: n/a | P149: n/a | Q149: n/a | S149: 15 | T149: 15 | U149: 15 | V149: 15 | W149: 15 | X149: 15 | Y149: 15
A150: DRAB1408 | B150: “Other” assets with long lives | C150: 34.81020184 | D150: 38.72634431 | E150: 41.67985077 | F150: 36.92344354 | G150: 33.28181149 | H150: 29.04886604 | I150: 31.63175331 | K150: 34.81020184 | L150: 38.72634431 | M150: 41.67985077 | N150: 36.92344354 | O150: 33.28181149 | P150: 29.04886604 | Q150: 31.63175331 | S150: 22.87200457 | T150: 22.87200457 | U150: 22.87200457 | V150: 22.87200457 | W150: 22.87200457 | X150: 22.87200457 | Y150: 22.87200457
A151: DRAB1409 | B151: “Other” assets with short lives | C151: 5.437774615 | D151: 5.031353648 | E151: 6.57404024 | F151: 6.1225539 | G151: 6.066498766 | H151: 5.566872801 | I151: 5.47567991 | K151: 5.437774615 | L151: 5.031353648 | M151: 6.57404024 | N151: 6.1225539 | O151: 6.066498766 | P151: 5.566872801 | Q151: 5.47567991 | S151: 7 | T151: 7 | U151: 7 | V151: 7 | W151: 7 | X151: 7 | Y151: 7
B152: Estimated residual service life
A153: DRAB1501 | B153: Overhead network assets less than 33kV (wires and poles) | C153: 22.36145499 | D153: 21.83149076 | E153: 22.30427543 | F153: 22.68607878 | G153: 23.10132942 | H153: 23.37385522 | I153: 23.59424762 | K153: 22.36145499 | L153: 21.83149076 | M153: 22.30427543 | N153: 22.68607878 | O153: 23.10132942 | P153: 23.37385522 | Q153: 23.59424762 | S153: n/a | T153: n/a | U153: n/a | V153: n/a | W153: n/a | X153: n/a | Y153: n/a
A154: DRAB1502 | B154: Underground network assets less than 33kV (cables) | C154: 22.36145499 | D154: 21.83149076 | E154: 22.30427543 | F154: 22.68607878 | G154: 23.10132942 | H154: 23.37385522 | I154: 23.59424762 | K154: 22.36145499 | L154: 21.83149076 | M154: 22.30427543 | N154: 22.68607878 | O154: 23.10132942 | P154: 23.37385522 | Q154: 23.59424762 | S154: n/a | T154: n/a | U154: n/a | V154: n/a | W154: n/a | X154: n/a | Y154: n/a
A155: DRAB1503 | B155: Distribution substations including transformers | C155: 22.36145499 | D155: 21.83149076 | E155: 22.30427543 | F155: 22.68607878 | G155: 23.10132942 | H155: 23.37385522 | I155: 23.59424762 | K155: 22.36145499 | L155: 21.83149076 | M155: 22.30427543 | N155: 22.68607878 | O155: 23.10132942 | P155: 23.37385522 | Q155: 23.59424762 | S155: n/a | T155: n/a | U155: n/a | V155: n/a | W155: n/a | X155: n/a | Y155: n/a
A156: DRAB1504 | B156: Overhead network assets 33kV and above (wires and towers / poles etc) | C156: 32.92099486 | D156: 31.88308078 | E156: 31.48514135 | F156: 32.35183782 | G156: 33.26253065 | H156: 33.32476319 | I156: 33.20997104 | K156: 32.92099486 | L156: 31.88308078 | M156: 31.48514135 | N156: 32.35183782 | O156: 33.26253065 | P156: 33.32476319 | Q156: 33.20997104 | S156: n/a | T156: n/a | U156: n/a | V156: n/a | W156: n/a | X156: n/a | Y156: n/a
A157: DRAB1505 | B157: Underground network assets 33kV and above (cables, ducts etc) | C157: 32.92099486 | D157: 31.88308078 | E157: 31.48514135 | F157: 32.35183782 | G157: 33.26253065 | H157: 33.32476319 | I157: 33.20997104 | K157: 32.92099486 | L157: 31.88308078 | M157: 31.48514135 | N157: 32.35183782 | O157: 33.26253065 | P157: 33.32476319 | Q157: 33.20997104 | S157: n/a | T157: n/a | U157: n/a | V157: n/a | W157: n/a | X157: n/a | Y157: n/a
A158: DRAB1506 | B158: Zone substations and transformers | C158: 32.92099486 | D158: 31.88308078 | E158: 31.48514135 | F158: 32.35183782 | G158: 33.26253065 | H158: 33.32476319 | I158: 33.20997104 | K158: 32.92099486 | L158: 31.88308078 | M158: 31.48514135 | N158: 32.35183782 | O158: 33.26253065 | P158: 33.32476319 | Q158: 33.20997104 | S158: n/a | T158: n/a | U158: n/a | V158: n/a | W158: n/a | X158: n/a | Y158: n/a
A159: DRAB1507 | B159: Meters | C159: n/a | D159: n/a | E159: n/a | F159: n/a | G159: n/a | H159: n/a | I159: n/a | K159: n/a | L159: n/a | M159: n/a | N159: n/a | O159: n/a | P159: n/a | Q159: n/a | S159: 4.813207797 | T159: 4.248661376 | U159: 8.140322529 | V159: 7.771715677 | W159: 7.827915394 | X159: 8.056888576 | Y159: 8.246489052
A160: DRAB1508 | B160: “Other” assets with long lives | C160: 25.99476557 | D160: 25.14342406 | E160: 28.09261559 | F160: 32.69770811 | G160: 31.63529131 | H160: 30.37533564 | I160: 29.11411714 | K160: 25.99476557 | L160: 25.14342406 | M160: 28.09261559 | N160: 32.69770811 | O160: 31.63529131 | P160: 30.37533564 | Q160: 29.11411714 | S160: 16.13301881 | T160: 15.66966365 | U160: 19.238487 | V160: 17.30419088 | W160: 17.5403028 | X160: 17.724679 | Y160: 17.58488536
A161: DRAB1509 | B161: “Other” assets with short lives | C161: 3.918962948 | D161: 3.39709096 | E161: 4.537163041 | F161: 4.72603374 | G161: 4.434029137 | H161: 4.156132111 | I161: 3.800022203 | K161: 3.918962948 | L161: 3.39709096 | M161: 4.537163041 | N161: 4.72603374 | O161: 4.434029137 | P161: 4.156132111 | Q161: 3.800022203 | S161: 4.074908526 | T161: 3.386956988 | U161: 4.157948231 | V161: 4.763825514 | W161: 5.061528898 | X161: 4.475470734 | Y161: 4.008584115

Sheet 3.4 Operational data
B1: =INDEX(dms_Worksheet_List,MATCH(dms_Model,dms_Model_List)) -> REGULATORY REPORTING STATEMENT
B2: =INDEX(dms_TradingNameFull_List,MATCH(dms_TradingName,dms_TradingName_List)) -> Jemena Electricity
B3: =CONCATENATE("REGULATORY PERIOD FROM ", FRCP_y1," TO ",dms_MultiYear_FinalYear_Result) -> REGULATORY PERIOD FROM 2026-27 TO 2030-31
B4: 3.4 OPERATIONAL DATA
B5: TEMPLATE DATE - SEPTEMBER 2024 - FINAL RIN
B7: There are THREE tables on this worksheet. Each table has been grouped for ease of navigation.
B9: 3.4.1 - ENERGY DELIVERY
D10: Standard control services
D11: FORECAST
C12: Units | D12: =CRCP_y4 -> 2024-25 | E12: =CRCP_y5 -> 2025-26 | F12: =FRCP_y1 -> 2026-27 | G12: =FRCP_y2 -> 2027-28 | H12: =FRCP_y3 -> 2028-29 | I12: =FRCP_y4 -> 2029-30 | J12: =FRCP_y5 -> 2030-31
A13: DOPED01 | B13: TOTAL ENERGY DELIVERED
B14: 3.4.1.1 - Energy grouping - delivery by chargeable quantity
A15: DOPED0201 | B15: Energy Delivery where time of use is not a determinant | C15: GWh | D15: 1358.596396 | E15: 1344.937075 | F15: 1405.851953 | G15: 1504.005273 | H15: 1596.41288 | I15: 1687.966171 | J15: 1790.546268
A16: DOPED0202 | B16: Energy Delivery at On-peak times | C16: GWh | D16: 1285.897801 | E16: 1350.758023 | F16: 1643.892422 | G16: 1904.037985 | H16: 2236.339727 | I16: 2516.347101 | J16: 2826.803615
A17: DOPED0203 | B17: Energy Delivery at Shoulder times | C17: GWh | D17: 0 | E17: 0 | F17: 66.59875248 | G17: 79.76638753 | H17: 94.26681186 | I17: 110.4795759 | J17: 129.2491775
A18: DOPED0204 | B18: Energy Delivery at Off-peak times | C18: GWh | D18: 1731.095148 | E18: 1823.586041 | F18: 2184.896424 | G18: 2535.672217 | H18: 2982.734163 | I18: 3362.578548 | J18: 3782.436671
A19: DOPED0205 | B19: Controlled load energy deliveries | C19: GWh | D19: 20.3880995 | E19: 20.3880995 | F19: 20.05860408 | G19: 22.13708247 | H19: 24.26678293 | I19: 26.51259938 | J19: 29.04162012
A20: DOPED0206 | B20: Energy Delivery to unmetered supplies | C20: GWh | D20: 27.71618202 | E20: 27.71618202 | F20: 29.17289777 | G20: 30.8278638 | H20: 32.25995363 | I20: 33.71233867 | J20: 35.69647122
B21: 3.4.1.2 - Energy - received from TNSP and other DNSPs by time of receipt
A22: DOPED0301 | B22: Energy into DNSP network at On-peak times | C22: GWh | D22: 0 | E22: 0 | F22: 0 | G22: 0 | H22: 0 | I22: 0 | J22: 0
A23: DOPED0302 | B23: Energy into DNSP network at Shoulder times | C23: GWh | D23: 0 | E23: 0 | F23: 0 | G23: 0 | H23: 0 | I23: 0 | J23: 0
A24: DOPED0303 | B24: Energy into DNSP network at Off-peak times | C24: GWh | D24: 0 | E24: 0 | F24: 0 | G24: 0 | H24: 0 | I24: 0 | J24: 0
A25: DOPED0304 | B25: Energy received from TNSP and other DNSPs not included in the above categories | C25: GWh | D25: 4566.667894 | E25: 4715.003822 | F25: 5523.398869 | G25: 6272.838241 | H25: 7191.43127 | I25: 7987.676303 | J25: 8871.525542
B26: 3.4.1.3 - Energy - received into DNSP system from embedded generation by time of receipt
A27: DOPED0401 | B27: Energy into DNSP network at On-peak times from non-residential embedded generation | C27: GWh | D27: 0 | E27: 0 | F27: 0 | G27: 0 | H27: 0 | I27: 0 | J27: 0
A28: DOPED0402 | B28: Energy into DNSP network at Shoulder times from non-residential embedded generation | C28: GWh | D28: 0 | E28: 0 | F28: 0 | G28: 0 | H28: 0 | I28: 0 | J28: 0
A29: DOPED0403 | B29: Energy into DNSP network at Off-peak times from non-residential embedded generation | C29: GWh | D29: 0 | E29: 0 | F29: 0 | G29: 0 | H29: 0 | I29: 0 | J29: 0
A30: DOPED0404 | B30: Energy received from embedded generation not included in above categories from non-residential embedded generation | C30: GWh | D30: 89.32250714 | E30: 105.9720961 | F30: 124.4402084 | G30: 144.0955439 | H30: 165.8765361 | I30: 188.9357208 | J30: 217.0146067
A31: DOPED0405 | B31: Energy into DNSP network at On-peak times from residential embedded generation | C31: GWh | D31: 0 | E31: 0 | F31: 0 | G31: 0 | H31: 0 | I31: 0 | J31: 0
A32: DOPED0406 | B32: Energy into DNSP network at Shoulder times from residential embedded generation | C32: GWh | D32: 0 | E32: 0 | F32: 0 | G32: 0 | H32: 0 | I32: 0 | J32: 0
A33: DOPED0407 | B33: Energy into DNSP network at Off-peak times from residential embedded generation | C33: GWh | D33: 0 | E33: 0 | F33: 0 | G33: 0 | H33: 0 | I33: 0 | J33: 0
A34: DOPED0408 | B34: Energy received from embedded generation not included in above categories from residential embedded generation | C34: GWh | D34: 364.54521 | E34: 409.396399 | F34: 451.153226 | G34: 488.714841 | H34: 517.850846 | I34: 542.981602 | J34: 567.814651
B35: 3.4.1.4 - Energy grouping - customer type or class
A36: DOPED0501 | B36: Residential customers energy deliveries | C36: GWh | D36: 1498.941356 | E36: 1521.311398 | F36: 1621.699321 | G36: 1789.816099 | H36: 1962.082118 | I36: 2143.744064 | J36: 2348.310741
A37: DOPED0502 | B37: Non residential customers not on demand tariffs energy deliveries | C37: GWh | D37: 495.9367171 | E37: 501.1648997 | F37: 522.948338 | G37: 552.6149739 | H37: 578.2863693 | I37: 604.3215733 | J37: 639.8887914
A38: DOPED0503 | B38: Non-residential low voltage demand tariff customers energy deliveries | C38: GWh | D38: 1354.029308 | E38: 1373.4686 | F38: 1438.63 | G38: 1508.312523 | H38: 1565.538118 | I38: 1619.187305 | J38: 1698.260816
A39: DOPED0504 | B39: Non-residential high voltage demand tariff customers energy deliveries | C39: GWh | D39: 1047.070064 | E39: 1143.724339 | F39: 1738.020496 | G39: 2194.875349 | H39: 2828.113761 | I39: 3336.631053 | J39: 3871.617003
A40: DOPED0505 | B40: Other Customer Class Energy Deliveries | C40: GWh | D40: 27.71618202 | E40: 27.71618202 | F40: 29.17289777 | G40: 30.8278638 | H40: 32.25995363 | I40: 33.71233867 | J40: 35.69647122
B44: 3.4.2 - CUSTOMER NUMBERS (Benchmarking)
D45: FORECAST
C46: Units | D46: =CRCP_y4 -> 2024-25 | E46: =CRCP_y5 -> 2025-26 | F46: =FRCP_y1 -> 2026-27 | G46: =FRCP_y2 -> 2027-28 | H46: =FRCP_y3 -> 2028-29 | I46: =FRCP_y4 -> 2029-30 | J46: =FRCP_y5 -> 2030-31
B47: 3.4.2.1 - Distribution customer numbers by customer type or class
A48: DOPCN0101 | B48: Residential customer numbers | C48: number | D48: 353699.1699 | E48: 358593.3702 | F48: 364830.0167 | G48: 371470.8369 | H48: 378086.8608 | I48: 384694.0489 | J48: 391304.812
A49: DOPCN0102 | B49: Non residential customers not on demand tariff customer numbers | C49: number | D49: 29306.75322 | E49: 29712.27614 | F49: 30229.03127 | G49: 30779.27536 | H49: 31327.46489 | I49: 31874.9223 | J49: 32422.67592
A50: DOPCN0103 | B50: Low voltage demand tariff customer numbers | C50: number | D50: 2654.848846 | E50: 2691.584476 | F50: 2738.396443 | G50: 2788.242118 | H50: 2837.901673 | I50: 2887.494907 | J50: 2937.114975
A51: DOPCN0104 | B51: High voltage demand tariff customer numbers | C51: number | D51: 105.4436815 | E51: 106.902725 | F51: 108.7619744 | G51: 110.7417148 | H51: 112.714063 | I51: 114.6837771 | J51: 116.654557
A52: DOPCN0105 | B52: Unmetered Customer Numbers | C52: number | D52: 3379.774156 | E52: 3426.540711 | F52: 3486.135017 | G52: 3549.591407 | H52: 3612.810856 | I52: 3675.945875 | J52: 3739.115054
A53: DOPCN0106 | B53: Other Customer Numbers | C53: number | D53: 0 | E53: 0 | F53: 0 | G53: 0 | H53: 0 | I53: 0 | J53: 0
B54: Total customer numbers | D54: =SUM(D48:D53) -> 389145.9898 | E54: =SUM(E48:E53) -> 394530.6743 | F54: 401392.3414 | G54: 408698.6875 | H54: 415977.7523 | I54: 423247.0958 | J54: 430520.3725
B57: Table 3.4.2.2 Distribution customer numbers by location on the network
A58: DOPCN0201 | B58: =INDEX(dms_FeederName_1,MATCH(dms_TradingName,dms_TradingName_List)) -> CBD | C58: number | D58: 0 | E58: 0 | F58: 0 | G58: 0 | H58: 0 | I58: 0 | J58: 0
A59: DOPCN0202 | B59: =INDEX(dms_FeederName_2,MATCH(dms_TradingName,dms_TradingName_List)) -> Urban | C59: number | D59: 343834.1024 | E59: 348591.7979 | F59: 354654.4973 | G59: 361110.0976 | H59: 367541.5932 | I59: 373964.4994 | J59: 380390.8809
A60: DOPCN0203 | B60: =INDEX(dms_FeederName_3,MATCH(dms_TradingName,dms_TradingName_List)) -> Short rural | C60: number | D60: 45311.88742 | E60: 45938.87631 | F60: 46737.84404 | G60: 47588.58988 | H60: 48436.1591 | I60: 49282.59639 | J60: 50129.49166
A61: DOPCN0204 | B61: =INDEX(dms_FeederName_4,MATCH(dms_TradingName,dms_TradingName_List)) -> Long rural | C61: number | D61: 0 | E61: 0 | F61: 0 | G61: 0 | H61: 0 | I61: 0 | J61: 0
A62: DOPCN0205 | B62: =IF((INDEX(dms_FeederName_5,MATCH(dms_TradingName,dms_TradingName_List))=0),"",(INDEX(dms_FeederName_5,MATCH(dms_TradingName,dms_TradingName_List)))) ->  | C62: number
B63: Total customer numbers | D63: =SUM(D58:D62) -> 389145.9898 | E63: =SUM(E58:E62) -> 394530.6743 | F63: 401392.3414 | G63: 408698.6875 | H63: 415977.7523 | I63: 423247.0958 | J63: 430520.3725
B66: 3.4.2.4 - Unmetered Supply
A67: DOPCN0301 | B67: Number of unmetered connections reported in customer numbers in the economic benchmarking RIN | D67: =D52 -> 3379.774156 | E67: =E52 -> 3426.540711 | F67: 3486.135017 | G67: 3549.591407 | H67: 3612.810856 | I67: 3675.945875 | J67: 3739.115054
A68: DOPCN0302 | B68: Unmetered connections not reported in customer numbers in the economic benchmarking RIN | D68: 0 | E68: 0 | F68: 0 | G68: 0 | H68: 0 | I68: 0 | J68: 0
A69: DOPCN0303 | B69: Total unmetered connections | D69: =SUM(D67:D68) -> 3379.774156 | E69: =SUM(E67:E68) -> 3426.540711 | F69: 3486.135017 | G69: 3549.591407 | H69: 3612.810856 | I69: 3675.945875 | J69: 3739.115054
B72: 3.4.3 - SYSTEM DEMAND
D73: Standard control services
D74: FORECAST
C75: Units | D75: =CRCP_y4 -> 2024-25 | E75: =CRCP_y5 -> 2025-26 | F75: =FRCP_y1 -> 2026-27 | G75: =FRCP_y2 -> 2027-28 | H75: =FRCP_y3 -> 2028-29 | I75: =FRCP_y4 -> 2029-30 | J75: =FRCP_y5 -> 2030-31
B76: 3.4.3.1 - Annual system maximum demand characteristics at the zone substation level – MW measure
A77: DOPSD0102 | B77: Non–coincident Summated Weather Adjusted System Annual Maximum Demand 10% POE | C77: MW | D77: 1153 | E77: 1206 | F77: 1256 | G77: 1310 | H77: 1352 | I77: 1404 | J77: 1456
A78: DOPSD0103 | B78: Non–coincident Summated Weather Adjusted System Annual Maximum Demand 50% POE | C78: MW | D78: 1082 | E78: 1135 | F78: 1184 | G78: 1238 | H78: 1279 | I78: 1329 | J78: 1378
A79: DOPSD0105 | B79: Coincident Weather Adjusted System Annual Maximum Demand 10% POE | C79: MW | D79: 1089 | E79: 1140 | F79: 1189 | G79: 1241 | H79: 1281 | I79: 1332 | J79: 1383
A80: DOPSD0106 | B80: Coincident Weather Adjusted System Annual Maximum Demand 50% POE | C80: MW | D80: 1023 | E80: 1074 | F80: 1120 | G80: 1173 | H80: 1212 | I80: 1261 | J80: 1310
B81: 3.4.3.2 - Annual system maximum demand characteristics at the transmission connection point – MW measure
A82: DOPSD0108 | B82: Non–coincident Summated Weather Adjusted System Annual Maximum Demand 10% POE | C82: MW | D82: 1189 | E82: 1262 | F82: 1318 | G82: 1385 | H82: 1434 | I82: 1492 | J82: 1581
A83: DOPSD0109 | B83: Non–coincident Summated Weather Adjusted System Annual Maximum Demand 50% POE | C83: MW | D83: 1118 | E83: 1192 | F83: 1245 | G83: 1313 | H83: 1361 | I83: 1417 | J83: 1503
A84: DOPSD0111 | B84: Coincident Weather Adjusted System Annual Maximum Demand 10% POE | C84: MW | D84: 1168 | E84: 1240 | F84: 1294 | G84: 1361 | H84: 1409 | I84: 1467 | J84: 1556
A85: DOPSD0112 | B85: Coincident Weather Adjusted System Annual Maximum Demand 50% POE | C85: MW | D85: 1098 | E85: 1171 | F85: 1223 | G85: 1290 | H85: 1337 | I85: 1393 | J85: 1479
B86: 3.4.3.3 - Annual system maximum demand characteristics at the zone substation level – MVA measure
A87: DOPSD0202 | B87: Non–coincident Summated Weather Adjusted System Annual Maximum Demand 10% POE | C87: MVA | D87: 1164 | E87: 1217 | F87: 1268 | G87: 1321 | H87: 1364 | I87: 1415 | J87: 1468
A88: DOPSD0203 | B88: Non–coincident Summated Weather Adjusted System Annual Maximum Demand 50% POE | C88: MVA | D88: 1092 | E88: 1146 | F88: 1194 | G88: 1250 | H88: 1290 | I88: 1341 | J88: 1391
A89: DOPSD0205 | B89: Coincident Weather Adjusted System Annual Maximum Demand 10% POE | C89: MVA | D89: 1100 | E89: 1151 | F89: 1200 | G89: 1251 | H89: 1292 | I89: 1343 | J89: 1394
A90: DOPSD0206 | B90: Coincident Weather Adjusted System Annual Maximum Demand 50% POE | C90: MVA | D90: 1032 | E90: 1083 | F90: 1130 | G90: 1184 | H90: 1223 | I90: 1272 | J90: 1321
B91: 3.4.3.4 - Annual system maximum demand characteristics at the transmission connection point – MVA measure
A92: DOPSD0208 | B92: Non–coincident Summated Weather Adjusted System Annual Maximum Demand 10% POE | C92: MVA | D92: 1233 | E92: 1308 | F92: 1365 | G92: 1433 | H92: 1483 | I92: 1542 | J92: 1632
A93: DOPSD0209 | B93: Non–coincident Summated Weather Adjusted System Annual Maximum Demand 50% POE | C93: MVA | D93: 1160 | E93: 1235 | F93: 1289 | G93: 1359 | H93: 1407 | I93: 1464 | J93: 1551
A94: DOPSD0211 | B94: Coincident Weather Adjusted System Annual Maximum Demand 10% POE | C94: MVA | D94: 1211 | E94: 1284 | F94: 1340 | G94: 1407 | H94: 1457 | I94: 1515 | J94: 1605
A95: DOPSD0212 | B95: Coincident Weather Adjusted System Annual Maximum Demand 50% POE | C95: MVA | D95: 1139 | E95: 1213 | F95: 1266 | G95: 1334 | H95: 1382 | I95: 1439 | J95: 1526
B96: 3.4.3.5 - Power factor conversion between MVA and MW
A97: DOPSD0301 | B97: Average overall network power factor conversion between MVA and MW | C97: Factor | D97: 1 | E97: 1 | F97: 1 | G97: 1 | H97: 1 | I97: 1 | J97: 1
A98: DOPSD0302 | B98: Average power factor conversion for low voltage distribution lines | C98: Factor | D98: 1 | E98: 1 | F98: 1 | G98: 1 | H98: 1 | I98: 1 | J98: 1
A99: DOPSD0303 | B99: Average power factor conversion for 3.3 kV lines | C99: Factor | D99: 0 | E99: 0 | F99: 0 | G99: 0 | H99: 0 | I99: 0 | J99: 0
A100: DOPSD0304 | B100: Average power factor conversion for 6.6 kV lines | C100: Factor | D100: 1 | E100: 1 | F100: 1 | G100: 1 | H100: 1 | I100: 1 | J100: 1
A101: DOPSD0305 | B101: Average power factor conversion for 7.6 kV lines | C101: Factor | D101: 0 | E101: 0 | F101: 0 | G101: 0 | H101: 0 | I101: 0 | J101: 0
A102: DOPSD0306 | B102: Average power factor conversion for 11 kV lines | C102: Factor | D102: 1 | E102: 1 | F102: 1 | G102: 1 | H102: 1 | I102: 1 | J102: 1
A103: DOPSD0307 | B103: Average power factor conversion for SWER lines | C103: Factor | D103: 0 | E103: 0 | F103: 0 | G103: 0 | H103: 0 | I103: 0 | J103: 0
A104: DOPSD0308 | B104: Average power factor conversion for 22 kV lines | C104: Factor | D104: 1 | E104: 1 | F104: 1 | G104: 1 | H104: 1 | I104: 1 | J104: 1
A105: DOPSD0309 | B105: Average power factor conversion for 33 kV lines | C105: Factor | D105: 0 | E105: 0 | F105: 0 | G105: 0 | H105: 0 | I105: 0 | J105: 0
A106: DOPSD0310 | B106: Average power factor conversion for 44 kV lines | C106: Factor | D106: 0 | E106: 0 | F106: 0 | G106: 0 | H106: 0 | I106: 0 | J106: 0
A107: DOPSD0311 | B107: Average power factor conversion for 66 kV lines | C107: Factor | D107: 1 | E107: 1 | F107: 1 | G107: 1 | H107: 1 | I107: 1 | J107: 1
A108: DOPSD0312 | B108: Average power factor conversion for 110 kV lines | C108: Factor | D108: 0 | E108: 0 | F108: 0 | G108: 0 | H108: 0 | I108: 0 | J108: 0
A109: DOPSD0313 | B109: Average power factor conversion for 132 kV lines | C109: Factor | D109: 0 | E109: 0 | F109: 0 | G109: 0 | H109: 0 | I109: 0 | J109: 0
A110: DOPSD0314 | B110: Average power factor conversion for 220 kV lines | C110: Factor | D110: 0 | E110: 0 | F110: 0 | G110: 0 | H110: 0 | I110: 0 | J110: 0

Sheet 3.5 Physical assets
B1: =INDEX(dms_Worksheet_List,MATCH(dms_Model,dms_Model_List)) -> REGULATORY REPORTING STATEMENT
B2: =INDEX(dms_TradingNameFull_List,MATCH(dms_TradingName,dms_TradingName_List)) -> Jemena Electricity
B3: =CONCATENATE("REGULATORY PERIOD FROM ", FRCP_y1," TO ",dms_MultiYear_FinalYear_Result) -> REGULATORY PERIOD FROM 2026-27 TO 2030-31
B4: 3.5 PHYSICAL ASSETS DATA
B5: TEMPLATE DATE - SEPTEMBER 2024 - FINAL RIN
B7: There are THREE tables on this worksheet. Each table has been grouped (and sub-grouped) for ease of navigation. See the Instructions sheet on how to group or ungroup tables.
B9: 3.5.1 - NETWORK CAPACITIES VARIABLES
D10: FORECAST
C11: Units | D11: =CRCP_y4 -> 2024-25 | E11: =CRCP_y5 -> 2025-26 | F11: =FRCP_y1 -> 2026-27 | G11: =FRCP_y2 -> 2027-28 | H11: =FRCP_y3 -> 2028-29 | I11: =FRCP_y4 -> 2029-30 | J11: =FRCP_y5 -> 2030-31
B12: CIRCUIT LENGTH
B13: 3.5.1.1 - Overhead network length of circuit at each voltage
A14: DPA0101 | B14: Overhead low voltage distribution | C14: km | D14: 2506.102041 | E14: 2518.71023 | F14: 2531.919378 | G14: 2545.607262 | H14: 2558.782714 | I14: 2572.082977 | J14: 2585.446871
A15: DPA0102 | B15: Overhead 2.2 kV | C15: km | D15: 0 | E15: 0 | F15: 0 | G15: 0 | H15: 0 | I15: 0 | J15: 0
A16: DPA0111 | B16: Overhead 6.6kv | C16: km | D16: 49.36717209 | E16: 50.72787592 | F16: 52.16245592 | G16: 53.59824747 | H16: 54.70540724 | I16: 55.89317806 | J16: 57.12234251
A17: DPA0103 | B17: Overhead 7.6 kV | C17: km | D17: 0 | E17: 0 | F17: 0 | G17: 0 | H17: 0 | I17: 0 | J17: 0
A18: DPA0104 | B18: Overhead 11 kV | C18: km | D18: 206.451603 | E18: 206.5647407 | F18: 206.6840209 | G18: 206.8034019 | H18: 206.8954583 | I18: 206.9942173 | J18: 207.0964179
A19: DPA0105 | B19: Overhead SWER | C19: km | D19: 0 | E19: 0 | F19: 0 | G19: 0 | H19: 0 | I19: 0 | J19: 0
A20: DPA0106 | B20: Overhead 22 kV | C20: km | D20: 1419.332486 | E20: 1421.600668 | F20: 1442.266996 | G20: 1444.660343 | H20: 1448.005889 | I20: 1450.135806 | J20: 1452.184723
A21: DPA0107 | B21: Overhead 33 kV | C21: km | D21: 0 | E21: 0 | F21: 0 | G21: 0 | H21: 0 | I21: 0 | J21: 0
A22: DPA0108 | B22: Overhead 44 kV | C22: km | D22: 0 | E22: 0 | F22: 0 | G22: 0 | H22: 0 | I22: 0 | J22: 0
A23: DPA0109 | B23: Overhead 66 kV | C23: km | D23: 318.945108 | E23: 328.560108 | F23: 362.275108 | G23: 367.125108 | H23: 372.685108 | I23: 374.085108 | J23: 379.085108
A24: DPA0112 | B24: Overhead 110kV | C24: km | D24: 0 | E24: 0 | F24: 0 | G24: 0 | H24: 0 | I24: 0 | J24: 0
A25: DPA0110 | B25: Overhead 132 kV | C25: km | D25: 0 | E25: 0 | F25: 0 | G25: 0 | H25: 0 | I25: 0 | J25: 0
A26: DPA0113 | B26: Overhead 220kV | C26: km | D26: 0 | E26: 0 | F26: 0 | G26: 0 | H26: 0 | I26: 0 | J26: 0
A27: DPA0114 | B27: Other | C27: km | D27: 0 | E27: 0 | F27: 0 | G27: 0 | H27: 0 | I27: 0 | J27: 0
A28: DPA01 | B28: Total overhead circuit km | D28: =SUM(D14:D27) -> 4500.19841 | E28: 4526.163623 | F28: 4595.307959 | G28: 4617.794363 | H28: 4641.074576 | I28: 4659.191286 | J28: 4680.935462
B29: 3.5.1.2 - Underground network circuit length at each voltage
A30: DPA0201 | B30: Underground low voltage distribution | C30: km | D30: 1604.273454 | E30: 1654.673659 | F30: 1706.06614 | G30: 1756.854254 | H30: 1800.948383 | I30: 1846.672932 | J30: 1893.228715
A31: DPA0202 | B31: Underground 5 kV | C31: km | D31: 0 | E31: 0 | F31: 0 | G31: 0 | H31: 0 | I31: 0 | J31: 0
A32: DPA0203 | B32: Underground 6.6 Kv | C32: km | D32: 15.28464899 | E32: 16.02235521 | F32: 16.80011343 | G32: 17.57852849 | H32: 18.17877568 | I32: 18.82272619 | J32: 19.48911827
A33: DPA0204 | B33: Underground 7.6 kV | C33: km | D33: 0 | E33: 0 | F33: 0 | G33: 0 | H33: 0 | I33: 0 | J33: 0
A34: DPA0205 | B34: Underground 11 kV | C34: km | D34: 84.95782268 | E34: 86.40978235 | F34: 91.38163981 | G34: 93.1542336 | H34: 93.82710337 | I34: 94.54896403 | J34: 95.73598141
A35: DPA0206 | B35: Underground SWER | C35: km | D35: 0 | E35: 0 | F35: 0 | G35: 0 | H35: 0 | I35: 0 | J35: 0
A36: DPA0207 | B36: Underground 22 kV | C36: km | D36: 913.0298406 | E36: 952.5119097 | F36: 999.5804719 | G36: 1036.457346 | H36: 1057.760831 | I36: 1084.950399 | J36: 1108.841445
A37: DPA0208 | B37: Underground 33 kV | C37: km | D37: 0 | E37: 0 | F37: 0 | G37: 0 | H37: 0 | I37: 0 | J37: 0
A38: DPA0209 | B38: Underground 66 kV | C38: km | D38: 27.855475 | E38: 29.570475 | F38: 38.070475 | G38: 42.070475 | H38: 42.630475 | I38: 44.430475 | J38: 44.430475
A39: DPA0210 | B39: Underground 110 kV | C39: km | D39: 0 | E39: 0 | F39: 0 | G39: 0 | H39: 0 | I39: 0 | J39: 0
A40: DPA0211 | B40: Underground 132 kV | C40: km | D40: 0 | E40: 0 | F40: 0 | G40: 0 | H40: 0 | I40: 0 | J40: 0
A41: DPA0212 | B41: Other | C41: km | D41: 0 | E41: 0 | F41: 0 | G41: 0 | H41: 0 | I41: 0 | J41: 0
A42: DPA02 | B42: Total underground circuit km | D42: =SUM(D30:D41) -> 2645.401242 | E42: 2739.188182 | F42: 2851.89884 | G42: 2946.114838 | H42: 3013.345568 | I42: 3089.425497 | J42: 3161.725734
B44: CIRCUIT CAPACITY MVA
B45: 3.5.1.3 - Estimated overhead network weighted average MVA capacity by voltage class
A46: DPA0301 | B46: Overhead low voltage distribution | C46: MVA | D46: 0.1365096449 | E46: 0.1366239728 | F46: 0.1367425287 | G46: 0.1368640833 | H46: 0.1369798589 | I46: 0.1370955283 | J46: 0.1372105524
A47: DPA0302 | B47: Overhead 6.6 kV | C47: MVA | D47: 3.48098034 | E47: 3.48098034 | F47: 3.48098034 | G47: 3.48098034 | H47: 3.48098034 | I47: 3.48098034 | J47: 3.48098034
A48: DPA0303 | B48: Overhead 7.6 kV | C48: MVA | D48: 0 | E48: 0 | F48: 0 | G48: 0 | H48: 0 | I48: 0 | J48: 0
A49: DPA0304 | B49: Overhead 11 kV | C49: MVA | D49: 5.567045853 | E49: 5.567045853 | F49: 5.567045853 | G49: 5.567045853 | H49: 5.580987584 | I49: 5.580987584 | J49: 5.580987584
A50: DPA0305 | B50: Overhead SWER | C50: MVA | D50: 0 | E50: 0 | F50: 0 | G50: 0 | H50: 0 | I50: 0 | J50: 0
A51: DPA0306 | B51: Overhead 22 kV | C51: MVA | D51: 9.393083209 | E51: 9.393083209 | F51: 9.529621692 | G51: 9.529621692 | H51: 9.631878292 | I51: 9.632543314 | J51: 9.634042538
A52: DPA0307 | B52: Overhead 33 kV | C52: MVA | D52: 0 | E52: 0 | F52: 0 | G52: 0 | H52: 0 | I52: 0 | J52: 0
A53: DPA0308 | B53: Overhead 44 kV | C53: MVA | D53: 0 | E53: 0 | F53: 0 | G53: 0 | H53: 0 | I53: 0 | J53: 0
A54: DPA0309 | B54: Overhead 66 kV | C54: MVA | D54: 113.4579782 | E54: 113.6446377 | F54: 115.3727196 | G54: 115.2071869 | H54: 115.2365179 | I54: 115.243766 | J54: 115.269215
A55: DPA0310 | B55: Overhead 110 kV | C55: MVA | D55: 0 | E55: 0 | F55: 0 | G55: 0 | H55: 0 | I55: 0 | J55: 0
A56: DPA0311 | B56: Overhead 132 kV | C56: MVA | D56: 0 | E56: 0 | F56: 0 | G56: 0 | H56: 0 | I56: 0 | J56: 0
A57: DPA0312 | B57: Overhead 220 kV | C57: MVA | D57: 0 | E57: 0 | F57: 0 | G57: 0 | H57: 0 | I57: 0 | J57: 0
A58: DPA0313 | B58: Other | C58: MVA | D58: 0 | E58: 0 | F58: 0 | G58: 0 | H58: 0 | I58: 0 | J58: 0
B59: 3.5.1.4 - Estimated underground network weighted average MVA capacity by voltage class
A60: DPA0401 | B60: Underground low voltage distribution | C60: MVA | D60: 0.2855250688 | E60: 0.2843196768 | F60: 0.283163889 | G60: 0.2820881244 | H60: 0.2812033542 | I60: 0.2803304935 | J60: 0.2794850836
A61: DPA0402 | B61: Underground 5 kV | C61: MVA | D61: 0 | E61: 0 | F61: 0 | G61: 0 | H61: 0 | I61: 0 | J61: 0
A62: DPA0403 | B62: Underground 6.6 kV | C62: MVA | D62: 4.652615775 | E62: 4.652615775 | F62: 4.652615775 | G62: 4.652615775 | H62: 4.652615775 | I62: 4.652615775 | J62: 4.652615775
A63: DPA0404 | B63: Underground 7.6 kV | C63: MVA | D63: 0 | E63: 0 | F63: 0 | G63: 0 | H63: 0 | I63: 0 | J63: 0
A64: DPA0405 | B64: Underground 11 kV | C64: MVA | D64: 8.000308807 | E64: 7.99400813 | F64: 7.954870717 | G64: 7.946757544 | H64: 7.946757544 | I64: 7.946757544 | J64: 7.942849956
A65: DPA0406 | B65: Underground SWER | C65: MVA | D65: 0 | E65: 0 | F65: 0 | G65: 0 | H65: 0 | I65: 0 | J65: 0
A66: DPA0407 | B66: Underground 12.7 kV | C66: MVA | D66: 0 | E66: 0 | F66: 0 | G66: 0 | H66: 0 | I66: 0 | J66: 0
A67: DPA0408 | B67: Underground 22 kV | C67: MVA | D67: 15.10674587 | E67: 15.0947186 | F67: 15.12668056 | G67: 15.11837557 | H67: 15.11980574 | I67: 15.11948337 | J67: 15.11927079
A68: DPA0409 | B68: Underground 33 kV | C68: MVA | D68: 0 | E68: 0 | F68: 0 | G68: 0 | H68: 0 | I68: 0 | J68: 0
A69: DPA0410 | B69: Underground 66 kV | C69: MVA | D69: 105.4156786 | E69: 106.0975821 | F69: 111.5919421 | G69: 114.0246678 | H69: 114.3006627 | I69: 114.4170385 | J69: 114.4170385
A70: DPA0411 | B70: Underground 110 kV | C70: MVA | D70: 0 | E70: 0 | F70: 0 | G70: 0 | H70: 0 | I70: 0 | J70: 0
A71: DPA0412 | B71: Underground 132 kV | C71: MVA | D71: 0 | E71: 0 | F71: 0 | G71: 0 | H71: 0 | I71: 0 | J71: 0
A72: DPA0413 | B72: Other | C72: MVA | D72: 0 | E72: 0 | F72: 0 | G72: 0 | H72: 0 | I72: 0 | J72: 0
B76: 3.5.2 - TRANSFORMER CAPACITIES VARIABLES
D77: VOLUMES
C78: Units | D78: =CRCP_y4 -> 2024-25 | E78: =CRCP_y5 -> 2025-26 | F78: =FRCP_y1 -> 2026-27 | G78: =FRCP_y2 -> 2027-28 | H78: =FRCP_y3 -> 2028-29 | I78: =FRCP_y4 -> 2029-30 | J78: =FRCP_y5 -> 2030-31
B79: Distribution transformer total installed capacity
A80: DPA0501 | B80: Distribution transformer capacity owned by utility | C80: MVA | D80: 3291.00411 | E80: 3387.852314 | F80: 3491.848278 | G80: 3597.19662 | H80: 3675.780957 | I80: 3760.942473 | J80: 3849.48765
A81: DPA0503 | B81: Cold spare capacity included in DPA0501 | C81: MVA | D81: 31.49174987 | E81: 32.4184942 | F81: 33.41363574 | G81: 34.42171824 | H81: 35.17369489 | I81: 35.98860885 | J81: 36.83590118
B82: Zone substation transformer capacity
A83: DPA0601 | B83: Total installed capacity for first step transformation where there are two steps to reach distribution voltage | C83: MVA | D83: 0 | E83: 0 | F83: 0 | G83: 0 | H83: 0 | I83: 0 | J83: 0
A84: DPA0602 | B84: Total installed capacity for second step transformation where there are two steps to reach distribution voltage | C84: MVA | D84: 0 | E84: 0 | F84: 0 | G84: 0 | H84: 0 | I84: 0 | J84: 0
A85: DPA0603 | B85: Total zone substation transformer capacity where there is only a single step transformation to reach distribution voltage | C85: MVA | D85: 1859.068086 | E85: 1924.368086 | F85: 1924.368086 | G85: 2024.368086 | H85: 2024.368086 | I85: 2027.368086 | J85: 2027.368086
A86: DPA0604 | B86: Total zone substation transformer capacity | C86: MVA | D86: 1870.135099 | E86: 1935.435099 | F86: 1935.435099 | G86: 2035.435099 | H86: 2035.435099 | I86: 2027.368086 | J86: 2027.368086
A87: DPA0605 | B87: Cold spare capacity of zone substation transformers included in DPA0604 | C87: MVA | D87: 40.5 | E87: 27 | F87: 27 | G87: 27 | H87: 27 | I87: 0 | J87: 0
B91: 3.5.3 - PUBLIC LIGHTING
D92: VOLUMES
C93: Units | D93: =CRCP_y4 -> 2024-25 | E93: =CRCP_y5 -> 2025-26 | F93: =FRCP_y1 -> 2026-27 | G93: =FRCP_y2 -> 2027-28 | H93: =FRCP_y3 -> 2028-29 | I93: =FRCP_y4 -> 2029-30 | J93: =FRCP_y5 -> 2030-31
A94: DPA0701 | B94: Public lighting luminaires | C94: 0's | D94: 80322.17171 | E94: 81188.58954 | F94: 82064.35323 | G94: 82949.56359 | H94: 83844.32253 | I94: 84748.73304 | J94: 85662.89923
A95: DPA0702 | B95: Public lighting poles | C95: 0's | D95: 32042.93724 | E95: 32813.99256 | F95: 33603.60193 | G95: 34412.21182 | H95: 35240.27945 | I95: 36088.27302 | J95: 36956.67202
A96: DPA0703 | B96: Public lighting columns | C96: 0's

Sheet 3.6 Quality of service
B1: =INDEX(dms_Worksheet_List,MATCH(dms_Model,dms_Model_List)) -> REGULATORY REPORTING STATEMENT
B2: =INDEX(dms_TradingNameFull_List,MATCH(dms_TradingName,dms_TradingName_List)) -> Jemena Electricity
B3: =CONCATENATE("REGULATORY PERIOD FROM ", FRCP_y1," TO ",dms_MultiYear_FinalYear_Result) -> REGULATORY PERIOD FROM 2026-27 TO 2030-31
B4: 3.6 QUALITY OF SERVICE DATA
B5: TEMPLATE DATE - SEPTEMBER 2024 - FINAL RIN
B7: 3.6.2 - ENERGY NOT SUPPLIED
D8: FORECAST
C9: Units | D9: =CRCP_y4 -> 2024-25 | E9: =CRCP_y5 -> 2025-26 | F9: =FRCP_y1 -> 2026-27 | G9: =FRCP_y2 -> 2027-28 | H9: =FRCP_y3 -> 2028-29 | I9: =FRCP_y4 -> 2029-30 | J9: =FRCP_y5 -> 2030-31
A10: DQS0201 | B10: Energy Not Supplied (planned) | C10: GWh | D10: 0.1413038 | E10: 0.1542806585 | F10: 0.2375778807 | G10: 0.2497679843 | H10: 0.2057099288 | I10: 0.2349046441 | J10: 0.2010283099
A11: DQS0202 | B11: Energy Not Supplied (unplanned) | C11: GWh | D11: 0.3156220508 | E11: 0.356714 | F11: 0.4853787774 | G11: 0.3062325351 | H11: 0.5232408046 | I11: 0.3062325351 | J11: 0.4853787774
A12: DQS02 | B12: Total | D12: =SUM(D10:D11) -> 0.4569258507 | E12: 0.5109946585 | F12: 0.7229566581 | G12: 0.5560005195 | H12: 0.7289507334 | I12: 0.5411371793 | J12: 0.6864070874
B14: 3.6.3 - SYSTEM LOSSES
D15: FORECAST
C16: Units | D16: =CRCP_y4 -> 2024-25 | E16: =CRCP_y5 -> 2025-26 | F16: =FRCP_y1 -> 2026-27 | G16: =FRCP_y2 -> 2027-28 | H16: =FRCP_y3 -> 2028-29 | I16: =FRCP_y4 -> 2029-30 | J16: =FRCP_y5 -> 2030-31
A17: DQS03 | B17: System losses | C17: % | D17: 0.03427286999 | E17: 0.03406402094 | F17: 0.03398888362 | G17: 0.03656993761 | H17: 0.04002041388 | I17: 0.04307276805 | J17: 0.04678510453
B19: 3.6.4 - CAPACITY UTILISATION
D20: FORECAST
C21: Units | D21: =CRCP_y4 -> 2024-25 | E21: =CRCP_y5 -> 2025-26 | F21: =FRCP_y1 -> 2026-27 | G21: =FRCP_y2 -> 2027-28 | H21: =FRCP_y3 -> 2028-29 | I21: =FRCP_y4 -> 2029-30 | J21: =FRCP_y5 -> 2030-31
A22: DQS04 | B22: Overall utilisation | C22: % | D22: 0.587345282 | E22: 0.59529566 | F22: 0.620595724 | G22: 0.6172785655 | H22: 0.6373886889 | I22: 0.6612369912 | J22: 0.6860910175

Sheet 3.7 Operating Environment
B1: =INDEX(dms_Worksheet_List,MATCH(dms_Model,dms_Model_List)) -> REGULATORY REPORTING STATEMENT
B2: =INDEX(dms_TradingNameFull_List,MATCH(dms_TradingName,dms_TradingName_List)) -> Jemena Electricity
B3: =CONCATENATE("REGULATORY PERIOD FROM ", FRCP_y1," TO ",dms_MultiYear_FinalYear_Result) -> REGULATORY PERIOD FROM 2026-27 TO 2030-31
B4: 3.7 OPERATING ENVIRONMENT FACTORS
B5: TEMPLATE DATE - SEPTEMBER 2024 - FINAL RIN
B7: There are THREE tables on this worksheet. Each table has been grouped (and sub-grouped) for ease of navigation. See the Instructions sheet on how to group or ungroup tables.
A9: DOEF01 | B9: 3.7.1 - DENSITY FACTORS
D10: FORECAST
C11: Units | D11: =CRCP_y4 -> 2024-25 | E11: =CRCP_y5 -> 2025-26 | F11: =FRCP_y1 -> 2026-27 | G11: =FRCP_y2 -> 2027-28 | H11: =FRCP_y3 -> 2028-29 | I11: =FRCP_y4 -> 2029-30 | J11: =FRCP_y5 -> 2030-31
A12: DOEF0101 | B12: Customer density | C12: Customer / km | D12: 75.39934185
A13: DOEF0102 | B13: Energy density | C13: MWh/customer | D13: 11.40131471
A14: DOEF0103 | B14: Demand density | C14: kVA / customer | D14: 3.149926979
A16: DOEF02 | B16: 3.7.2 - TERRAIN FACTORS
D17: FORECAST
C18: Units | D18: =CRCP_y4 -> 2024-25 | E18: =CRCP_y5 -> 2025-26 | F18: =FRCP_y1 -> 2026-27 | G18: =FRCP_y2 -> 2027-28 | H18: =FRCP_y3 -> 2028-29 | I18: =FRCP_y4 -> 2029-30 | J18: =FRCP_y5 -> 2030-31
A19: DOEF0201 | B19: Rural proportion | C19: % | D19: 0.3141
A20: DOEF0202 | B20: Urban and CBD vegetation maintenance spans | C20: 0's | D20: 12687
A21: DOEF0203 | B21: Rural vegetation maintenance spans | C21: 0's | D21: 1028
A22: DOEF0204 | B22: Total vegetation maintenance spans | C22: 0's | D22: 13715
A23: DOEF0205 | B23: Total number of spans | C23: 0's | D23: 94000
A24: DOEF0206 | B24: Average urban and CBD vegetation maintenance span cycle | C24: Years | D24: 1
A25: DOEF0207 | B25: Average rural vegetation maintenance span cycle | C25: Years | D25: 1
A26: DOEF0208 | B26: Average number of trees per urban and CBD vegetation maintenance span | C26: Trees | D26: 1.591910005
A27: DOEF0209 | B27: Average number of trees per rural vegetation maintenance span | C27: Trees | D27: 3.623567921
A28: DOEF0210 | B28: Average number of defects per urban and CBD vegetation maintenance span | C28: Defects | D28: 0.2831498325
A29: DOEF0211 | B29: Average number of defects per rural vegetation maintenance span | C29: Defects | D29: 0.1309328969
A30: DOEF0212 | B30: Tropical proportion | C30: Spans | D30: 0
A31: DOEF0213 | B31: Standard vehicle access | C31: km | D31: 3441.303477 | E31: 3463.183573 | F31: 3525.368354 | G31: 3548.57847 | H31: 3578.660206 | I31: 3599.637156 | J31: 3631.986658
A32: DOEF0214 | B32: Bushfire risk | C32: Spans | D32: 996
A34: DOEF03 | B34: 3.7.3 - SERVICE AREA FACTORS
D35: FORECAST
C36: Units | D36: =CRCP_y4 -> 2024-25 | E36: =CRCP_y5 -> 2025-26 | F36: =FRCP_y1 -> 2026-27 | G36: =FRCP_y2 -> 2027-28 | H36: =FRCP_y3 -> 2028-29 | I36: =FRCP_y4 -> 2029-30 | J36: =FRCP_y5 -> 2030-31
A37: DOEF0301 | B37: Route Line length | C37: km | D37: 5166 | E37: 5293 | F37: 5487 | G37: 5650 | H37: 5824 | I37: 5980 | J37: 6155

Sheet 4.1 Public lighting
B1: =INDEX(dms_Worksheet_List,MATCH(dms_Model,dms_Model_List)) -> REGULATORY REPORTING STATEMENT
B2: =INDEX(dms_TradingNameFull_List,MATCH(dms_TradingName,dms_TradingName_List)) -> Jemena Electricity
B3: =CONCATENATE("REGULATORY PERIOD FROM ", FRCP_y1," TO ",dms_MultiYear_FinalYear_Result) -> REGULATORY PERIOD FROM 2026-27 TO 2030-31
B4: 4.1 PUBLIC LIGHTING
B5: TEMPLATE DATE - SEPTEMBER 2024 - FINAL RIN
B7: There are TWO tables on this worksheet. Each table has been grouped (and sub-grouped) for ease of navigation. There are no further instructions.
B9: 4.1.2 - DESCRIPTOR METRICS ANNUALLY
D10: VOLUMES & EXPENDITURE
C11: Units | D11: =CRCP_y4 -> 2024-25 | E11: =CRCP_y5 -> 2025-26 | F11: =FRCP_y1 -> 2026-27 | G11: =FRCP_y2 -> 2027-28 | H11: =FRCP_y3 -> 2028-29 | I11: =FRCP_y4 -> 2029-30 | J11: =FRCP_y5 -> 2030-31
B12: PUBLIC LIGHT INSTALLATION
B13: Major road light installed | C13: number | D13: 213.3913047 | E13: 363.162348 | F13: 356.0639775 | G13: 348.6010628 | H13: 346.7074707 | I13: 345.4024662 | J13: 345.8767304
B14: Minor road light installed | C14: number | D14: 1374.107174 | E14: 1222.471957 | F14: 1192.978774 | G14: 1166.16947 | H14: 1164.868253 | I14: 1160.99553 | J14: 1157.497601
B15: Number of poles installed | C15: number | D15: 324.8346722 | E15: 324.4532242 | F15: 316.9658435 | G15: 309.9530464 | H15: 309.2993229 | I15: 308.2398539 | J15: 307.6211503
B16: Total expenditure | C16: $ | D16: 703359.2957 | E16: 526903.4795 | F16: 175223.8317 | G16: 0 | H16: 0 | I16: 0 | J16: 0
B17: PUBLIC LIGHT REPLACEMENT
B18: Major road light installed | C18: number | D18: 0 | E18: 2468.729895 | F18: 3203.122148 | G18: 4331.626741 | H18: 3887.936956 | I18: 2928.17378 | J18: 3479.950158
B19: Minor road light installed | C19: number | D19: 0 | E19: 4910.874307 | F19: 11057.26381 | G19: 8540.568119 | H19: 7105.803643 | I19: 7809.630945 | J19: 8088.958473
B20: Number of poles replaced | C20: number | D20: 0 | E20: 952.7414184 | F20: 1227.877133 | G20: 197.2136239 | H20: 169.3455285 | I20: 354.3190443 | J20: 171.330903
B21: Total expenditure | C21: $ | D21: 1011438.914 | E21: 2229193.625 | F21: 7306195.222 | G21: 7217189.022 | H21: 6963111.467 | I21: 5762580.473 | J21: 5045721.455
B22: PUBLIC LIGHT MAINTENANCE
B23: Major road light installed | C23: number | D23: 0 | E23: 0 | F23: 0 | G23: 0 | H23: 0 | I23: 0 | J23: 0
B24: Minor road light installed | C24: number | D24: 0 | E24: 0 | F24: 0 | G24: 0 | H24: 0
B25: Number of poles maintained | C25: number | D25: 1 | E25: 1 | F25: 6842 | G25: 6962 | H25: 7073 | I25: 7176 | J25: 7286
B26: Total expenditure | C26: $ | D26: 4208245.715 | E26: 4385348.028 | F26: 4723282.573 | G26: 4554868.15 | H26: 4162810.944 | I26: 3503089.027 | J26: 3124858.296
B27: QUALITY OF SUPPLY
B28: Mean days to rectify/replace public lighting assets | C28: number of days | D28: 7 | E28: 7 | F28: 7 | G28: 7 | H28: 7 | I28: 7 | J28: 7
B29: GSO breaches | C29: number | D29: 36 | E29: 36 | F29: 36 | G29: 36 | H29: 36 | I29: 36 | J29: 36
B30: GSL payments | C30: $ | D30: 900 | E30: 900 | F30: 900 | G30: 900 | H30: 900 | I30: 900 | J30: 900
B31: Customer complaints | C31: number | D31: 60 | E31: 60 | F31: 60 | G31: 60 | H31: 60 | I31: 60 | J31: 60
B35: 4.1.3 - COST METRICS
D36: =CONCATENATE("AVERAGE UNIT COST ($, real ",dms_DollarReal, ")") -> AVERAGE UNIT COST ($, real June 2026)
D37: =CRCP_y4 -> 2024-25 | E37: =CRCP_y5 -> 2025-26 | F37: =FRCP_y1 -> 2026-27 | G37: =FRCP_y2 -> 2027-28 | H37: =FRCP_y3 -> 2028-29 | I37: =FRCP_y4 -> 2029-30 | J37: =FRCP_y5 -> 2030-31
B38: PUBLIC LIGHT INSTALLATION
B39: All light types | D39: 443.0613983 | E39: 332.2982341 | F39: 113.1174924 | G39: 0 | H39: 0 | I39: 0 | J39: 0
B99: PUBLIC LIGHT REPLACEMENT
B100: All light types | D100: 0 | E100: 302.0749573 | F100: 512.3420391 | G100: 560.6805289 | H100: 633.3705443 | I100: 536.6628115 | J100: 436.1449828
B160: PUBLIC LIGHT MAINTENANCE
B161: All light types | D161: 0 | E161: 0 | F161: 0 | G161: 0 | H161: 0 | I161: 0 | J161: 0

Sheet 5.4 MD & utilisation-Spatial
B1: =INDEX(dms_Worksheet_List,MATCH(dms_Model,dms_Model_List)) -> REGULATORY REPORTING STATEMENT
B2: =INDEX(dms_TradingNameFull_List,MATCH(dms_TradingName,dms_TradingName_List)) -> Jemena Electricity
B3: =CONCATENATE("REGULATORY PERIOD FROM ", FRCP_y1," TO ",dms_MultiYear_FinalYear_Result) -> REGULATORY PERIOD FROM 2026-27 TO 2030-31
B4: 5.4 MAXIMUM DEMAND AND UTILISATION AT SPATIAL LEVEL
B5: TEMPLATE DATE - SEPTEMBER 2024 - FINAL RIN
B7: There are two tables on this worksheet. The tables have been sub-grouped for ease of navigation. See the Instructions sheet on how to group or ungroup tables.
B9: 5.4.1 - NON-COINCIDENT & COINCIDENT MAXIMUM DEMAND
B10: SUBTRANSMISSION SUBSTATION
F11: DEMAND
B12: SUBSTATION | C12: FORECASTING ELEMENTS | D12: UNIT | E12: MAX DEMAND | F12: =CRCP_y4 -> 2024-25 | G12: =CRCP_y5 -> 2025-26 | H12: =FRCP_y1 -> 2026-27 | I12: =FRCP_y2 -> 2027-28 | J12: =FRCP_y3 -> 2028-29 | K12: =FRCP_y4 -> 2029-30 | L12: =FRCP_y5 -> 2030-31
B13: BLTS 22 | C13: Substation Rating | D13: MVA | E13: Non-Coincident
E14: Coincident
C15: Raw Adjusted MD | D15: MW | E15: Non-Coincident
E16: Coincident
C17: Raw Adjusted MD | D17: MVA | E17: Non-Coincident
E18: Coincident
C19: Date MD occurred | E19: Non-Coincident
E20: Coincident
C21: Half hour time period MD occurred | E21: Non-Coincident
E22: Coincident
C23: Winter/Summer Peaking | E23: Non-Coincident | F23: Summer | G23: Summer | H23: Summer | I23: Summer | J23: Summer | K23: Summer | L23: Summer
E24: Coincident | F24: Summer | G24: Summer | H24: Summer | I24: Summer | J24: Summer | K24: Summer | L24: Summer
C25: Adjustments - Embedded generation | D25: MW | E25: Non-Coincident | F25: 0 | G25: 0 | H25: 0 | I25: 0 | J25: 0 | K25: 0 | L25: 0
E26: Coincident | F26: 0 | G26: 0 | H26: 0 | I26: 0 | J26: 0 | K26: 0 | L26: 0
C27: Weather Corrected 10% POE | D27: MW | E27: Non-Coincident | F27: 3.630132 | G27: 3.630132 | H27: 3.630132 | I27: 3.630132 | J27: 3.630132 | K27: 3.630132 | L27: 3.630132
E28: Coincident | F28: 1.273716 | G28: 1.273716 | H28: 1.273716 | I28: 1.273716 | J28: 1.273716 | K28: 1.273716 | L28: 1.273716
C29: Weather Corrected MD 10% POE | D29: MVA | E29: Non-Coincident | F29: 4.828975211 | G29: 4.828975211 | H29: 4.828975211 | I29: 4.828975211 | J29: 4.828975211 | K29: 4.828975211 | L29: 4.828975211
E30: Coincident | F30: 1.694357944 | G30: 1.694357944 | H30: 1.694357944 | I30: 1.694357944 | J30: 1.694357944 | K30: 1.694357944 | L30: 1.694357944
C31: Weather Corrected MD 50% POE | D31: MW | E31: Non-Coincident | F31: 3.630132 | G31: 3.630132 | H31: 3.630132 | I31: 3.630132 | J31: 3.630132 | K31: 3.630132 | L31: 3.630132
E32: Coincident | F32: 1.273716 | G32: 1.273716 | H32: 1.273716 | I32: 1.273716 | J32: 1.273716 | K32: 1.273716 | L32: 1.273716
C33: Weather Corrected MD 50% POE | D33: MVA | E33: Non-Coincident | F33: 4.828975211 | G33: 4.828975211 | H33: 4.828975211 | I33: 4.828975211 | J33: 4.828975211 | K33: 4.828975211 | L33: 4.828975211
E34: Coincident | F34: 1.694357944 | G34: 1.694357944 | H34: 1.694357944 | I34: 1.694357944 | J34: 1.694357944 | K34: 1.694357944 | L34: 1.694357944
B35: BLTS 66 | C35: Substation Rating | D35: MVA | E35: Non-Coincident
E36: Coincident
C37: Raw Adjusted MD | D37: MW | E37: Non-Coincident
E38: Coincident
C39: Raw Adjusted MD | D39: MVA | E39: Non-Coincident
E40: Coincident
C41: Date MD occurred | E41: Non-Coincident
E42: Coincident
C43: Half hour time period MD occurred | E43: Non-Coincident
E44: Coincident
C45: Winter/Summer Peaking | E45: Non-Coincident | F45: Summer | G45: Summer | H45: Summer | I45: Summer | J45: Summer | K45: Summer | L45: Summer
E46: Coincident | F46: Summer | G46: Summer | H46: Summer | I46: Summer | J46: Summer | K46: Summer | L46: Summer
C47: Adjustments - Embedded generation | D47: MW | E47: Non-Coincident | F47: 0 | G47: 0 | H47: 0 | I47: 0 | J47: 0 | K47: 0 | L47: 0
E48: Coincident | F48: 0 | G48: 0 | H48: 0 | I48: 0 | J48: 0 | K48: 0 | L48: 0
C49: Weather Corrected 10% POE | D49: MW | E49: Non-Coincident | F49: 149.8933524 | G49: 161.9606321 | H49: 167.5094114 | I49: 174.489155 | J49: 179.1617187 | K49: 185.5619848 | L49: 190.9246535
E50: Coincident | F50: 148.0683162 | G50: 160.0611461 | H50: 165.5505149 | I50: 172.4844008 | J50: 177.1254844 | K50: 183.5125426 | L50: 188.8577929
C51: Weather Corrected MD 10% POE | D51: MVA | E51: Non-Coincident | F51: 154.6178475 | G51: 166.8778564 | H51: 172.5804324 | I51: 179.6788883 | J51: 184.432945 | K51: 190.8674028 | L51: 196.2751627
E52: Coincident | F52: 152.7279972 | G52: 164.9109122 | H52: 170.5519679 | I52: 177.6029375 | J52: 182.3243961 | K52: 188.7451768 | L52: 194.1348998
C53: Weather Corrected MD 50% POE | D53: MW | E53: Non-Coincident | F53: 142.0308434 | G53: 154.0772075 | H53: 159.3573514 | I53: 166.4819147 | J53: 171.0056905 | K53: 177.2808281 | L53: 182.4452304
E54: Coincident | F54: 140.3136709 | G54: 152.2858722 | H54: 157.510291 | I54: 164.5870098 | J54: 169.0813466 | K54: 175.3449929 | L54: 180.4946968
C55: Weather Corrected MD 50% POE | D55: MVA | E55: Non-Coincident | F55: 146.4761101 | G55: 158.7144607 | H55: 164.138861 | I55: 171.3872798 | J55: 175.9872645 | K55: 182.2921499 | L55: 187.4946022
E56: Coincident | F56: 144.6979542 | G56: 156.8595081 | H56: 162.2262042 | I56: 169.4250794 | J56: 173.9945797 | K56: 180.2875657 | L56: 185.4747976
B57: BTS | C57: Substation Rating | D57: MVA | E57: Non-Coincident
E58: Coincident
C59: Raw Adjusted MD | D59: MW | E59: Non-Coincident
E60: Coincident
C61: Raw Adjusted MD | D61: MVA | E61: Non-Coincident
E62: Coincident
C63: Date MD occurred | E63: Non-Coincident
E64: Coincident
C65: Half hour time period MD occurred | E65: Non-Coincident
E66: Coincident
C67: Winter/Summer Peaking | E67: Non-Coincident | F67: Summer | G67: Summer | H67: Summer | I67: Summer | J67: Summer | K67: Summer | L67: Summer
E68: Coincident | F68: Summer | G68: Summer | H68: Summer | I68: Summer | J68: Summer | K68: Summer | L68: Summer
C69: Adjustments - Embedded generation | D69: MW | E69: Non-Coincident | F69: 0 | G69: 0 | H69: 0 | I69: 0 | J69: 0 | K69: 0 | L69: 0
E70: Coincident | F70: 0 | G70: 0 | H70: 0 | I70: 0 | J70: 0 | K70: 0 | L70: 0
C71: Weather Corrected 10% POE | D71: MW | E71: Non-Coincident | F71: 64.75730489 | G71: 65.80517827 | H71: 69.32661013 | I71: 73.17331979 | J71: 76.14259046 | K71: 77.79181055 | L71: 79.63567843
E72: Coincident | F72: 64.75730489 | G72: 65.80517827 | H72: 69.32661013 | I72: 73.17331979 | J72: 76.14259046 | K72: 77.79181055 | L72: 79.63567843
C73: Weather Corrected MD 10% POE | D73: MVA | E73: Non-Coincident | F73: 67.6282969 | G73: 68.72262737 | H73: 72.40018066 | I73: 76.41743282 | J73: 79.51834504 | K73: 81.24068271 | L73: 83.16629782
E74: Coincident | F74: 67.6282969 | G74: 68.72262737 | H74: 72.40018066 | I74: 76.41743282 | J74: 79.51834504 | K74: 81.24068271 | L74: 83.16629782
C75: Weather Corrected MD 50% POE | D75: MW | E75: Non-Coincident | F75: 59.23750202 | G75: 60.33459511 | H75: 63.55286469 | I75: 67.24261466 | J75: 69.95972828 | K75: 71.438465 | L75: 73.06602282
E76: Coincident | F76: 59.23750202 | G76: 60.33459511 | H76: 63.55286469 | I76: 67.24261466 | J76: 69.95972828 | K76: 71.438465 | L76: 73.06602282
C77: Weather Corrected MD 50% POE | D77: MVA | E77: Non-Coincident | F77: 61.86377554 | G77: 63.00950785 | H77: 66.37045827 | I77: 70.22379199 | J77: 73.06136787 | K77: 74.60566386 | L77: 76.30537887
E78: Coincident | F78: 61.86377554 | G78: 63.00950785 | H78: 66.37045827 | I78: 70.22379199 | J78: 73.06136787 | K78: 74.60566386 | L78: 76.30537887
B79: KTS B1-B2 | C79: Substation Rating | D79: MVA | E79: Non-Coincident
E80: Coincident
C81: Raw Adjusted MD | D81: MW | E81: Non-Coincident
E82: Coincident
C83: Raw Adjusted MD | D83: MVA | E83: Non-Coincident
E84: Coincident
C85: Date MD occurred | E85: Non-Coincident
E86: Coincident
C87: Half hour time period MD occurred | E87: Non-Coincident
E88: Coincident
C89: Winter/Summer Peaking | E89: Non-Coincident | F89: Summer | G89: Summer | H89: Summer | I89: Summer | J89: Summer | K89: Summer | L89: Summer
E90: Coincident | F90: Summer | G90: Summer | H90: Summer | I90: Summer | J90: Summer | K90: Summer | L90: Summer
C91: Adjustments - Embedded generation | D91: MW | E91: Non-Coincident | F91: 0 | G91: 0 | H91: 0 | I91: 0 | J91: 0 | K91: 0 | L91: 0
E92: Coincident | F92: 0 | G92: 0 | H92: 0 | I92: 0 | J92: 0 | K92: 0 | L92: 0
C93: Weather Corrected 10% POE | D93: MW | E93: Non-Coincident | F93: 261.5028819 | G93: 284.1786549 | H93: 298.4630623 | I93: 326.8386667 | J93: 352.0819285 | K93: 380.5866889 | L93: 417.5683028
E94: Coincident | F94: 258.363983 | G94: 281.0016536 | H94: 295.2294037 | I94: 323.544586 | J94: 348.7465145 | K94: 377.1959006 | L94: 414.1143279
C95: Weather Corrected MD 10% POE | D95: MVA | E95: Non-Coincident | F95: 271.0660173 | G95: 293.8578752 | H95: 308.3148979 | I95: 336.8745872 | J95: 362.2437776 | K95: 390.917244 | L95: 428.0913653
E96: Coincident | F96: 267.8105461 | G96: 290.5628865 | H96: 304.9611477 | I96: 333.458171 | J96: 358.784493 | K96: 387.4005287 | L96: 424.5091168
C97: Weather Corrected MD 50% POE | D97: MW | E97: Non-Coincident | F97: 243.9981836 | G97: 267.0205212 | H97: 280.9583327 | I97: 309.6217123 | J97: 334.6068435 | K97: 362.688269 | L97: 399.0981033
E98: Coincident | F98: 241.0726629 | G98: 264.0526735 | H98: 277.9380526 | I98: 306.5375022 | J98: 331.4844465 | K98: 359.5156582 | L98: 395.8692758
C99: Weather Corrected MD 50% POE | D99: MVA | E99: Non-Coincident | F99: 252.91123 | G99: 276.0625232 | H99: 290.1600781 | I99: 319.01823 | J99: 344.1197033 | K99: 372.3541131 | L99: 408.9352201
E100: Coincident | F100: 249.8770613 | G100: 272.9844556 | H100: 287.0276309 | I100: 315.8194786 | J100: 340.8813468 | K100: 369.0636779 | L100: 405.5864804
B101: KTS B3-B4 | C101: Substation Rating | D101: MVA | E101: Non-Coincident
E102: Coincident
C103: Raw Adjusted MD | D103: MW | E103: Non-Coincident
E104: Coincident
C105: Raw Adjusted MD | D105: MVA | E105: Non-Coincident
E106: Coincident
C107: Date MD occurred | E107: Non-Coincident
E108: Coincident
C109: Half hour time period MD occurred | E109: Non-Coincident
E110: Coincident
C111: Winter/Summer Peaking | E111: Non-Coincident | F111: Summer | G111: Summer | H111: Summer | I111: Summer | J111: Summer | K111: Summer | L111: Summer
E112: Coincident | F112: Summer | G112: Summer | H112: Summer | I112: Summer | J112: Summer | K112: Summer | L112: Summer
C113: Adjustments - Embedded generation | D113: MW | E113: Non-Coincident | F113: 0 | G113: 0 | H113: 0 | I113: 0 | J113: 0 | K113: 0 | L113: 0
E114: Coincident | F114: 0 | G114: 0 | H114: 0 | I114: 0 | J114: 0 | K114: 0 | L114: 0
C115: Weather Corrected 10% POE | D115: MW | E115: Non-Coincident | F115: 98.5796353 | G115: 104.5960503 | H115: 109.448029 | I115: 113.3411761 | J115: 115.7594272 | K115: 118.8522121 | L115: 127.1716414
E116: Coincident | F116: 92.86373748 | G116: 98.53130544 | H116: 103.1019541 | I116: 106.7693666 | J116: 109.0474014 | K116: 111.9608587 | L116: 120.0820209
C117: Weather Corrected MD 10% POE | D117: MVA | E117: Non-Coincident | F117: 101.1875844 | G117: 107.3631652 | H117: 112.3435042 | I117: 116.3396454 | J117: 118.821872 | K117: 121.9964773 | L117: 130.4063685
E118: Coincident | F118: 95.32047105 | G118: 101.1379759 | H118: 105.8295423 | I118: 109.5939771 | J118: 111.9322779 | K118: 114.9228114 | L118: 123.1291902
C119: Weather Corrected MD 50% POE | D119: MW | E119: Non-Coincident | F119: 89.34956356 | G119: 95.0208422 | H119: 99.41235661 | I119: 103.1993128 | J119: 105.3838578 | K119: 108.1440828 | L119: 116.0554558
E120: Coincident | F120: 84.16884876 | G120: 89.51129225 | H120: 93.64817549 | I120: 97.21555437 | J120: 99.27343386 | K120: 101.873614 | L120: 109.6103799
C121: Weather Corrected MD 50% POE | D121: MVA | E121: Non-Coincident | F121: 91.71332877 | G121: 97.53464252 | H121: 102.0423356 | I121: 105.9294767 | J121: 108.1718143 | K121: 111.0050617 | L121: 118.9961014
E122: Coincident | F122: 86.39555686 | G122: 91.87933604 | H122: 96.12566157 | I122: 99.78741636 | J122: 101.8997376 | K122: 104.5687061 | L122: 112.3805194
B123: SMTS | C123: Substation Rating | D123: MVA | E123: Non-Coincident
E124: Coincident
C125: Raw Adjusted MD | D125: MW | E125: Non-Coincident
E126: Coincident
C127: Raw Adjusted MD | D127: MVA | E127: Non-Coincident
E128: Coincident
C129: Date MD occurred | E129: Non-Coincident
E130: Coincident
C131: Half hour time period MD occurred | E131: Non-Coincident
E132: Coincident
C133: Winter/Summer Peaking | E133: Non-Coincident | F133: Summer | G133: Summer | H133: Summer | I133: Summer | J133: Summer | K133: Summer | L133: Summer
E134: Coincident | F134: Summer | G134: Summer | H134: Summer | I134: Summer | J134: Summer | K134: Summer | L134: Summer
C135: Adjustments - Embedded generation | D135: MW | E135: Non-Coincident | F135: 0 | G135: 0 | H135: 0 | I135: 0 | J135: 0 | K135: 0 | L135: 0
E136: Coincident | F136: 0 | G136: 0 | H136: 0 | I136: 0 | J136: 0 | K136: 0 | L136: 0
C137: Weather Corrected 10% POE | D137: MW | E137: Non-Coincident | F137: 109.0980605 | G137: 117.9831356 | H137: 131.6563082 | I137: 141.0690644 | J137: 147.8037015 | K137: 157.1686148 | L137: 168.1181491
E138: Coincident | F138: 103.0841066 | G138: 111.4793982 | H138: 124.6890801 | I138: 133.7062739 | J138: 140.1612382 | K138: 149.2833117 | L138: 159.9660209
C139: Weather Corrected MD 10% POE | D139: MVA | E139: Non-Coincident | F139: 112.7824298 | G139: 121.9675644 | H139: 135.9246884 | I139: 145.5797807 | J139: 152.4857557 | K139: 161.9994415 | L139: 173.1124426
E140: Coincident | F140: 106.5653777 | G140: 115.2441882 | H140: 128.7221688 | I140: 137.9683401 | J140: 144.5851974 | K140: 153.8478425 | L140: 164.6850076
C141: Weather Corrected MD 50% POE | D141: MW | E141: Non-Coincident | F141: 104.8469114 | G141: 113.6467205 | H141: 126.9909088 | I141: 136.452151 | J141: 142.9894231 | K141: 152.1307246 | L141: 162.781569
E142: Coincident | F142: 99.06729914 | G142: 107.3820249 | H142: 120.2808576 | I142: 129.3438645 | J142: 135.6123434 | K142: 144.5231317 | L142: 154.9236161
C143: Weather Corrected MD 50% POE | D143: MVA | E143: Non-Coincident | F143: 108.3877145 | G143: 117.4847034 | H143: 131.101733 | I143: 140.8069487 | J143: 147.5088934 | K143: 156.791416 | L143: 167.59564
E144: Coincident | F144: 102.4129179 | G144: 111.0084418 | H144: 124.1650755 | I144: 133.4586071 | J144: 139.8826811 | K144: 148.9269056 | L144: 159.4723148
B145: TSTS | C145: Substation Rating | D145: MVA | E145: Non-Coincident
E146: Coincident
C147: Raw Adjusted MD | D147: MW | E147: Non-Coincident
E148: Coincident
C149: Raw Adjusted MD | D149: MVA | E149: Non-Coincident
E150: Coincident
C151: Date MD occurred | E151: Non-Coincident
E152: Coincident
C153: Half hour time period MD occurred | E153: Non-Coincident
E154: Coincident
C155: Winter/Summer Peaking | E155: Non-Coincident | F155: Summer | G155: Summer | H155: Summer | I155: Summer | J155: Summer | K155: Summer | L155: Summer
E156: Coincident | F156: Summer | G156: Summer | H156: Summer | I156: Summer | J156: Summer | K156: Summer | L156: Summer
C157: Adjustments - Embedded generation | D157: MW | E157: Non-Coincident | F157: 0 | G157: 0 | H157: 0 | I157: 0 | J157: 0 | K157: 0 | L157: 0
E158: Coincident | F158: 0 | G158: 0 | H158: 0 | I158: 0 | J158: 0 | K158: 0 | L158: 0
C159: Weather Corrected 10% POE | D159: MW | E159: Non-Coincident | F159: 27.9484935 | G159: 28.03255313 | H159: 28.21716732 | I159: 28.50110481 | J159: 28.76997636 | K159: 29.16030649 | L159: 29.61503409
E160: Coincident | F160: 27.59037245 | G160: 27.67335497 | H160: 27.85560359 | I160: 28.13590282 | J160: 28.40132915 | K160: 28.78665775 | L160: 29.23555864
C161: Weather Corrected MD 10% POE | D161: MVA | E161: Non-Coincident | F161: 30.18187685 | G161: 30.27265374 | H161: 30.47202058 | I161: 30.77864771 | J161: 31.06900497 | K161: 31.49052665 | L161: 31.98159184
E162: Coincident | F162: 29.7951381 | G162: 29.88475181 | H162: 30.08156404 | I162: 30.38426217 | J162: 30.67089891 | K162: 31.08701937 | L162: 31.57179225
C163: Weather Corrected MD 50% POE | D163: MW | E163: Non-Coincident | F163: 25.87770216 | G163: 26.0152691 | H163: 26.18230731 | I163: 26.51019148 | J163: 26.75588417 | K163: 27.10501521 | L163: 27.50295491
E164: Coincident | F164: 25.54611542 | G164: 25.68191963 | H164: 25.84681748 | I164: 26.17050027 | J164: 26.41304475 | K164: 26.75770216 | L164: 27.15054282
C165: Weather Corrected MD 50% POE | D165: MVA | E165: Non-Coincident | F165: 27.94560715 | G165: 28.09416716 | H165: 28.2745535 | I165: 28.62863912 | J165: 28.89396529 | K165: 29.27099562 | L165: 29.70073496
E166: Coincident | F166: 27.58752308 | G166: 27.7341795 | H166: 27.91225445 | I166: 28.26180295 | J166: 28.52372933 | K166: 28.89592855 | L166: 29.32016138
B167: TTS B1-B2 | C167: Substation Rating | D167: MVA | E167: Non-Coincident
E168: Coincident
C169: Raw Adjusted MD | D169: MW | E169: Non-Coincident
E170: Coincident
C171: Raw Adjusted MD | D171: MVA | E171: Non-Coincident
E172: Coincident
C173: Date MD occurred | E173: Non-Coincident
E174: Coincident
C175: Half hour time period MD occurred | E175: Non-Coincident
E176: Coincident
C177: Winter/Summer Peaking | E177: Non-Coincident | F177: Summer | G177: Summer | H177: Summer | I177: Summer | J177: Summer | K177: Summer | L177: Summer
E178: Coincident | F178: Summer | G178: Summer | H178: Summer | I178: Summer | J178: Summer | K178: Summer | L178: Summer
C179: Adjustments - Embedded generation | D179: MW | E179: Non-Coincident | F179: 0 | G179: 0 | H179: 0 | I179: 0 | J179: 0 | K179: 0 | L179: 0
E180: Coincident | F180: 0 | G180: 0 | H180: 0 | I180: 0 | J180: 0 | K180: 0 | L180: 0
C181: Weather Corrected 10% POE | D181: MW | E181: Non-Coincident | F181: 130.0811708 | G181: 141.4951092 | H181: 143.3692719 | I181: 149.0214249 | J181: 150.3336011 | K181: 152.4068635 | L181: 170.3367268
E182: Coincident | F182: 129.3228817 | G182: 140.7222442 | H182: 142.5850903 | I182: 148.2263614 | J182: 149.5306144 | K182: 151.591358 | L182: 169.5068511
C183: Weather Corrected MD 10% POE | D183: MVA | E183: Non-Coincident | F183: 133.3083299 | G183: 144.7843012 | H183: 146.7066258 | I183: 152.4050901 | J183: 153.7509863 | K183: 155.877527 | L183: 173.8685476
E184: Coincident | F184: 132.5305545 | G184: 143.9915752 | H184: 145.9022924 | I184: 151.5895952 | J184: 152.9273646 | K184: 155.0410648 | L184: 173.0173458
C185: Weather Corrected MD 50% POE | D185: MW | E185: Non-Coincident | F185: 122.6590403 | G185: 134.2074747 | H185: 135.9548607 | I185: 141.8065692 | J185: 143.0261916 | K185: 144.9202337 | L185: 162.6015135
E186: Coincident | F186: 121.9455678 | G186: 133.4786142 | H186: 135.2154491 | I186: 141.0550707 | J186: 142.2673288 | K186: 144.1499341 | L186: 161.8183448
C187: Weather Corrected MD 50% POE | D187: MVA | E187: Non-Coincident | F187: 125.695467 | G187: 137.3093906 | H187: 139.1016806 | I187: 145.0048285 | J187: 146.2557925 | K187: 148.1985073 | L187: 165.9345563
E188: Coincident | F188: 124.9636599 | G188: 136.5617999 | H188: 138.3432676 | I188: 144.2340182 | J188: 145.4774286 | K188: 147.4084128 | L188: 165.1312619
B189: TTS B3-B4 | C189: Substation Rating | D189: MVA | E189: Non-Coincident
E190: Coincident
C191: Raw Adjusted MD | D191: MW | E191: Non-Coincident
E192: Coincident
C193: Raw Adjusted MD | D193: MVA | E193: Non-Coincident
E194: Coincident
C195: Date MD occurred | E195: Non-Coincident
E196: Coincident
C197: Half hour time period MD occurred | E197: Non-Coincident
E198: Coincident
C199: Winter/Summer Peaking | E199: Non-Coincident | F199: Summer | G199: Summer | H199: Summer | I199: Summer | J199: Summer | K199: Summer | L199: Summer
E200: Coincident | F200: Summer | G200: Summer | H200: Summer | I200: Summer | J200: Summer | K200: Summer | L200: Summer
C201: Adjustments - Embedded generation | D201: MW | E201: Non-Coincident | F201: 0 | G201: 0 | H201: 0 | I201: 0 | J201: 0 | K201: 0 | L201: 0
E202: Coincident | F202: 0 | G202: 0 | H202: 0 | I202: 0 | J202: 0 | K202: 0 | L202: 0
... 4294 more rows

Sheet 6.2 Reliability & Cust serv
B1: =INDEX(dms_Worksheet_List,MATCH(dms_Model,dms_Model_List)) -> REGULATORY REPORTING STATEMENT
B2: =INDEX(dms_TradingNameFull_List,MATCH(dms_TradingName,dms_TradingName_List)) -> Jemena Electricity
B3: =CONCATENATE("REGULATORY PERIOD FROM ", FRCP_y1," TO ",dms_MultiYear_FinalYear_Result) -> REGULATORY PERIOD FROM 2026-27 TO 2030-31
B4: 6.2 RELIABILITY AND CUSTOMER SERVICE PERFORMANCE
B5: TEMPLATE DATE - SEPTEMBER 2024 - FINAL RIN
B7: There are FIVE tables on this worksheet. Each table has been grouped for ease of navigation. There are no further instructions.
B9: 6.2.1 - UNPLANNED MINUTES OFF SUPPLY (SAIDI)
E10: Proposed target
B11: SAIDI | E11: =FRCP_y1 -> 2026-27 | F11: =FRCP_y2 -> 2027-28 | G11: =FRCP_y3 -> 2028-29 | H11: =FRCP_y4 -> 2029-30 | I11: =FRCP_y5 -> 2030-31
B12: Total sustained minutes off supply after removing excluded events
B13: =INDEX(dms_FeederName_1,MATCH(dms_TradingName,dms_TradingName_List)) -> CBD
B14: =INDEX(dms_FeederName_2,MATCH(dms_TradingName,dms_TradingName_List)) -> Urban | E14: 45.518 | F14: 45.518 | G14: 45.518 | H14: 45.518 | I14: 45.518
B15: =INDEX(dms_FeederName_3,MATCH(dms_TradingName,dms_TradingName_List)) -> Short rural | E15: 37.355 | F15: 37.355 | G15: 37.355 | H15: 37.355 | I15: 37.355
B16: =INDEX(dms_FeederName_4,MATCH(dms_TradingName,dms_TradingName_List)) -> Long rural
B17: =IF(ISBLANK(INDEX(dms_FeederName_5,MATCH(dms_TradingName,dms_TradingName_List))),"",INDEX(dms_FeederName_5,MATCH(dms_TradingName,dms_TradingName_List))) -> 
B18: Total | E18: =SUM(E13:E17) -> 82.873 | F18: =SUM(F13:F17) -> 82.873 | G18: =SUM(G13:G17) -> 82.873 | H18: =SUM(H13:H17) -> 82.873 | I18: =SUM(I13:I17) -> 82.873
B21: 6.2.2 - UNPLANNED INTERRUPTIONS TO SUPPLY (SAIFI)
E22: Proposed target
B23: SAIFI | E23: =FRCP_y1 -> 2026-27 | F23: =FRCP_y2 -> 2027-28 | G23: =FRCP_y3 -> 2028-29 | H23: =FRCP_y4 -> 2029-30 | I23: =FRCP_y5 -> 2030-31
B24: Total sustained interruptions after removing excluded events
B25: =INDEX(dms_FeederName_1,MATCH(dms_TradingName,dms_TradingName_List)) -> CBD
B26: =INDEX(dms_FeederName_2,MATCH(dms_TradingName,dms_TradingName_List)) -> Urban | E26: 0.713 | F26: 0.713 | G26: 0.713 | H26: 0.713 | I26: 0.713
B27: =INDEX(dms_FeederName_3,MATCH(dms_TradingName,dms_TradingName_List)) -> Short rural | E27: 0.566 | F27: 0.566 | G27: 0.566 | H27: 0.566 | I27: 0.566
B28: =INDEX(dms_FeederName_4,MATCH(dms_TradingName,dms_TradingName_List)) -> Long rural
B29: =IF(ISBLANK(INDEX(dms_FeederName_5,MATCH(dms_TradingName,dms_TradingName_List))),"",INDEX(dms_FeederName_5,MATCH(dms_TradingName,dms_TradingName_List))) -> 
B30: Total | E30: =SUM(E25:E29) -> 1.279 | F30: =SUM(F25:F29) -> 1.279 | G30: =SUM(G25:G29) -> 1.279 | H30: =SUM(H25:H29) -> 1.279 | I30: =SUM(I25:I29) -> 1.279
B33: 6.2.3 - UNPLANNED MOMENTARY INTERRUPTIONS TO SUPPLY (MAIFI)
E34: Proposed target
B35: MAIFI | E35: =FRCP_y1 -> 2026-27 | F35: =FRCP_y2 -> 2027-28 | G35: =FRCP_y3 -> 2028-29 | H35: =FRCP_y4 -> 2029-30 | I35: =FRCP_y5 -> 2030-31
B36: Total momentary interruptions after removing excluded events
B37: =INDEX(dms_FeederName_1,MATCH(dms_TradingName,dms_TradingName_List)) -> CBD
B38: =INDEX(dms_FeederName_2,MATCH(dms_TradingName,dms_TradingName_List)) -> Urban
B39: =INDEX(dms_FeederName_3,MATCH(dms_TradingName,dms_TradingName_List)) -> Short rural
B40: =INDEX(dms_FeederName_4,MATCH(dms_TradingName,dms_TradingName_List)) -> Long rural
B41: =IF(ISBLANK(INDEX(dms_FeederName_5,MATCH(dms_TradingName,dms_TradingName_List))),"",INDEX(dms_FeederName_5,MATCH(dms_TradingName,dms_TradingName_List))) -> 
B42: Total | E42: =SUM(E37:E41) -> 0 | F42: =SUM(F37:F41) -> 0 | G42: =SUM(G37:G41) -> 0 | H42: =SUM(H37:H41) -> 0 | I42: =SUM(I37:I41) -> 0
B45: 6.2.3(B) - UNPLANNED MOMENTARY INTERRUPTIONS TO SUPPLY (MAIFIe)
E46: Proposed target
B47: MAIFIe | E47: =FRCP_y1 -> 2026-27 | F47: =FRCP_y2 -> 2027-28 | G47: =FRCP_y3 -> 2028-29 | H47: =FRCP_y4 -> 2029-30 | I47: =FRCP_y5 -> 2030-31
B48: Total momentary interruptions after removing excluded events
B49: =INDEX(dms_FeederName_1,MATCH(dms_TradingName,dms_TradingName_List)) -> CBD
B50: =INDEX(dms_FeederName_2,MATCH(dms_TradingName,dms_TradingName_List)) -> Urban
B51: =INDEX(dms_FeederName_3,MATCH(dms_TradingName,dms_TradingName_List)) -> Short rural
B52: =INDEX(dms_FeederName_4,MATCH(dms_TradingName,dms_TradingName_List)) -> Long rural
B53: =IF(ISBLANK(INDEX(dms_FeederName_5,MATCH(dms_TradingName,dms_TradingName_List))),"",INDEX(dms_FeederName_5,MATCH(dms_TradingName,dms_TradingName_List))) -> 
B54: Total | E54: =SUM(E49:E53) -> 0 | F54: =SUM(F49:F53) -> 0 | G54: =SUM(G49:G53) -> 0 | H54: =SUM(H49:H53) -> 0 | I54: =SUM(I49:I53) -> 0
B57: The number of distribution customers is calculated as the average of the number of customers at the beginning of the reporting period and the number of customers at the end of the reporting period.
B59: 6.2.4 - DISTRIBUTION CUSTOMER NUMBERS (STPIS)
C60: FORECAST
B61: Average customer numbers | C61: =CRCP_y4 -> 2024-25 | D61: =CRCP_y5 -> 2025-26 | E61: =FRCP_y1 -> 2026-27 | F61: =FRCP_y2 -> 2027-28 | G61: =FRCP_y3 -> 2028-29 | H61: =FRCP_y4 -> 2029-30 | I61: =FRCP_y5 -> 2030-31
B62: =INDEX(dms_FeederName_1,MATCH(dms_TradingName,dms_TradingName_List)) -> CBD
B63: =INDEX(dms_FeederName_2,MATCH(dms_TradingName,dms_TradingName_List)) -> Urban | C63: 338037 | D63: 342715 | E63: 348675 | F63: 355022 | G63: 361345 | H63: 367660 | I63: 373978
B64: =INDEX(dms_FeederName_3,MATCH(dms_TradingName,dms_TradingName_List)) -> Short rural | C64: 45060 | D64: 45683 | E64: 46478 | F64: 47324 | G64: 48167 | H64: 49009 | I64: 49851
B65: =INDEX(dms_FeederName_4,MATCH(dms_TradingName,dms_TradingName_List)) -> Long rural
B66: =IF(ISBLANK(INDEX(dms_FeederName_5,MATCH(dms_TradingName,dms_TradingName_List))),"",INDEX(dms_FeederName_5,MATCH(dms_TradingName,dms_TradingName_List))) -> 
B67: Total | C67: =SUM(C62:C66) -> 383097 | D67: 388398 | E67: 395153 | F67: 402346 | G67: 409512 | H67: 416669 | I67: 423829
B69: The AER's definition of calls answered within 30 seconds is as follows: Calls to the fault line answered in 30 seconds where the time to answer a call is measured from when the call enters the telephone system of the call centre (including that time when it may be ringing unanswered by any response) and the caller speaks with a human operator, but excluding the time that the caller is connected to an automated interactive service that provides substantive information. This measure does not apply to: - calls to payment lines and automated interactive services; - calls abandoned by the customer within 30 seconds of the call being queued for response by a human operator. Where the time in which a telephone call is abandoned is not measured, then an estimate of the number of calls abandoned within 30 seconds will be determined by taking 20 per cent of all calls abandoned. Note: Being placed in a queuing system (automated or otherwise) does not constitute a response. 'Calls answered within 30 seconds' and 'Calls received' should be calculated excluding calls abandoned within 30 seconds of being queued for a human operator; and calls to payment lines and automated interactive services.
B71: 6.2.5 - CUSTOMER SERVICE
E72: Proposed target
E73: =FRCP_y1 -> 2026-27 | F73: =FRCP_y2 -> 2027-28 | G73: =FRCP_y3 -> 2028-29 | H73: =FRCP_y4 -> 2029-30 | I73: =FRCP_y5 -> 2030-31
B74: Number of calls received
B75: Number of calls answered within 30 seconds
B76: Percentage of calls answered within 30 seconds | E76: =IFERROR((E75/E74),"") ->  | F76: =IFERROR((F75/F74),"") ->  | G76: =IFERROR((G75/G74),"") ->  | H76: =IFERROR((H75/H74),"") ->  | I76: =IFERROR((I75/I74),"") -> 

Sheet 7.1 Policies and Procedures
B1: =INDEX(dms_Worksheet_List,MATCH(dms_Model,dms_Model_List)) -> REGULATORY REPORTING STATEMENT
B2: =INDEX(dms_TradingNameFull_List,MATCH(dms_TradingName,dms_TradingName_List)) -> Jemena Electricity
B3: =CONCATENATE("REGULATORY PERIOD FROM ", FRCP_y1," TO ",dms_MultiYear_FinalYear_Result) -> REGULATORY PERIOD FROM 2026-27 TO 2030-31
B4: 7.1 PLANS, POLICIES, PROCEDURES AND STRATEGIES
B5: TEMPLATE DATE - SEPTEMBER 2024 - FINAL RIN
B7: 7.1.1 - PLANS, POLICIES, PROCEDURES AND STRATEGIES
C8: Brief description | D8: Relevance to regulatory proposal | E8: Expenditure impact
C9: Description of the plan, policy, procedure or strategy. | D9: Identify the element of the proposal/supporting documents that the policy, plan, procedure or strategy is relevant to e.g. replacement capex, capacity utilisation thresholds, opex | E9: Is this policy, plan or procedure identified in the response to section 4 'Step Changes' of the notice (yes or no)?
B10: Corporate
B11: Customer Policy | C11: Outlines Jemena's commitments to our customers | D11: This policy outlines our ultimate business focus on committing to our customers, including actively engaging with customers and contributing to a continuous improvement customer service culture. This document is relevant to all element of the regulatory proposal. | E11: no
B12: JAA HSE PO 0001 Health, Safety, Environment & Quality Policy | C12: Provides the policy commitments for the Jemena environment, including the operation, construction and maintenance of our assets in a way which recognises and mitigates the risks to people and the environment. | D12: Network CAPEX and OPEX | E12: no
B31: Governance framework
B32: JAA RC FW 0002 Compliance Management Framework | C32: Outlines the compliance management framework for ensuring JEN meets its requirements with internal governing bodies, compliance with the law policy, process and procedures, reporting, and legislation. | D32: This document is relevant to all elements of the regulatory proposal. | E32: no
B33: JAA LEG PO 0001 Compliance Policy | C33: Outlines the compliance management framework for ensuring JEN meets its requirements with internal governing bodies, compliance with the law policy, process and procedures, reporting, and legislation. | D33: This document is relevant to all elements of the regulatory proposal. | E33: no
B34: JAA FIN MA 0002 Accounting Management Manual | C34: To assist the SGSPAA Group with meeting the requirements of relevant accounting standards and other applicable laws. If application of the Group’s policies results in materially different outcomes to what would occur under application of relevant accounting standards, then the relevant accounting standards’ view prevails. It should be noted that requirements are different for Regulatory and Taxation purposes. | D34: This document underpins the recording of financial information that is used a basis for the financial forecast information for the proposal. | E34: no
B35: JAA FIN GU 0005 Basis of Preparing Accounts | C35: To provide guidance on the application of the SGSPAA Accounting Management Manual, with respect to the Group’s Basis of Preparation Accounting Guideline. | D35: This document underpins the recording of financial information that is used a basis for the financial forecast information for the proposal. | E35: no
B36: JAA PO 0050 - Risk Management Policy | C36: The Risk Management Policy ensures that there is a systematic and strategic approach to identifying and managing risk acros our business and ensuring that we meet business, regulatory and statutory objectives. | D36: This document is relevant to all elements of the regulatory proposal. | E36: no
B37: JAA MA 0050 Risk Management Manual | C37: Cognisant of the benefits of effective risk management, SGSPAA has established a Risk Management Framework and process in alignment with the ISO 31000:2018 risk management approach. SGSPAA promotes risk management as a strategic and management tool to ensure better informed decision making throughout SGSPAA and in support of SGSPAA’s vision and objectives. | D37: This document is relevant to all elements of the regulatory proposal. | E37: no
B49: Accounting policies, procedures and methodologies (including a capitalisation policy, depreciation policy and an approved expenditure allocation methodology)
B50: JEM FIN PR 0002 - Jemena Cost Allocation Methodology | C50: Establishes a method of attributing or allocating costs to services provided by Jemena to assets owned and managed. Costs of services cover both direct and indirect costs applying to capital, operating and maintenance expenditure. | D50: This document underpins the recording of financial information that is used a basis for the financial forecast information for the proposal. | E50: no
B51: JAA FIN PR 0011 - Related Party Transactions | C51: Applies to the process of related party transactions of the SGSPAA Group. Alongside this, there are a number of processes in place for approving and recording capital expenditure throughout the business. | D51: This document underpins the process of recording of related party transactions for the proposal. | E51: no
B52: JAA FIN PR 0019 - Capital Projects and Asset Recording | C52: Applies to the recognition and measurement of network and non-network project and other costs of the SGSPAA Group. Alongside this, there are a number of processes in place for approving and recording capital expenditure throughout the business. | D52: This document underpins the recording of financial information that is used a basis for the financial forecast information for the proposal. | E52: no
B53: JAA PL 0053 Fraud and Corruption Control Plan | C53: This Fraud and Corruption Control Plan (FCCP) represents SGSPAA’s commitment to the management and control of fraud and corruption and also outlines the fraud and corruption control responsibilities in the Jemena Group and Zinfra Group. | D53: This document is relevant to all elements of the regulatory proposal. | E53: no
B54: JAA FIN GU 0012 Property Plant and Equipment | C54: To provide guidance on the application of the SGSPAA Accounting Management Manual, with respect to the Group’s Property, Plant and Equipment (PPE) Accounting practices. | D54: This document is relevant to capex elements of the regulatory proposal. | E54: no
B55: JAA FIN GU 0013 Intangible Assets | C55: To provide guidance on the application of the SGSPAA Accounting Management Manual, with respect to the Group’s Intangible Assets Accounting practices. | D55: This document is relevant to capex elements of the regulatory proposal. | E55: no
B56: JAA FIN GU 0015 Provisions and Contingent Liabilities | C56: To provide guidance on the application of the SGSPAA Accounting Management Manual, with respect to recognising and accounting for provisions and contingent liabilities. | D56: This document is relevant to opex elements of the regulatory proposal. | E56: no
B57: JAA FIN GU 0016 Employee Benefits | C57: To provide guidance on the application of the SGSPAA Accounting Management Manual, with respect to recognising and accounting for employee benefits. | D57: This document is relevant to both capex and opex elements of the regulatory proposal. | E57: no
B58: JAA FIN GU 0021 Revenue including Customer Contributions | C58: To provide guidance on the application of the Accounting Management Manual, with respect to recognition of revenue arising from customer contributions. | D58: This document is relevant to the recognition of customer contribution revenue. | E58: no
B72: Asset management plan or equivalent documentation
B73: Asset Management Policies
B74: JEM PO 0001 - Jemena Asset Management Policy | C74: Provides the asset management policy commitments. | D74: Capex and Opex (Replacement, Augmentation, Connections) | E74: No
B75: JEN AM MA 0001 - JEN Asset Management System Manual | C75: Provides overview of the asset management system including references to key documents. | D75: Capex and Opex (Replacement, Augmentation, Connections) | E75: No
B76: JEM PL 0002 - Asset Management System Framework | C76: Diagram representation of the Asset Management Framework. | D76: Capex and Opex (Replacement, Augmentation, Connections) | E76: No
B77: JEM AM GU 0003 - Asset Management System Change Management Framework | C77: Identifies the various change management procedures throughout the AMS and provides guidance on their application. | D77: Capex and Opex (Replacement, Augmentation, Connections) | E77: No
B78: JEM HSE MA 0001 - Environmental Management System | C78: Describes Jemena's environmental risk management system and framework. | D78: Capex and Opex (Replacement, Augmentation, Connections) | E78: No
B79: JEM PR 0050 - Identification of Environmental Aspects, Potential Impacts and Associated Risks | C79: Procedure governing the management of environmental risks and the processes to identify and mitigate these risks. | D79: Capex and Opex (Replacement, Augmentation, Connections) | E79: No
B80: JAA RC ST 0001 SGSPAA Risk Appetite Statement | C80: Provides the risk appetite of SGSPAA | D80: Risk Management | E80: No
B81: JAA PO 0050 - Risk Management Policy | C81: Provides the risk management policy commitments. | D81: Risk Management | E81: No
B82: JAA MA 0050 - Group Risk Management Manual | C82: Group Risk Management Manual describing policy and approach | D82: Risk Management | E82: No
B83: JEM AM PR 0056 - Asset Risk and Assurance Auditing Procedure | C83: Describes the process for performing internal audits and for providing support to external audit facilitators. | D83: Risk Management | E83: No
B84: JEM AM GU 007 - Asset Risk Management Guideline | C84: Risk Management guidelines to support asset risk management procedures. | D84: Risk Management | E84: No
B85: JAA RC FW 0002 - Jemena Compliance Management Framework | C85: Compliance management framework describing policy and approach. | D85: Compliance Management | E85: No
B86: JAA HSE MA 0004 - HSEQ Management Overview Manual | C86: Health, Safety and Environment manual describing policy and approach. | D86: Health and Safety | E86: No
B87: JEN MA 0500 - Asset Inspection Manual | C87: Reference for instructing and guiding Asset Inspectors when inspecting assets on the distribution network. | D87: Opex (Asset Inspection) | E87: No
B88: JEN MA 0695 - Enclosed Distribution Substation Inspection Manual | C88: Reference for instructing and guiding Asset Inspectors when inspecting assets on the distribution network. | D88: Opex (Asset Inspection) | E88: No
B96: Asset Management Strategies
B97: ELE 999 PA IN 007 - Electricity Distribution Asset Class Strategy | C97: Electricity Distribution ACS is unpacked and divided into sub-asset classes: - Poles - Pole top structures (crossarms) - Conductors and connectors - Underground distribution systems - Pole type transformers - Non-pole type distribution substations - Overhead line switchgear - LV overhead services - Public lighting - Earthing systems - HV outdoor overhead fuses - Distribution surge arrestors - Automatic circuit reclosers Each sub-asset class is described and discussed in terms of its associated risk, performance, life cycle management and budgetary forecasts. | D97: Capex and Opex (Replacement) | E97: No
B98: ELE 999 PA IN 008 - Electricity Primary Plant Asset Class Strategy | C98: Electricity Primary Plant ACS is unpacked and divided into zone substation sub-asset classes: - Transformers - Circuit breakers - Disconnectors and buses - Instrument transformers - Capacitor banks - Buildings and grounds - Earthing systems Each sub-asset class is described and discussed in terms of its associated risk, performance, life cycle management and budgetary forecasts. | D98: Capex and Opex (Replacement) | E98: No
B99: ELE 999 PA IN 010 - Electricity Secondary Plant Asset Class Strategy | C99: Electricity Secondary Plant ACS is unpacked and divided into sub-asset classes - Protection & Control equipment - DC Supply System - Communications cabling - Multiplexers and MPLS equipment - Radio & Cellular - Remote Terminal Units and Gateways - Communication Network Devices - GPS Clocks Each sub-asset class is described and discussed in terms of its associated risk, performance, life cycle management and budgetary forecasts. | D99: Capex and Opex (Replacement) | E99: No
B100: ELE 999 PA IN 009 - Electricity Measurement Asset Class Strategy | C100: Electricity Measurement ACS is divided into three distinct sub-asset classes: - Electricity Advanced Metering Infrastructure (AMI) meters used at customer connection points in accordance with regulatory requirements - Power Quality Meters (PQMs) are selectively used at zone substations and end-of-feeder distribution substations to meet regulatory requirements - Cross boundary revenue metering assets installed at zone substations and managed in accordance to the NER requirements. Each sub-asset class is described and discussed in terms of its associated risk, performance, life cycle management and budgetary forecasts. | D100: Capex and Opex (Replacement) | E100: No
B101: JEN Property Asset Class Strategy | C101: Property ACS includes information about each asset sub-class, including: Each sub-asset class is described and discussed in terms of: - Drivers for expenditure – the key asset management drivers that inform why and when we invest in our property assets - Asset management considerations – the important factors we consider when determining when and how to invest in our property assets - Asset performance – information about performance, condition, and service levels | D101: Non-Network Capex and Opex | E101: No
B102: ​​ELE-999-PA-IN-001​ - JEN Fleet Asset Class Strategy | C102: Defines the asset strategy for the specific asset class in consideration of full lifecycle costs. | D102: Non-Network Capex and Opex | E102: No
B103: Customer Initiated Connections (CIC) Forecast Report | C103: The purpose of this report is to explain JEN’s CIC expenditure forecasts in the forthcoming regulatory period as one of the key drivers of its capital expenditure plans. | D103: Capex (Connections) | E103: No
B104: Business Case - Tullamarine Depot Augmentation | C104: Business case justifying the augmentation of the Tullamarine field depot to cater for accomodation of increased numbers of field resources, office resources, materials and fleet. | D104: Non-Network Capex and Opex | E104: No
B105: Business Case - Augment Feeder FF0-093 | C105: Business case justifying the augmentation of feeder ex Fairfield Zone Substation to manage load increase in the area. | D105: Capex (Augmentation) | E105: No
B106: Business Case - 66kV Bushing Replacement Program | C106: Business case justifying the replacement of 66kV transformer bushings that have reached end of life and have exhibited performance issues. | D106: Capex (Replacement) | E106: No
B107: Business Case - Coburg North Zone Substation Redevelopment | C107: Business case justifying the replacement of end of life assets at the Coburg North Zone Substation. | D107: Capex (Replacement) | E107: No
B108: Business Case - Operational Technology Communications Network Upgrade | C108: Business case justifying the upgrade of the communications network and associated devices. | D108: Capex (Replacement) | E108: No
B109: Business Case - Coburg South Zone Substation Redevelopment | C109: Business case justifying the replacement of end of life assets at the Coburg South Zone Substation. | D109: Capex (Replacement) | E109: No
B110: Business Case - North Heidelberg Zone Substation Redevelopment | C110: Business case justifying the replacement of end of life assets at the North Heidelberg Zone Substation. | D110: Capex (Replacement) | E110: No
B111: Business Case - 66kV Oil Filled Cable Replacement Program | C111: Business case justifying the replacement of 66kV oil filled sub transmission cables that have reached end of life. | D111: Capex (Replacement) | E111: No
B112: Business Case - Deployment of Mobile Emergency Response Vehicle (JERV) and LV Generation | C112: Business case justifying the purchase and deployment of an emergency response vehicle and LV generators to support communities during widespread outage events. | D112: Network Resilience | E112: No
B113: Business Case - Increasing the Resilience of Assets in High Flood Risk Areas | C113: Business case justifying the relocation or retrofitting of assets in high risk flood areas and / or emergency generation to increase resilience in localised areas of the network. | D113: Network Resilience | E113: No
B114: Business Case - LBRA Hazard Tree Program | C114: Business case justifying the expansion of the hazard tree management program from the HBRA to the LBRA in order to increase resilience of the network during severe weather events. | D114: Network Resilience | E114: No
B117: Asset Management Plans
B118: ELE PL 0004 - Asset Management Plan | C118: This plan covers the creation, maintenance and disposal of assets. Assets are created through new customer connections, replacement of aging assets and supporting increasing locational demand for electricity. | D118: Asset Management Strategies | E118: No
B119: JEN PL 0101 - Electric Line Clearance Plan | C119: It is JEN's policy to achieve compliance with the Electricity Safety (Electric Line Clearance) Regulations 2010, thus achieving high levels of public safety and supply reliability through preventive and corrective maintenance programs. | D119: Electric Line Clearance Management Strategy | E119: No
B120: JEN PL 0100 - Bushfire Mitigation Plan | C120: It is JEN's policy to achieve high levels of public safety and supply reliability through preventative and corrective maintenance programs which are designed to minimise the risk of fire ignition from the JEN supply networks. This plan details the policies and procedures that are to be followed by these programs in order to achieve compliance with Electricity Safety Act 1998, the Electricity Safety (Bushfire Mitigation) Regulations 2013 and the Electricity Safety (Electric Line Clearance) Regulations 2010. | D120: Bushifre Mitigation Strategy | E120: No
B121: Distribution Annual Planning Report (DAPR) | C121: The JEN DAPR provides information to the National Electricity Market participants and interested parties on the emerging constraints on the Jemena electricity network, thereby facilitating the proposal of demand management options for managing constraints on the network. | D121: Augmentation Planning | E121: No
B142: Capital expenditure policies and procedures (including capex approval policies and procedures and replacement policy)
B143: ELE CL PO 0001 - Connections Policy | C143: This Connection Policy sets out the circumstances in which relevant retail customers and connection applicants may be required to pay connection charges to Jemena and explains how Jemena will calculate those connection charges, applying the connection charge principles set out in the NER and Australian Energy Regulator’s (AER) connection charge guidelines for electricity retail customers. | D143: Connections Investment | E143: No
B144: JEN 2026-31 Connection Policy | C144: This Connection Policy sets out the circumstances in which relevant retail customers and connection applicants may be required to pay connection charges to Jemena and explains how Jemena will calculate those connection charges, applying the connection charge principles set out in the NER and Australian Energy Regulator’s (AER) connection charge guidelines for electricity retail customers. | D144: Connections Expenditure | E144: no
B145: Marginal Cost of Reinforcement (MCR) Modelling 2026-31 | C145: Defines the methodology for calculating the augmentation unit rates used in the capital contributions model. | D145: Connections Expenditure | E145: no
B146: ELE PR 0012 - Network Asset Useful Lives Procedure | C146: This document outlines the historical development of the asset useful lives for the infrastructure assets installed on the Jemena Electricity Network (JEN). The asset useful lives are used as inputs for JEN asset management documentation; Asset Class Strategies, Strategic Planning Papers, the Condition Based Risk Management (CBRM) Model and Business Cases. The asset useful lives are also used for accounting purposes. | D146: Asset age profiling Asset depreciation | E146: No
B147: ELE GU 0005 - Condition Based Risk Management (CBRM) | C147: This document provides a summary of how Jemena utilises Condition Based Risk Management (CBRM) to justify future replacement volumes for distribution and zone substation assets. It outlines the different inputs required and their associated outputs and how these outputs are interpreted. | D147: Capex (Replacement) | E147: No
B148: JEN GU 0010 - JEN Planned & Opportunistic Maintenance and Workmanship Guideline | C148: Includes guidance on types of superseded plant items that should be changed to current standard because they are considered to have reached end of life or pose specific reliability of supply or safety problems. The guide is structured around specific groups of plant items. | D148: Capex (Replacement) and Opex | E148: No
B149: JEN PR 007 Network Augmentation Planning Criteria | C149: This document serves as a high-level internal technical criteria that defines the methodology for deciding whether to invest (and optimal timing for investment) in additional network capacity or non-network alternatives, planning criteria for applying this methodology, and sources of data when preparing the inputs and assumptions | D149: Capex (Augmentation) | E149: No
B150: JEM AM GU 0018 - Jemena Investment Framework | C150: This document outlines Jemena’s Investment Framework for evalualting business case options and prioritising capital investment within an allocated funding pool. It is created as a value assessment tool to enable a consistent approach to: facilitating capital allocation for each asset in line with the Jemena Business Plan; evaluating each project in regard to risk mitigation, customer, strategic and financial benefits; and prioritising projects in line with the agreed capital spend. | D150: Network and Non-Network Capex | E150: No
B151: JEM PTU GU 2614 - Infrastucture Portfolio Management Framework | C151: Portfolio Management establishes protocols for operational decisions and governance structures, focusing on performance and the realisation of operational outcomes. Within this context, the Infrastructure Portfolio Management Framework encompasses all the Network related activities (OPEX and CAPEX) delivered to meet the requirements of Capital and Operating Work Plan (COWP) on a two year rolling program. | D151: Portfolio Planning / Works Planning | E151: No
B152: JEM PTM PR 2611 - Portfolio Risk and Issue Management | C152: The purpose of this document is to provide a standard and coordinated approach to apply portfolio risk and issue management of the Portfolio Delivery Plan, in line with the annual Capital and Operating Work Plans (COWP), and across all ‘asset types’. The document forms part of Jemena’s risk management and should be read in conjunction with Jemena’s Risk Management Policy (JAA PO 0050), Group Risk Management Manual (JAA MA 0050) and Project Risk and Issues Management Procedure (JEM PMM PR 2546). | D152: Portfolio Planning / Works Planning | E152: No
B153: ELE PR 0002 - Portfolio Prioritisation Methodology | C153: The purpose of this document is to define the process for portfolio prioritisation, describing how to assess the priority of capex projects/programs and separate the high priority projects from lower priority projects and consider investment drivers. | D153: Portfolio Planning / Works Planning | E153: No
B154: JEM PMM PR 2542 Jemena Infrastructure Cost Estimation Methodology | C154: Provides the process followed for Jemena Project Cost Estimation for all non-routine projects and programs of work for Jemena Electricity Distribution, Jemena Gas Distribution and Gas Markets. It details the methodology to be applied when developing a project estimate | D154: Network and Non-Network Capex | E154: No
B155: JEM PMM PR 2551 GU - Project Gating Guideline | D155: Portfolio Planning / Works Planning | E155: No
B156: JEM PMM PR 2550 Project Management Procedure | D156: Portfolio Planning / Works Planning | E156: No
B157: JEN 2026-31 Connection Policy | C157: This Connection Policy sets out the circumstances in which relevant retail customers and connection applicants may be required to pay connection charges to Jemena and explains how Jemena will calculate those connection charges, applying the connection charge principles set out in the NER and Australian Energy Regulator’s (AER) connection charge guidelines for electricity retail customers. | D157: Connections Expenditure | E157: no
B158: Marginal Cost of Reinforcement (MCR) Modelling 2026-31 | C158: Defines the methodology for calculating the augmentation unit rates used in the capital contributions model. | D158: Connections Expenditure | E158: no
B159: ELE PR 0012 - Network Asset Useful Lives Procedure | C159: This document outlines the historical development of the asset useful lives for the infrastructure assets installed on the Jemena Electricity Network (JEN). The asset useful lives are used as inputs for JEN asset management documentation; Asset Class Strategies, Strategic Planning Papers, the Condition Based Risk Management (CBRM) Model and Business Cases. The asset useful lives are also used for accounting purposes. | D159: Asset age profiling, REPEX | E159: no
B160: ELE PR 0011 - Asset Age Profiling Methodology | C160: This document provides a summary of how the Jemena Electricity Network (JEN) determines the age profile for network assets. It outlines the quality of existing asset information, the extent of asset information that has been estimated and the estimation methodologies used. | D160: Asset age profiling, REPEX | E160: no
B161: ELE GU 0005 - Condition Based Risk Management (CBRM) Guideline | C161: This document provides a summary of how Jemena utilises Condition Based Risk Management (CBRM) to justify future replacement volumes for distribution and zone substation assets. It outlines the different inputs required and their associated outputs and how these outputs are interpreted. | D161: REPEX and replacement procedures | E161: no
B162: JEN GU 0010 - JEN Planned & Opportunistic Maintenance and Workmanship Guideline | C162: Includes guidance on types of superseded plant items that should be changed to current standard because they are considered to have reached end of life or pose specific reliability of supply or safety problems. The guide is structured around specific groups of plant items. | D162: Network OPEX | E162: no
B163: Internal standards for network planning, design, maintenance and operation
B164: ELE 999 PR PM 002 Capex Projects Not Proceeding – Process Document | C164: The purpose of this process document is to be the principal reference for the recognition and expensing of capitalised costs and associated revenue when a customer decides not to proceed with a project or when an internal project does not proceed. | D164: CAPEX and OPEX | E164: no
B165: Internal standards for network planning, design, maintenance and operation
B166: JEN PR 0090 - Electricity Safety Management Scheme | C166: JEN Electricity Safety Management Scheme Document. | D166: Network Management | E166: No
B167: JEN MA 0010 - Jemena Planning Manual | C167: Provides the philosophy for planning the network. | D167: Network Planning | E167: No
B168: JEN PL 0007 - Network Planning Criteria | C168: Provides the criteria used for probabilistic planning of the network. | D168: Network Planning | E168: No
B169: JEN PR 0507 - Load Demand Forecast Procedure | C169: The purpose of this document is to provide a high-level description of the procedure Jemena uses to produce its annual maximum load demand forecasts. | D169: Network Planning | E169: No
B170: PS DE PR 51842 - JEN Design Process | C170: JEN Network Design process. | D170: Network Design | E170: No
B171: JEN ST 0610 - Zone Substation Primary Design Standard | C171: Design standard for zone substation primary systems | D171: Network Design | E171: No
B172: JEN ST 0600 - Zone Substation Secondary Design Standard | C172: Design standard for zone substation secondary systems. | D172: Network Design | E172: No
B173: ELE 999 OP DN 001 - Zone Substation Protection and Control Technical Strategy | C173: Protection and Control Strategy for zone substations. | D173: Network Design | E173: No
B174: ELE AM MA 00003 - Protection and Control Settings Manual | C174: Design standard for protection and control settings. | D174: Network Design | E174: No
B175: ELE 999 OM DN 001 - Overhead Line Design Manual | C175: Design manual for overhead lines. | D175: Network Design | E175: No
B176: ELE PR 2510 - Distribution Design Manual | C176: Design manual for distribution design. | D176: Network Design | E176: No
B177: JEN MA 0150 - Underground Residential Design Manual | C177: Design manual for underground residential estates. | D177: Network Design | E177: No
B178: JEN PR 0026 - Public Lighting Technical Standard | C178: Technical standard for public lighting. | D178: Network Design | E178: No
B179: ELE AM PR 0039 - Network Construction and Design procedural standard | C179: This document sets out the requirements to ensure that the design, construction, maintenance and operation of the electrical distribution assets within the Jemena Electricity Network (JEN) are in accordance with good industry practice and in compliance with the JEN Electricity Safety Management Scheme (ESMS). | D179: Network Construction | E179: No
B180: ELE-999-OM-CN-001 - Distribution Construction Manual | C180: Construction manual for distribution assets. | D180: Network Construction | E180: No
B181: ELE-999-OM-EL-002 - Jemena Operations Manual | C181: Network Operations Manual. | D181: Network Operations | E181: No
B182: ELE-999-PR-RM-003 - JEN Asset Criticality Assessment | E182: No
B183: ELE AM PL 0010 – Zone Substation Transformer Contingency Plan | D183: Network Operations | E183: No
B184: ELE-999-PR-RM-002 - Critical Spares Assessment Procedure | D184: Network Operations | E184: No
B243: Procurement and contracting out policies
B245: Procurement and contracting out policies
B246: JEM PO 0026 Procurement and Contracting Policy | C246: Procurement policy | D246: CAPEX and OPEX | E246: no
B247: JEM SC PR 0170 Supply Chain Procedure | C247: Supports the Contract Management framework and Contractor Management framework. Outlines procurement pipeline and strategic sourcing requirements. | D247: CAPEX and OPEX | E247: no
B248: JEM CMS GU 2701 - Contract Management Framework | C248: Outlines the organisational contract management framework | D248: CAPEX and OPEX | E248: no
B249: JEM CMS PR 2700 - Contractor Management Procedure | C249: Standardises the organisational approach and system for managing contractors | D249: CAPEX and OPEX | E249: no
B250: JAA SCM FW 0001 SOCI Supply Change Risk Management Framework | C250: Illustrates the Group’s approach to manage its engagement with suppliers. This involves the unification and enhancement of its processes and frameworks in respect of identifying, monitoring, and managing supply chain risks, to protect Group’s CI Assets, customers, and shareholders so as to: Operate within Group’s Risk Appetite Statement; Comply with applicable regulation (SOCI); Comply with applicable internal policies; and Identify, report on, monitor, and mitigate supply chain risks and monitor performance. | D250: CAPEX and OPEX | E250: no
B264: Information technology policies or strategies
B266: Information technology policies or strategies
B267: Future Networks Data Visibility & Analytics Strategy | C267: Strategy for data analytics and visibility | D267: Future Network Strategy | E267: No
B268: Future Networks Network Assets Digital Twin Strategy | C268: Strategy for data analytics and visibility | D268: Future Network Strategy | E268: No
B269: Future Networks Grid Stability and Flexible Services Strategy | C269: Strategy for grid stability and flexible services | D269: Future Network Strategy | E269: No
B270: Future Networks Voltage PQ Management Strategy | C270: Strategy for power quality | D270: Future Network Strategy | E270: No
B271: Technology Plan | C271: JEN IT asset management plan and high level document, including IT forecasts for next 5 years | D271: IT CAPEX and OPEX | E271: yes
B272: Information Security Policy | C272: High level policy outlining Jemena’s cybersecurity requirements | D272: CAPEX and OPEX | E272: no
B301: Demand management policies or strategies
B303: Demand management policies or strategies
B304: 11kV Central Area Network Development Strategy | C304: Network Development Strategy | D304: Network Capacity | E304: No
B305: Northern Growth Corridor Network Development Strategy | C305: Network Development Strategy | D305: Network Capacity | E305: No
B306: East Preston Area Network Development Strategy | C306: Network Development Strategy | D306: Network Capacity | E306: No
B307: Major Customers Network Development Strategy | C307: Network Development Strategy | D307: Network Capacity | E307: No
B308: North Western Growth Corridor Network Development Strategy | C308: Network Development Strategy | D308: Network Capacity | E308: No
B309: 22kV Central Area Network Development Strategy | C309: Network Development Strategy | D309: Network Capacity | E309: No
B310: Connections Capex Forecast Summary Report | C310: Connections Forecasting Report | D310: Network Capacity | E310: No
B311: Distribution Substation Augmentation Strategy | C311: The Distribution Substation Augmentation Strategy - identifies through engineering analysis, the distribution substations where an asset management intervention investment provides the highest net benefit, considering risk, performance and cost. The strategy also: - minimises public safety risks associated with overloaded distribution substations and low-voltage circuits; - minimises overload-related outages and the impact on customers during extreme ambient temperature; - Increases solar PV hosting capability and improves voltage compliance as second-order benefits; - minimises the rapid deterioration and reduced life expectancy of assets exposed to overload. | D311: Network Capacity | E311: No
B322: Self insurance guidelines or policy
B324: Self insurance guidelines or policy
B325: <insert relevant policy, plan, strategy etc>
B343: Land and easement acquisition polices
B345: Land and easement acquisition polices
B346: <insert relevant policy, plan, strategy etc>
B364: Asset security plans and policies
B366: Asset security plans and policies
B367: JAA NSO PL 0002 - Crisis Management Plan | C367: JEN crisis management plan | D367: Business Operations | E367: No
B368: JAA NSO PL 0003 - Emergency Management Plan | C368: JEN emergency management plan | D368: Business Operations | E368: No
B369: Business Case - Upgrade Zone Substation Locks and Security Systems | C369: Business case justifying the upgrade of zone substation security systems. | D369: Capex | E369: No
B370: JAA NSO FW 0001 Physical Security Framework | C370: This document intends to establish the systematic and strategic approach to identifying and managing the overall security of Jemena’s employees. contractors and assets. This framework falls under the guidelines of the Jemena Organisational Resilience Policy. Additionally, the following risk management documentation has been used to guide the Physical Security Framework, Manual and subordinate documentation in line with common practices and processes: • AS/NZS ISO 31000:2009 Risk management—Principles and guidelines • HB 167:2006 Security risk management • HB 327:2010 Communicating and consulting about risk | D370: CAPEX and OPEX | E370: no
B371: JAA IT PO 0002 Technical Information Security Policy | C371: This policy specifies the technical requirements of the Group for the management and use of Company resources to support information confidentiality, integrity and availability. | D371: CAPEX and OPEX | E371: no
B385: Disaster recovery policy
B387: Disaster recovery policy
B388: Business Continuity and Disaster Recovery Security Policy | C388: Business continuity and disaster recovery policy | D388: Business Operations | E388: No
B389: JAA RCM PO 0052 - Organisational Resilience Policy | C389: Approach to organisational resilience guides our preparedness and responsiveness to disruptive events and change opportunities, endeavouring to maintain the continued viability of our business. | D389: Organisational risk management, including OPEX and CAPEX spend dedicated to implementation and maintenance of key operational controls and risk/crisis/disaster/disruption mitigation processes and practices | E389: no
B390: JAA NSO PL 0003 Business Continuity Plan | C390: This documents the arrangements for responding to and recovering from defined disruption scenarios that impact SGSPAA’s business critical activities. | D390: Organisational risk management, including OPEX and CAPEX spend dedicated to implementation and maintenance of key operational controls and risk/crisis/disaster/disruption mitigation processes and practices | E390: no
B391: JAA IT PL 0002 Digital Disaster Recovery Plan | C391: The objective of the plan is to ensure that disaster recovery controls are implemented and tested. Responsibilities for testing and executing the DRP are business and process owners and Digital personnel that support the relevant Company resources during disasters. | D391: OPEX | E391: no
B392: JAA NSO PL 0003 Digital Major Incident Management Process | C392: This document defines the activities which the company uses to deliver Major Incident Management services to the Group. | D392: OPEX | E392: no
B393: JAA NSO PR 0001 Alerts and Notifications Process | C393: This outlines Jemena's alerts, triggers and notification process. | D393: OPEX | E393: no
B394: JAA NSO FW0002 Crisis and Emergency Management Framework | C394: Provides guidance on the approach to planning and maintaining SGSPAA’s capability to effectively respond to events, specifically regarding Crisis and Emergency Management. | D394: Organisational risk management, including OPEX and CAPEX spend dedicated to implementation and maintenance of key operational controls and risk/crisis/disaster/disruption mitigation processes and practices | E394: no
B395: JAA IT PO 0001 Information Security Policy | C395: With the aim to protect customer information, business operations and services. | D395: CAPEX and OPEX | E395: no
B396: JAA RC FW 0002 Compliance Management Framework | C396: To guide compliance practices and systems within the Group, reflecting the requirements of ISO 37301:2023 Compliance Management Systems. | D396: OPEX | E396: no
B397: Insurance Handbook | C397: Insurance program, as part of Risk Management process, that assists SGSPAA and its subsidiaries (SGSPAA Group) to effectively and efficiently manage risk. | D397: OPEX | E397: no

Sheet 7.2 Contingent projects
B1: =INDEX(dms_Worksheet_List,MATCH(dms_Model,dms_Model_List)) -> REGULATORY REPORTING STATEMENT
B2: =INDEX(dms_TradingNameFull_List,MATCH(dms_TradingName,dms_TradingName_List)) -> Jemena Electricity
B3: =CONCATENATE("REGULATORY PERIOD FROM ", FRCP_y1," TO ",dms_MultiYear_FinalYear_Result) -> REGULATORY PERIOD FROM 2026-27 TO 2030-31
B4: 7.2 CONTINGENT PROJECTS
B5: TEMPLATE DATE - SEPTEMBER 2024 - FINAL RIN
B7: 7.2.1 - PROPOSED CONTINGENT PROJECTS FOR THE FORTHCOMING REGULATORY CONTROL PERIOD
B8: Proposed contingent project name | C8: Proposed contingent capital expenditure ($, nominal) | D8: Proposed trigger events | E8: =CONCATENATE("Proposed annual revenue requirement for ", FRCP_y1, " ($, nominal)") -> Proposed annual revenue requirement for 2026-27 ($, nominal) | F8: =CONCATENATE("5% of the annual revenue requirement for ",FRCP_y1,"") -> 5% of the annual revenue requirement for 2026-27
F9: =+E9*0.05 -> 
E10: =+$E$9 -> 

Sheet 7.3 Obligations
B1: =INDEX(dms_Worksheet_List,MATCH(dms_Model,dms_Model_List)) -> REGULATORY REPORTING STATEMENT
B2: =INDEX(dms_TradingNameFull_List,MATCH(dms_TradingName,dms_TradingName_List)) -> Jemena Electricity
B3: =CONCATENATE("REGULATORY PERIOD FROM ", FRCP_y1," TO ",dms_MultiYear_FinalYear_Result) -> REGULATORY PERIOD FROM 2026-27 TO 2030-31
B4: 7.3 OBLIGATIONS, REQUIREMENTS & STANDARDS
B5: TEMPLATE DATE - SEPTEMBER 2024 - FINAL RIN
B7: 7.3.1 - OBLIGATIONS OR REQUIREMENTS
C8: Brief description | D8: Relevance to regulatory proposal | E8: Expenditure impact
C9: Description of relevant obligations or requirements within the instrument (e.g. safety obligations, reliability targets) | D9: Identify what element of the proposal/supporting documents the obligation or requirement is relevant to e.g. replacement capex, capacity utilisation thresholds, opex | E9: Is the obligation or requirement identified in the response to section 4 'Step Changes' of the notice (yes or no)?
B10: LEGISLATION
B11: Victorian Government | C11: Building Act 1993 (Vic) Building Regulations 2018 (Vic) | D11: Capex | E11: No
B12: Victorian Government | C12: Coastal Management Act 1995 (Vic) | D12: Capex | E12: No
B13: Victorian Government | C13: Conservation, Forests and Lands Act 1987 (Vic) | D13: Capex | E13: No
B14: Victorian Government | C14: Dangerous Goods Act 1985 (Vic) (and various regulations) | D14: Opex | E14: No
B15: Victorian Government | C15: Duties Act 2000 (Vic) | D15: Opex | E15: No
B16: Victorian Government | C16: Electricity Industry Act 2000 (Vic) (and various regulations) | D16: Capex and Opex | E16: No
B17: Victorian Government | C17: Electricity Safety Act 1998 (Vic) (and various regulations) | D17: Capex and Opex | E17: No
B18: Victorian Government | C18: Electricity Safety (Electric Line Clearance) Regulations 2015 | D18: Capex and Opex | E18: No
B19: Victorian Government | C19: Electricity Safety (Bushfire Mitigation) Regulations 2013 | D19: Capex and Opex | E19: No
B20: Victorian Government | C20: Electricity Safety (Bushfire Mitigation) Amendment Regulations 2016 | D20: Capex and Opex | E20: No
B21: Victorian Government | C21: Electricity Safety (Management) Regulations 2009 | D21: Capex and Opex | E21: No
B22: Victorian Government | C22: Electricity Safety (General) Regulations 2019 (commenced 6 December 2019) | D22: Capex and Opex | E22: No
B23: Victorian Government | C23: Electricity Safety (Registration and Licensing) Regulations 2020 (in force as of 1 January 2021) | D23: Capex and Opex | E23: No
B24: Victorian Government | C24: The Electricity Safety (Bushfire Mitigation) Regulations 2023 | D24: Opex | E24: Yes
B25: Victorian Government | C25: Emergency Management Act 1986 (Vic) | D25: Opex | E25: No
B26: Victorian Government | C26: Emergency Management Regulations 2003 (Vic) | D26: Opex | E26: No
B27: Victorian Government | C27: Emergency Management Act 2013 (Vic) | D27: Opex | E27: No
B28: Victorian Government | C28: Energy Safe Victoria Act 2005 (Vic) | D28: Capex and Opex | E28: No
B29: Victorian Government | C29: Environment Protection Act 2017 (Vic) (and various regulations) and Environment Protection Amendment Act 2018 (Vic) | D29: Capex and Opex | E29: No
B30: Victorian Government | C30: Equipment (Public Safety) Act 1994 (Vic) (and various regulations) | D30: Capex and Opex | E30: No
B31: Victorian Government | C31: Essential Services Act 1958 (Vic) | D31: Opex | E31: No
B32: Victorian Government | C32: Essential Services Commission Act 2001 (Vic) | D32: Opex | E32: No
B33: Victorian Government | C33: Essential Services Commission Regulations 2011 (Vic) | D33: Opex | E33: No
B34: Victorian Government | C34: Essential Services Commission (Energy Industry Penalty Regime) Regulations 2016 | D34: Capex and Opex | E34: No
B35: Victorian Government | C35: Essential Services Commission (Compliance and Enforcement Powers) Amendment Act 2021 | D35: Capex and Opex | E35: No
B36: Victorian Government | C36: Fences Act 1968 (Vic) | D36: Capex and Opex | E36: No
B37: Victorian Government | C37: Heavy Vehicle National Law Application Act 2013 (Vic) | D37: Opex | E37: No
B38: Victorian Government | C38: Heavy Vehicle National Law Application (Infringements) Regulations 2013 (Vic) | D38: Opex | E38: No
B39: Victorian Government | C39: Land Acquisition and Compensation Act 1986 (Vic) | D39: Capex and Opex | E39: No
B40: Victorian Government | C40: Land Acquisition and Compensation Act 1986 No. 121 (Vic) | D40: Capex and Opex | E40: No
B41: Victorian Government | C41: Land Act 1958 (Vic) | D41: Capex and Opex | E41: No
B42: Victorian Government | C42: Land Tax Regulations 2005 (Vic) | D42: Capex and Opex | E42: No
B43: Victorian Government | C43: Land Tax Act 2005 (Vic) | D43: Capex and Opex | E43: No
B44: Victorian Government | C44: National Electricity (Victoria) Act 2005 (Vic) | D44: Capex and Opex | E44: No
B45: Victorian Government | C45: National Electricity (Victoria) Amendment Act 2020 | D45: Capex and Opex | E45: No
B46: Victorian Government | C46: National Electricity (Victoria) (Regulated Stand-alone Power Systems) Regulations 2024 | D46: Capex and Opex | E46: No
B47: Victorian Government | C47: Occupational Health And Safety Act 2004 (Vic) (and various regulations) | D47: Capex and Opex | E47: No
B48: Victorian Government | C48: Payroll Tax Act 2007 (Vic) | D48: Opex | E48: No
B49: Victorian Government | C49: Privacy and Data Protection Act 2014 (Vic) | D49: Opex | E49: No
B50: Victorian Government | C50: Property Law Act 1958 (Vic) | D50: Capex and Opex | E50: No
B51: Victorian Government | C51: Property Law (Fees) Regulations 2004 (Vic) | D51: Capex and Opex | E51: No
B52: Victorian Government | C52: Retail Leases Act 2003 (Vic) | D52: Capex and Opex | E52: No
B53: Victorian Government | C53: Retail Leases Regulations 2013 (Vic) | D53: Capex and Opex | E53: No
B54: Victorian Government | C54: Roads Management Act 2004 (Vic) | D54: Capex and Opex | E54: No
B55: Victorian Government | C55: Road Safety Act 1986 (Vic) (and various regulations) | D55: Capex and Opex | E55: No
B56: Victorian Government | C56: Water Act 1989 (Vic) (and various regulations) | D56: Capex and Opex | E56: No
B57: Victorian Government | C57: Workers Compensation Act 1958 (Vic) | D57: Opex | E57: No
B58: Victorian Government | C58: Workers Compensation Regulations 1995 (Vic) | D58: Opex | E58: No
B59: Victorian Government | C59: Workplace Injury Rehabilitation and Compensation Act 2013 (Vic) | D59: Opex | E59: No
B60: Victorian Government | C60: Workplace Injury Rehabilitation and Compensation Act 2013 (Vic) | D60: Opex | E60: No
B61: Commonwealth Government | C61: A New Tax System (Goods and Services Tax) Act 1999 (Cth) | D61: Capex and Opex | E61: No
B62: Commonwealth Government | C62: A New Tax System (Goods and Services Tax) Regulations 1999 (Cth) | D62: Capex and Opex | E62: No
B63: Commonwealth Government | C63: Aboriginal and Torres Strait Islander Heritage Protection Act 1984 (Cth) | D63: Capex and Opex | E63: No
B64: Commonwealth Government | C64: Aboriginal and Torres Strait Islander Heritage Protection Regulations 1984 (Cth) | D64: Capex and Opex | E64: No
B65: Commonwealth Government | C65: Affirmative Action (Equal Employment Opportunity for Women) Regulations 1986 (Cth) | D65: Capex and Opex | E65: No
B66: Commonwealth Government | C66: Age Discrimination Act 2004 (Cth) | D66: Capex and Opex | E66: No
B67: Commonwealth Government | C67: Australian Human Rights Commission Act 1986 (Cth) | D67: Capex and Opex | E67: No
B68: Commonwealth Government | C68: Australian Human Rights Commission Regulations 1989 (Cth) | D68: Capex and Opex | E68: No
B69: Commonwealth Government | C69: Australian Modern Slavery Act 2018 (Cth) | D69: Capex and Opex | E69: No
B70: Commonwealth Government | C70: Australian Securities and Investments Commission Act 2001 (Cth) | D70: Capex and Opex | E70: No
B71: Commonwealth Government | C71: Australian Securities and Investments Commission Regulations 2001 (Cth) | D71: Capex and Opex | E71: No
B72: Commonwealth Government | C72: Building and Construction Industry (Improving Productivity) Act 2016 | D72: Capex and Opex | E72: No
B73: Commonwealth Government | C73: Climate Change Act 2022 | D73: Capex and Opex | E73: No
B74: Commonwealth Government | C74: Competition and Consumer Act 2010 (Cth) | D74: Capex and Opex | E74: No
B75: Commonwealth Government | C75: Competition and Consumer Regulations 2010 (Cth) | D75: Capex and Opex | E75: No
B76: Commonwealth Government | C76: Corporations Act 2001 (Cth) | D76: Capex and Opex | E76: No
B77: Commonwealth Government | C77: Corporations Regulations 2001 (Cth) | D77: Capex and Opex | E77: No
B78: Commonwealth Government | C78: Designs Act 2003 (Cth) | D78: Capex and Opex | E78: No
B79: Commonwealth Government | C79: Disability Discrimination Act 1992 (Cth) | D79: Capex and Opex | E79: No
B80: Commonwealth Government | C80: Disability Discrimination Regulations 1996 (Cth) | D80: Capex and Opex | E80: No
B81: Commonwealth Government | C81: Electronic Transactions Act 1999 (Cth) | D81: Capex and Opex | E81: No
B82: Commonwealth Government | C82: Electronic Transactions Act Regulations 2020 (Cth) | D82: Capex and Opex | E82: No
B83: Commonwealth Government | C83: Environment Protection and Biodiversity Conservation Act 1999 (Cth) | D83: Capex and Opex | E83: No
B84: Commonwealth Government | C84: Environment Protection and Biodiversity Conservation Regulations 2000 (Cth) | D84: Capex and Opex | E84: No
B85: Commonwealth Government | C85: Equal Employment Opportunity (Commonwealth Authorities) Act 1987 (Cth) | D85: Capex and Opex | E85: No
B86: Commonwealth Government | C86: Fair Work (Transitional Provisions and Consequential Amendments) Regulations 2009 (Cth) | D86: Capex and Opex | E86: No
B87: Commonwealth Government | C87: Fair Work Act 2009 (Cth) | D87: Opex | E87: No
B88: Commonwealth Government | C88: Fair Work Regulations 2009 (Cth) | D88: Opex | E88: No
B89: Commonwealth Government | C89: Foreign Acquisitions and Takeovers Act 1975 (Cth) | D89: Capex and Opex | E89: No
B90: Commonwealth Government | C90: Foreign Acquisitions and Takeovers Regulations 1989 (Cth) | D90: Capex and Opex | E90: No
B91: Commonwealth Government | C91: Fringe Benefits Tax Act 1986 (Cth) | D91: Opex | E91: No
B92: Commonwealth Government | C92: Fringe Benefits Tax Assessment Act 1986 (Cth) | D92: Opex | E92: No
B93: Commonwealth Government | C93: Fringe Benefits Tax Regulations 1992 (Cth) | D93: Opex | E93: No
B94: Commonwealth Government | C94: Fuel Tax Act 2006 (Cth) | D94: Opex | E94: No
B95: Commonwealth Government | C95: National Harmonisation of Work Health and Safety Regulations 2011 (Cth) | D95: Capex and Opex | E95: No
B96: Commonwealth Government | C96: Independent Contractors Act 2006 (Cth) | D96: Capex and Opex | E96: No
B97: Commonwealth Government | C97: Independent Contractors Regulations 2007 (Cth) | D97: Capex and Opex | E97: No
B98: Commonwealth Government | C98: Income Tax (Excluded STBs) Regulations 1997 (Cth) | D98: Capex and Opex | E98: No
B99: Commonwealth Government | C99: Income Tax Act 1986 (Cth) | D99: Opex | E99: No
B100: Commonwealth Government | C100: Income Tax Assessment Act 1936 (Cth) | D100: Opex | E100: No
B101: Commonwealth Government | C101: Income Tax Assessment Act 1997 (Cth) | D101: Opex | E101: No
B102: Commonwealth Government | C102: Income Tax Assessment Regulations 1997 (Cth) | D102: Opex | E102: No
B103: Commonwealth Government | C103: Income Tax Regulations 1936 (Cth) | D103: Opex | E103: No
B104: Commonwealth Government | C104: Law Reform (Contributory Negligence and Apportionment of Liability) Act 2001 (Cth) | D104: Capex and Opex | E104: No
B105: Commonwealth Government | C105: National Greenhouse and Energy Reporting Act 2007 (Cth) | D105: Opex | E105: No
B106: Commonwealth Government | C106: National Greenhouse and Energy Reporting Regulations 2008 (Cth) | D106: Opex | E106: No
B107: South Australian and Victorian Governments | C107: National Electricity Law | D107: Capex and Opex | E107: No
B108: Commonwealth Government | C108: Native Title Act 1993 (Cth) | D108: Opex | E108: No
B109: Commonwealth Government | C109: Native Title (Indigenous Land Use Agreements) Regulations 1999 (Cth) | D109: Opex | E109: No
B110: Commonwealth Government | C110: Privacy Act 1988 (Cth) | D110: Opex | E110: No
B111: Commonwealth Government | C111: Privacy Regulation 2013 (Cth) | D111: Opex | E111: No
B112: Commonwealth Government | C112: Privacy Amendment (Notifiable Data Breaches) Act 2017 | D112: Capex and Opex | E112: No
B113: Commonwealth Government | C113: Patents Act 1990 (Cth) | D113: Capex and Opex | E113: No
B114: Commonwealth Government | C114: Personal Property Securities Act 2000 (Cth) | D114: Capex and Opex | E114: No
B115: Commonwealth Government | C115: Racial Discrimination Act 1975 (Cth) | D115: Capex and Opex | E115: No
B116: Commonwealth Government | C116: Racial Discrimination Regulations 1987 (Cth) | D116: Capex and Opex | E116: No
B117: Commonwealth Government | C117: Security of Critical Infrastructure Act 2018 (Cth) | D117: Capex and Opex | E117: No
B118: Commonwealth Government | C118: Security Legislation Amendment (Critical Infrastructure Protection) Act 2022 | D118: Capex and Opex | E118: No
B119: Commonwealth Government | C119: Sex Discrimination Amendment (Sexual Orientation, Gender Identity and Intersex Status) Act 2013 | D119: Capex and Opex | E119: No
B120: Commonwealth Government | C120: Sex Discrimination Act 1984 (Cth) | D120: Capex and Opex | E120: No
B121: Commonwealth Government | C121: Sex Discrimination Regulations 1984 (Cth) | D121: Capex and Opex | E121: No
B122: Commonwealth Government | C122: Superannuation Guarantee (Administration) Act 1992 (Cth) | D122: Capex and Opex | E122: No
B123: Commonwealth Government | C123: Superannuation Guarantee (Administration) Regulations 1993 (Cth) | D123: Capex and Opex | E123: No
B124: Commonwealth Government | C124: Superannuation Industry (Supervision) Act 1993 (Cth) | D124: Capex and Opex | E124: No
B125: Commonwealth Government | C125: Superannuation Industry (Supervision) Regulations 1994 (Cth) | D125: Capex and Opex | E125: No
B126: Commonwealth Government | C126: Telecommunications (Interception and Access) Act 1979 (Cth) | D126: Capex and Opex | E126: No
B127: Commonwealth Government | C127: Telecommunications (Interception and Access) Regulations 1987 (Cth) | D127: Capex and Opex | E127: No
B128: Commonwealth Government | C128: Telecommunications Act 1997 (Cth) | D128: Capex and Opex | E128: No
B129: Commonwealth Government | C129: Telecommunications Regulations 2001 (Cth) | D129: Capex and Opex | E129: No
B130: Commonwealth Government | C130: Trade Marks Act 1995 (Cth) | D130: Capex and Opex | E130: No
B131: Commonwealth Government | C131: Workplace Gender Equality Act 2012 (Cth) | D131: Capex and Opex | E131: No
B132: Commonwealth Government | C132: Workplace Relations Acts and Regulations (Cth) | D132: Capex and Opex | E132: No
B133: LICENCES
B134: ACMA | C134: Carrier licences for telecommunications and radio communications permits us to operate our radio and operational telecommunications | D134: Capex and Opex | E134: No
B135: ESC of Vic | C135: Electricity Distribution Licence - Jemena Electricity Network | D135: Capex and Opex | E135: No
B136: RULES
B137: AEMC | C137: National Electricity Rules | D137: Capex and Opex | E137: No
B138: AEMC | C138: National Energy Retail Rules | D138: Capex and Opex | E138: No
B139: Fair Work Commission Rules 2013 (Cth) | C139: Fair Work Commission Rules 2013 (Cth) | D139: Capex and Opex | E139: No
B140: Rules | C140: Security of Critical Infrastructure (Critical infrastructure risk management program) Rules (LIN 23/006) 2023 | D140: Capex and Opex | E140: No
B141: ORDERS
B142: Advanced Metering Infrastructure (Oligations to install meters) Order 2017 | C142: Objectives The objectives of this Order are: (a) to regulate the installation and operation of remotely read interval meters on and after 1 December 2017; and (b) to make consequential amendments to the Cost Recovery Order; and (c) to revoke the AMI Specifications Order. | D142: Capex and Opex | E142: No
B143: General Exemption Order 2002 | C143: Activities that are exempt from the requirement to hold a licence | D143: Capex and Opex | E143: No
B144: 2017 Ministerial Order under section 15A and 46D of the Electricity Industry Act | C144: Gazette No. S 342 - 10 October 2017. (a) to regulate the installation and operation of remotely read interval meters on and after 1 December 2017; and (b) to make consequential amendments to the Cost Recovery Order; and (c) to revoke the AMI Specifications Order. | D144: Capex and Opex | E144: No
B145: 2017 Ministerial Order under section 16BA of NEVA 2005 | C145: This is a Ministerial Order made under NEVA deferring metering competition. Gazette No. S 346 Thursday 12 October 2017. | D145: Capex and Opex | E145: No
B146: AMI Tariffs Amendment Order 2017 | C146: The purpose of this Order is to amend the AMI Tariffs Order to make further provision for the structure, taking effect and choice of AMI tariffs during the period ending 31 December 2020 and for other matters. Gazette No. S 304 Tuesday 12 September 2017 | D146: Capex and Opex | E146: No
B147: F-factor Scheme Order 2016 | C147: The f-factor Incentive Scheme is a regulatory instrument under the National Electricity (Victoria) Act 2005 designed to provide electricity distribution network businesses with an incentive to lower the number of fire starts on their networks in Victoria. | D147: Capex and Opex | E147: No
B148: Advanced Metering Infrastructure (Retail and Network Tariffs) Order in Council 2021 | C148: This OIC comes into effect on 1 Jul 2021, revoking the previous AMI tariffs order, outlining requriements around network tariffs. No. S 295 Wednesday 16 June 2021 | D148: Capex and Opex | E148: No
B149: General Exemption Order 2022 | C149: New obligations for embedded networks from 1 January 2023 | D149: Capex and Opex | E149: No
B150: CODES
B151: AEMO | C151: National Metrology procedures | D151: Capex and Opex | E151: No
B152: AEMO | C152: MSATS | D152: Capex and Opex | E152: No
B153: ESC of Vic | C153: Electricity Distribution Code of Practice | D153: Capex and Opex | E153: No
B154: ESC of Vic | C154: Electricity Customer Metering Code | D154: Capex and Opex | E154: No
B155: ESV | C155: ESV Code of Practice for Electrical Safety | D155: Capex and Opex | E155: No
B156: ESC of Vic | C156: Electricity Customer Transfer Code | D156: Opex | E156: No
B157: ESC of Vic | C157: Electricity System Code | D157: Capex and Opex | E157: No
B158: ESC of Vic | C158: Energy Retail Energy Code of Practice | D158: Capex and Opex | E158: No
B159: ESC of Vic | C159: Public Lighting Code | D159: Capex and Opex | E159: No
B160: Building Code of Australia | C160: Building Code of Australia published by the Australian Building Codes Board as in force from time to time Building and Construction Industry (Fair and Lawful Building Sites) Code 2014 Code for the Tendering and Performance of Building Work | D160: Capex and Opex | E160: No
B161: Commonwealth Government | C161: National Harmonisation of Work Health and Safety Code of Practice | D161: Capex and Opex | E161: No
B162: Victorian Government | C162: Code of Practice for Electric Line Clearance 2010 (as contained in the Schedule to the Electricity Safety (Electric Line Clearance) Regulations 2010) | D162: Capex and Opex | E162: No
B163: GUIDELINES
B164: ESC of Vic | C164: Audit Guideline for Energy Businesses | D164: Opex | E164: No
B165: AER | C165: Capital expenditure incentive guideline | D165: Building block revenues | E165: No
B166: AER | C166: Compliance Procedures and Guidelines | D166: Capex and Opex | E166: No
B167: ESC of Vic | C167: Compliance and Performance Reporting Guideline | D167: Opex | E167: No
B168: AER | C168: Confidentiality guideline | D168: Confidentiality template | E168: No
B169: AER | C169: Consumer engagement guideline for network service providers | D169: Capex and Opex | E169: No
B170: AER | C170: Cost allocation guideline | D170: Capex and opex | E170: No
B171: AER | C171: Distribution Service Classification Guidelines and Asset Exemption Guidelines | D171: Service classification and Capex | E171: No
B172: AER | C172: Demand Management Incentive Scheme | D172: Capex and opex | E172: No
B173: AER | C173: Demand Management Innovation Allowance Mechanism | D173: Capex and opex | E173: No
B174: AER | C174: Distribution Annual Planning Report Template v1.0 (June 2017) | D174: Capex and Opex | E174: No
B175: AER | C175: Distribution Reliability Measures Guideline (Nov 2018) | D175: Capex and Opex | E175: No
B176: AER | C176: Efficiency benefit sharing scheme | D176: Building block revenues | E176: No
B177: AER | C177: Electricity Distribution Service Classification Guideline (Sept 2018) | D177: Capex and Opex | E177: No
B178: ESC of Vic | C178: Electricity Guideline No 11 – Voltage Variation Compensation | D178: Capex and Opex | E178: No
B179: ESC of Vic | C179: Energy Compliance and Enforcement Policy | D179: Opex | E179: No
B180: AER | C180: Expenditure forecast assessment guideline | D180: Capex and Opex | E180: No
B181: AER | C181: Expenditure incentives guideline | D181: Building block revenues | E181: No
B182: AER | C182: Forecast Expenditure Assessment Guideline, November 2013 | D182: Capex and Opex | E182: No
B183: AER | C183: National electricity connection charge guideline | D183: Capex and opex | E183: No
B184: AER | C184: Rate of Return Instrument | D184: Rate of Return | E184: No
B185: ESC of Vic | C185: Registration Guideline for Exempt Persons | D185: Capex and opex | E185: No
B186: AER | C186: Regulatory Investment Test for Distribution and application guidelines | D186: Capex | E186: No
B187: AER | C187: Restricted Asset Exemption Guideline (Sept 2018) | D187: Capex and opex | E187: No
B188: AER | C188: Ring-fencing Guideline Electricity Distribution | D188: Capex and opex | E188: No
B189: AER | C189: Service target performance incentive scheme | D189: Capex and Opex | E189: No
B190: AER | C190: Shared asset guideline | D190: Building block revenues | E190: No
B191: DEFAULT AGREEMENTS
B192: Jemena | C192: Deemed-Standard-Distribution-Contract | D192: Capex and Opex | E192: No
B193: Jemena | C193: JEN UoSA - 2011 | D193: Capex and Opex | E193: No
B194: Jemena | C194: Model Standing Offer for Basic Connections Services | D194: Capex and Opex | E194: No
B195: Jemena | C195: Model Standing Offer for Micro Embedded Generator Basic Connection Services | D195: Capex and Opex | E195: No
B196: OTHER
B197: AEMO | C197: Market Settlement and Transfer Solutions (MSATS) | D197: Capex and Opex | E197: No
B198: Standards Australia | C198: AS/NZ 3000:2007 Electrical installations | D198: Capex and Opex | E198: No
B199: Standards Australia | C199: AS/NZS 4777.2 Grid connection of energy systems via inverters | D199: Capex and Opex | E199: No
B200: ESC of Vic | C200: Energy Compliance and Enforcement Policy: Guidance note – Payment difficulty and disconnection | D200: Opex | E200: No
